Workbook

Sheet Main
B10: 2021-05-03
B12: Sheet No. | C12: Template Name | D12: Summary
B13: 1 | C13: Future Intra | D13: For Intraday trading in F&O segment
B14: 2 | C14: Cash Intra | D14: For Intraday trading in cash market segment
B15: 3 | C15: Mid-cap Intra | D15: For Intraday trading in Mid-cap stocks
B16: 4 | C16: Bulk Deals | D16: Reveals Bulk Deals carried on NSE & BSE
B17: 5 | C17: Call Tracker
K27: `

Sheet Future Intra
M5: Back to Main Page
A6: FOR INTRA DAY TRADING | L6: =Main!B10 -> 2021-05-03
A9: Sr.no | B9: Sector | C9: Scrip | D9: Expiry Date | E9: CLOSE RATE | F9: Pivot Point | G9: Supports | J9: Resistances
B10: Sector | E10: Point | F10: Point | G10: S1 | H10: S2 | I10: S3 | J10: R1 | K10: R2 | L10: R3 | M10: HIGH | N10: LOW | O10: OI | P10: % Change in OI
A11: 1 | B11: Index | C11: BANKNIFTY | D11: 2021-05-27 | E11: 32893.55 | F11: 33101.77 | G11: 32603.88 | H11: 32314.22 | I11: 31816.33 | J11: 33391.43 | K11: 33889.32 | L11: 34178.98 | M11: 33599.65 | N11: 32812.1 | O11: 1356675 | P11: -2.91%
A12: 2 | B12: Index | C12: NIFTY | D12: 2021-05-27 | E12: 14690.80 | F12: 14747.03 | G12: 14604.07 | H12: 14517.33 | I12: 14374.37 | J12: 14833.77 | K12: 14976.73 | L12: 15063.47 | M12: 14890 | N12: 14660.3 | O12: 10856375 | P12: 6.04%
A13: 3 | B13: Index | C13: FINNIFTY | D13: 2021-05-27 | E13: 15644.15 | F13: 15733.45 | G13: 15520.70 | H13: 15397.25 | I13: 15184.50 | J13: 15856.90 | K13: 16069.65 | L13: 16193.10 | M13: 15946.2 | N13: 15610 | O13: 20560 | P13: 87.59%
A14: 4 | B14: Chemical | C14: AARTIIND | D14: 2021-05-27 | E14: 1611.95 | F14: 1601.32 | G14: 1554.63 | H14: 1497.32 | I14: 1450.63 | J14: 1658.63 | K14: 1705.32 | L14: 1762.63 | M14: 1648 | N14: 1544 | O14: 576725 | P14: 1.57%
A15: 5 | B15: Cement | C15: ACC | D15: 2021-05-27 | E15: 1887.10 | F15: 1883.92 | G15: 1860.33 | H15: 1833.57 | I15: 1809.98 | J15: 1910.68 | K15: 1934.27 | L15: 1961.03 | M15: 1907.5 | N15: 1857.15 | O15: 2418000 | P15: -0.98%
A16: 6 | B16: Others | C16: ADANIENT | D16: 2021-05-27 | E16: 1164.80 | F16: 1174.85 | G16: 1142.00 | H16: 1119.20 | I16: 1086.35 | J16: 1197.65 | K16: 1230.50 | L16: 1253.30 | M16: 1207.7 | N16: 1152.05 | O16: 14753000 | P16: 2.38%
A17: 7 | B17: Others | C17: ADANIPORTS | D17: 2021-05-27 | E17: 735.10 | F17: 743.15 | G17: 722.10 | H17: 709.10 | I17: 688.05 | J17: 756.15 | K17: 777.20 | L17: 790.20 | M17: 764.2 | N17: 730.15 | O17: 72157500 | P17: 0.47%
A18: 8 | B18: Pharma | C18: ALKEM | D18: 2021-05-27 | E18: 2773.60 | F18: 2777.75 | G18: 2758.55 | H18: 2743.50 | I18: 2724.30 | J18: 2792.80 | K18: 2812.00 | L18: 2827.05 | M18: 2796.95 | N18: 2762.7 | O18: 226400 | P18: 3.57%
A19: 9 | B19: Automobile | C19: AMARAJABAT | D19: 2021-05-27 | E19: 813.55 | F19: 809.35 | G19: 799.20 | H19: 784.85 | I19: 774.70 | J19: 823.70 | K19: 833.85 | L19: 848.20 | M19: 819.5 | N19: 795 | O19: 4020000 | P19: 2.08%
A20: 10 | B20: Cement | C20: AMBUJACEM | D20: 2021-05-27 | E20: 308.85 | F20: 310.28 | G20: 303.77 | H20: 298.68 | I20: 292.17 | J20: 315.37 | K20: 321.88 | L20: 326.97 | M20: 316.8 | N20: 305.2 | O20: 19488000 | P20: 5.40%
A21: 11 | B21: Pharma | C21: APLLTD | D21: 2021-05-27 | E21: 992.20 | F21: 988.50 | G21: 980.00 | H21: 967.80 | I21: 959.30 | J21: 1000.70 | K21: 1009.20 | L21: 1021.40 | M21: 997 | N21: 976.3 | O21: 1180300 | P21: 5.14%
A22: 12 | B22: Others | C22: APOLLOHOSP | D22: 2021-05-27 | E22: 3216.05 | F22: 3245.88 | G22: 3174.17 | H22: 3132.28 | I22: 3060.57 | J22: 3287.77 | K22: 3359.48 | L22: 3401.37 | M22: 3317.6 | N22: 3204 | O22: 1838750 | P22: -0.07%
A23: 13 | B23: Automobile | C23: APOLLOTYRE | D23: 2021-05-27 | E23: 217.60 | F23: 213.67 | G23: 202.43 | H23: 187.27 | I23: 176.03 | J23: 228.83 | K23: 240.07 | L23: 255.23 | M23: 224.9 | N23: 198.5 | O23: 15192500 | P23: 4.34%
A24: 14 | B24: Automobile | C24: ASHOKLEY | D24: 2021-05-27 | E24: 112.95 | F24: 113.88 | G24: 111.37 | H24: 109.78 | I24: 107.27 | J24: 115.47 | K24: 117.98 | L24: 119.57 | M24: 116.4 | N24: 112.3 | O24: 31549500 | P24: 3.93%
A25: 15 | B25: FMCG | C25: ASIANPAINT | D25: 2021-05-27 | E25: 2549.60 | F25: 2571.10 | G25: 2518.95 | H25: 2488.30 | I25: 2436.15 | J25: 2601.75 | K25: 2653.90 | L25: 2684.55 | M25: 2623.25 | N25: 2540.45 | O25: 4097100 | P25: 7.96%
A26: 16 | B26: Banking | C26: AUBANK | D26: 2021-05-27 | E26: 1005.75 | F26: 1026.75 | G26: 971.65 | H26: 937.55 | I26: 882.45 | J26: 1060.85 | K26: 1115.95 | L26: 1150.05 | M26: 1081.85 | N26: 992.65 | O26: 3183000 | P26: 10.41%
A27: 17 | B27: Pharma | C27: AUROPHARMA | D27: 2021-05-27 | E27: 985.00 | F27: 983.63 | G27: 971.37 | H27: 957.73 | I27: 945.47 | J27: 997.27 | K27: 1009.53 | L27: 1023.17 | M27: 995.9 | N27: 970 | O27: 9141600 | P27: -0.92%
A28: 18 | B28: Banking | C28: AXISBANK | D28: 2021-05-27 | E28: 716.95 | F28: 719.03 | G28: 705.42 | H28: 693.88 | I28: 680.27 | J28: 730.57 | K28: 744.18 | L28: 755.72 | M28: 732.65 | N28: 707.5 | O28: 40246800 | P28: 2.51%
A29: 19 | B29: Automobile | C29: BAJAJ-AUTO | D29: 2021-05-27 | E29: 3847.80 | F29: 3880.63 | G29: 3776.27 | H29: 3704.73 | I29: 3600.37 | J29: 3952.17 | K29: 4056.53 | L29: 4128.07 | M29: 3985 | N29: 3809.1 | O29: 2042250 | P29: 5.34%
A30: 20 | B30: Finance | C30: BAJAJFINSV | D30: 2021-05-27 | E30: 11100.60 | F30: 11099.15 | G30: 10928.15 | H30: 10755.70 | I30: 10584.70 | J30: 11271.60 | K30: 11442.60 | L30: 11615.05 | M30: 11270.15 | N30: 10926.7 | O30: 895275 | P30: 3.31%
A31: 21 | B31: Finance | C31: BAJFINANCE | D31: 2021-05-27 | E31: 5461.05 | F31: 5450.32 | G31: 5361.73 | H31: 5262.42 | I31: 5173.83 | J31: 5549.63 | K31: 5638.22 | L31: 5737.53 | M31: 5538.9 | N31: 5351 | O31: 3894250 | P31: 2.87%
A32: 22 | B32: Automobile | C32: BALKRISIND | D32: 2021-05-27 | E32: 1780.10 | F32: 1783.87 | G32: 1748.98 | H32: 1717.87 | I32: 1682.98 | J32: 1814.98 | K32: 1849.87 | L32: 1880.98 | M32: 1818.75 | N32: 1752.75 | O32: 1620400 | P32: 4.19%
A33: 23 | B33: Banking | C33: BANDHANBNK | D33: 2021-05-27 | E33: 331.40 | F33: 333.15 | G33: 324.30 | H33: 317.20 | I33: 308.35 | J33: 340.25 | K33: 349.10 | L33: 356.20 | M33: 342 | N33: 326.05 | O33: 15472800 | P33: -0.93%
A34: 24 | B34: Banking | C34: BANKBARODA | D34: 2021-05-27 | E34: 67.05 | F34: 67.10 | G34: 65.40 | H34: 63.75 | I34: 62.05 | J34: 68.75 | K34: 70.45 | L34: 72.10 | M34: 68.8 | N34: 65.45 | O34: 113642100 | P34: 0.95%
A35: 25 | B35: FMCG | C35: BATAINDIA | D35: 2021-05-27 | E35: 1371.75 | F35: 1368.32 | G35: 1350.18 | H35: 1328.62 | I35: 1310.48 | J35: 1389.88 | K35: 1408.02 | L35: 1429.58 | M35: 1386.45 | N35: 1346.75 | O35: 1115400 | P35: -10.97%
A36: 26 | B36: Capital_Goods | C36: BEL | D36: 2021-05-27 | E36: 132.15 | F36: 132.67 | G36: 127.98 | H36: 123.82 | I36: 119.13 | J36: 136.83 | K36: 141.52 | L36: 145.68 | M36: 137.35 | N36: 128.5 | O36: 29708400 | P36: -1.91%
A37: 27 | B37: FMCG | C37: BERGEPAINT | D37: 2021-05-27 | E37: 708.15 | F37: 710.13 | G37: 701.27 | H37: 694.38 | I37: 685.52 | J37: 717.02 | K37: 725.88 | L37: 732.77 | M37: 719 | N37: 703.25 | O37: 2927100 | P37: 0.23%
A38: 28 | B38: Automobile | C38: BHARATFORG | D38: 2021-05-27 | E38: 613.80 | F38: 612.45 | G38: 599.85 | H38: 585.90 | I38: 573.30 | J38: 626.40 | K38: 639.00 | L38: 652.95 | M38: 625.05 | N38: 598.5 | O38: 6382500 | P38: 1.92%
A39: 29 | B39: Telecom | C39: BHARTIARTL | D39: 2021-05-27 | E39: 539.35 | F39: 541.65 | G39: 534.30 | H39: 529.25 | I39: 521.90 | J39: 546.70 | K39: 554.05 | L39: 559.10 | M39: 549 | N39: 536.6 | O39: 93266337 | P39: -0.28%
A40: 30 | B40: Capital_Goods | C40: BHEL | D40: 2021-05-27 | E40: 48.55 | F40: 48.20 | G40: 46.70 | H40: 44.85 | I40: 43.35 | J40: 50.05 | K40: 51.55 | L40: 53.40 | M40: 49.7 | N40: 46.35 | O40: 95917500 | P40: 0.63%
A41: 31 | B41: Pharma | C41: BIOCON | D41: 2021-05-27 | E41: 381.55 | F41: 385.75 | G41: 376.10 | H41: 370.65 | I41: 361.00 | J41: 391.20 | K41: 400.85 | L41: 406.30 | M41: 395.4 | N41: 380.3 | O41: 19490200 | P41: 11.82%
A42: 32 | B42: Automobile | C42: BOSCHLTD | D42: 2021-05-27 | E42: 13543.95 | F42: 13584.98 | G42: 13469.97 | H42: 13395.98 | I42: 13280.97 | J42: 13658.97 | K42: 13773.98 | L42: 13847.97 | M42: 13700 | N42: 13511 | O42: 92750 | P42: 4.15%
A43: 33 | B43: Oil_Gas | C43: BPCL | D43: 2021-05-27 | E43: 423.95 | F43: 426.83 | G43: 413.32 | H43: 402.68 | I43: 389.17 | J43: 437.47 | K43: 450.98 | L43: 461.62 | M43: 440.35 | N43: 416.2 | O43: 43633800 | P43: 6.42%
A44: 34 | B44: FMCG | C44: BRITANNIA | D44: 2021-05-27 | E44: 3436.35 | F44: 3439.45 | G44: 3423.90 | H44: 3411.45 | I44: 3395.90 | J44: 3451.90 | K44: 3467.45 | L44: 3479.90 | M44: 3455 | N44: 3427 | O44: 1926200 | P44: 4.23%
A45: 35 | B45: Pharma | C45: CADILAHC | D45: 2021-05-27 | E45: 574.70 | F45: 572.88 | G45: 563.37 | H45: 552.03 | I45: 542.52 | J45: 584.22 | K45: 593.73 | L45: 605.07 | M45: 582.4 | N45: 561.55 | O45: 15675000 | P45: 0.72%
A46: 36 | B46: Banking | C46: CANBK | D46: 2021-05-27 | E46: 139.40 | F46: 140.43 | G46: 136.07 | H46: 132.73 | I46: 128.37 | J46: 143.77 | K46: 148.13 | L46: 151.47 | M46: 144.8 | N46: 137.1 | O46: 60512400 | P46: 0.05%
A47: 37 | B47: Finance | C47: CHOLAFIN | D47: 2021-05-27 | E47: 574.65 | F47: 582.02 | G47: 561.28 | H47: 547.92 | I47: 527.18 | J47: 595.38 | K47: 616.12 | L47: 629.48 | M47: 602.75 | N47: 568.65 | O47: 4426250 | P47: 9.43%
A48: 38 | B48: Pharma | C48: CIPLA | D48: 2021-05-27 | E48: 916.30 | F48: 915.80 | G48: 905.20 | H48: 894.10 | I48: 883.50 | J48: 926.90 | K48: 937.50 | L48: 948.60 | M48: 926.4 | N48: 904.7 | O48: 13302250 | P48: 2.27%
A49: 39 | B49: Others | C49: COALINDIA | D49: 2021-05-27 | E49: 133.55 | F49: 132.13 | G49: 128.97 | H49: 124.38 | I49: 121.22 | J49: 136.72 | K49: 139.88 | L49: 144.47 | M49: 135.3 | N49: 127.55 | O49: 33574800 | P49: -5.21%
A50: 40 | B50: Technology | C50: COFORGE | D50: 2021-05-27 | E50: 2871.25 | F50: 2873.75 | G50: 2823.50 | H50: 2775.75 | I50: 2725.50 | J50: 2921.50 | K50: 2971.75 | L50: 3019.50 | M50: 2924 | N50: 2826 | O50: 390375 | P50: 6.55%
A51: 41 | B51: FMCG | C51: COLPAL | D51: 2021-05-27 | E51: 1486.40 | F51: 1485.68 | G51: 1474.62 | H51: 1462.83 | I51: 1451.77 | J51: 1497.47 | K51: 1508.53 | L51: 1520.32 | M51: 1496.75 | N51: 1473.9 | O51: 3571750 | P51: -1.53%
A52: 42 | B52: Others | C52: CONCOR | D52: 2021-05-27 | E52: 592.75 | F52: 585.73 | G52: 564.12 | H52: 535.48 | I52: 513.87 | J52: 614.37 | K52: 635.98 | L52: 664.62 | M52: 607.35 | N52: 557.1 | O52: 5809671 | P52: 6.17%
A53: 43 | B53: Banking | C53: CUB | D53: 2021-05-27 | E53: 167.25 | F53: 167.97 | G53: 165.78 | H53: 164.32 | I53: 162.13 | J53: 169.43 | K53: 171.62 | L53: 173.08 | M53: 170.15 | N53: 166.5 | O53: 4929000 | P53: 1.02%
A54: 44 | B54: Capital_Goods | C54: CUMMINSIND | D54: 2021-05-27 | E54: 838.80 | F54: 845.95 | G54: 827.90 | H54: 817.00 | I54: 798.95 | J54: 856.85 | K54: 874.90 | L54: 885.80 | M54: 864 | N54: 835.05 | O54: 1015800 | P54: -3.92%
A55: 45 | B55: FMCG | C55: DABUR | D55: 2021-05-27 | E55: 540.95 | F55: 541.52 | G55: 536.53 | H55: 532.12 | I55: 527.13 | J55: 545.93 | K55: 550.92 | L55: 555.33 | M55: 546.5 | N55: 537.1 | O55: 12221250 | P55: 7.20%
A56: 46 | B56: Chemical | C56: DEEPAKNTR | D56: 2021-05-27 | E56: 1878.55 | F56: 1858.37 | G56: 1803.73 | H56: 1728.92 | I56: 1674.28 | J56: 1933.18 | K56: 1987.82 | L56: 2062.63 | M56: 1913 | N56: 1783.55 | O56: 1387000 | P56: 13.18%
A57: 47 | B57: Pharma | C57: DIVISLAB | D57: 2021-05-27 | E57: 4080.45 | F57: 4051.53 | G57: 3954.07 | H57: 3827.68 | I57: 3730.22 | J57: 4177.92 | K57: 4275.38 | L57: 4401.77 | M57: 4149 | N57: 3925.15 | O57: 2426600 | P57: 3.39%
A58: 48 | B58: Realty | C58: DLF | D58: 2021-05-27 | E58: 248.20 | F58: 249.45 | G58: 243.25 | H58: 238.30 | I58: 232.10 | J58: 254.40 | K58: 260.60 | L58: 265.55 | M58: 255.65 | N58: 244.5 | O58: 29762700 | P58: 0.86%
A59: 49 | B59: Pharma | C59: DRREDDY | D59: 2021-05-27 | E59: 5195.10 | F59: 5194.38 | G59: 5144.72 | H59: 5094.33 | I59: 5044.67 | J59: 5244.77 | K59: 5294.43 | L59: 5344.82 | M59: 5244.05 | N59: 5144 | O59: 3170500 | P59: 4.25%
A60: 50 | B60: Automobile | C60: EICHERMOT | D60: 2021-05-27 | E60: 2433.40 | F60: 2447.12 | G60: 2411.83 | H60: 2390.27 | I60: 2354.98 | J60: 2468.68 | K60: 2503.97 | L60: 2525.53 | M60: 2482.4 | N60: 2425.55 | O60: 2639700 | P60: -0.76%
A61: 51 | B61: Automobile | C61: ESCORTS | D61: 2021-05-27 | E61: 1126.45 | F61: 1134.28 | G61: 1105.62 | H61: 1084.78 | I61: 1056.12 | J61: 1155.12 | K61: 1183.78 | L61: 1204.62 | M61: 1162.95 | N61: 1113.45 | O61: 3236200 | P61: 17.66%
A62: 52 | B62: Automobile | C62: EXIDEIND | D62: 2021-05-27 | E62: 178.90 | F62: 180.02 | G62: 176.78 | H62: 174.67 | I62: 171.43 | J62: 182.13 | K62: 185.37 | L62: 187.48 | M62: 183.25 | N62: 177.9 | O62: 13564800 | P62: -1.10%
A63: 53 | B63: Banking | C63: FEDERALBNK | D63: 2021-05-27 | E63: 80.25 | F63: 80.17 | G63: 76.88 | H63: 73.52 | I63: 70.23 | J63: 83.53 | K63: 86.82 | L63: 90.18 | M63: 83.45 | N63: 76.8 | O63: 54290000 | P63: -7.31%
A64: 54 | B64: Oil_Gas | C64: GAIL | D64: 2021-05-27 | E64: 138.00 | F64: 137.68 | G64: 133.17 | H64: 128.33 | I64: 123.82 | J64: 142.52 | K64: 147.03 | L64: 151.87 | M64: 142.2 | N64: 132.85 | O64: 31896900 | P64: 4.75%
A65: 55 | B65: Pharma | C65: GLENMARK | D65: 2021-05-27 | E65: 580.30 | F65: 578.47 | G65: 569.43 | H65: 558.57 | I65: 549.53 | J65: 589.33 | K65: 598.37 | L65: 609.23 | M65: 587.5 | N65: 567.6 | O65: 8058050 | P65: 6.52%
A66: 56 | B66: Infrastructure | C66: GMRINFRA | D66: 2021-05-27 | E66: 22.95 | F66: 22.83 | G66: 22.62 | H66: 22.28 | I66: 22.07 | J66: 23.17 | K66: 23.38 | L66: 23.72 | M66: 23.05 | N66: 22.5 | O66: 145710000 | P66: -1.33%
A67: 57 | B67: FMCG | C67: GODREJCP | D67: 2021-05-27 | E67: 694.85 | F67: 699.22 | G67: 686.93 | H67: 679.02 | I67: 666.73 | J67: 707.13 | K67: 719.42 | L67: 727.33 | M67: 711.5 | N67: 691.3 | O67: 4130000 | P67: 3.43%
A68: 58 | B68: Realty | C68: GODREJPROP | D68: 2021-05-27 | E68: 1365.65 | F68: 1372.72 | G68: 1352.98 | H68: 1340.32 | I68: 1320.58 | J68: 1385.38 | K68: 1405.12 | L68: 1417.78 | M68: 1392.45 | N68: 1360.05 | O68: 1513850 | P68: 1.26%
A69: 59 | B69: Pharma | C69: GRANULES | D69: 2021-05-27 | E69: 336.10 | F69: 336.50 | G69: 331.00 | H69: 325.90 | I69: 320.40 | J69: 341.60 | K69: 347.10 | L69: 352.20 | M69: 342 | N69: 331.4 | O69: 5767550 | P69: 4.64%
A70: 60 | B70: Cement | C70: GRASIM | D70: 2021-05-27 | E70: 1407.95 | F70: 1387.47 | G70: 1360.63 | H70: 1313.32 | I70: 1286.48 | J70: 1434.78 | K70: 1461.62 | L70: 1508.93 | M70: 1414.3 | N70: 1340.15 | O70: 14136475 | P70: 3.47%
A71: 61 | B71: Oil_Gas | C71: GUJGASLTD | D71: 2021-05-27 | E71: 533.45 | F71: 533.80 | G71: 524.60 | H71: 515.75 | I71: 506.55 | J71: 542.65 | K71: 551.85 | L71: 560.70 | M71: 543 | N71: 524.95 | O71: 812500 | P71: 2.52%
A72: 62 | B72: Capital_Goods | C72: HAVELLS | D72: 2021-05-27 | E72: 993.80 | F72: 1006.45 | G72: 974.55 | H72: 955.30 | I72: 923.40 | J72: 1025.70 | K72: 1057.60 | L72: 1076.85 | M72: 1038.35 | N72: 987.2 | O72: 4609000 | P72: 2.06%
A73: 63 | B73: Technology | C73: HCLTECH | D73: 2021-05-27 | E73: 904.35 | F73: 908.63 | G73: 896.72 | H73: 889.08 | I73: 877.17 | J73: 916.27 | K73: 928.18 | L73: 935.82 | M73: 920.55 | N73: 901 | O73: 23205700 | P73: 6.21%
A74: 64 | B74: Finance | C74: HDFC | D74: 2021-05-27 | E74: 2435.25 | F74: 2470.42 | G74: 2390.83 | H74: 2346.42 | I74: 2266.83 | J74: 2514.83 | K74: 2594.42 | L74: 2638.83 | M74: 2550 | N74: 2426 | O74: 15729300 | P74: 10.00%
A75: 65 | B75: Finance | C75: HDFCAMC | D75: 2021-05-27 | E75: 2792.30 | F75: 2803.68 | G75: 2763.72 | H75: 2735.13 | I75: 2695.17 | J75: 2832.27 | K75: 2872.23 | L75: 2900.82 | M75: 2843.65 | N75: 2775.1 | O75: 615400 | P75: 3.22%
A76: 66 | B76: Banking | C76: HDFCBANK | D76: 2021-05-27 | E76: 1418.10 | F76: 1429.17 | G76: 1401.38 | H76: 1384.67 | I76: 1356.88 | J76: 1445.88 | K76: 1473.67 | L76: 1490.38 | M76: 1456.95 | N76: 1412.45 | O76: 22374550 | P76: 9.33%
A77: 67 | B77: Finance | C77: HDFCLIFE | D77: 2021-05-27 | E77: 669.50 | F77: 671.78 | G77: 663.72 | H77: 657.93 | I77: 649.87 | J77: 677.57 | K77: 685.63 | L77: 691.42 | M77: 679.85 | N77: 666 | O77: 11877800 | P77: 4.46%
A78: 68 | B78: Automobile | C78: HEROMOTOCO | D78: 2021-05-27 | E78: 2830.60 | F78: 2841.45 | G78: 2811.20 | H78: 2791.80 | I78: 2761.55 | J78: 2860.85 | K78: 2891.10 | L78: 2910.50 | M78: 2871.7 | N78: 2822.05 | O78: 3382800 | P78: 12.40%
A79: 69 | B79: Metals | C79: HINDALCO | D79: 2021-05-27 | E79: 366.00 | F79: 369.47 | G79: 359.18 | H79: 352.37 | I79: 342.08 | J79: 376.28 | K79: 386.57 | L79: 393.38 | M79: 379.75 | N79: 362.65 | O79: 34638650 | P79: -0.61%
A80: 70 | B80: Oil_Gas | C80: HINDPETRO | D80: 2021-05-27 | E80: 235.45 | F80: 237.62 | G80: 228.53 | H80: 221.62 | I80: 212.53 | J80: 244.53 | K80: 253.62 | L80: 260.53 | M80: 246.7 | N80: 230.7 | O80: 24694200 | P80: 13.97%
A81: 71 | B81: FMCG | C81: HINDUNILVR | D81: 2021-05-27 | E81: 2361.70 | F81: 2381.95 | G81: 2315.75 | H81: 2269.80 | I81: 2203.60 | J81: 2427.90 | K81: 2494.10 | L81: 2540.05 | M81: 2448.15 | N81: 2336 | O81: 7520400 | P81: 9.17%
A82: 72 | B82: Finance | C82: IBULHSGFIN | D82: 2021-05-27 | E82: 181.85 | F82: 182.52 | G82: 177.78 | H82: 173.72 | I82: 168.98 | J82: 186.58 | K82: 191.32 | L82: 195.38 | M82: 187.25 | N82: 178.45 | O82: 23612700 | P82: 1.29%
A83: 73 | B83: Banking | C83: ICICIBANK | D83: 2021-05-27 | E83: 603.10 | F83: 607.73 | G83: 596.97 | H83: 590.83 | I83: 580.07 | J83: 613.87 | K83: 624.63 | L83: 630.77 | M83: 618.5 | N83: 601.6 | O83: 73167875 | P83: -2.86%
A84: 74 | B84: Finance | C84: ICICIGI | D84: 2021-05-27 | E84: 1421.40 | F84: 1419.78 | G84: 1408.22 | H84: 1395.03 | I84: 1383.47 | J84: 1432.97 | K84: 1444.53 | L84: 1457.72 | M84: 1431.35 | N84: 1406.6 | O84: 1119875 | P84: 2.29%
A85: 75 | B85: Finance | C85: ICICIPRULI | D85: 2021-05-27 | E85: 524.80 | F85: 526.97 | G85: 517.53 | H85: 510.27 | I85: 500.83 | J85: 534.23 | K85: 543.67 | L85: 550.93 | M85: 536.4 | N85: 519.7 | O85: 7183500 | P85: 1.29%
A86: 76 | B86: Telecom | C86: IDEA | D86: 2021-05-27 | E86: 8.40 | F86: 8.45 | G86: 8.25 | H86: 8.10 | I86: 7.90 | J86: 8.60 | K86: 8.80 | L86: 8.95 | M86: 8.65 | N86: 8.3 | O86: 629090000 | P86: 1.14%
A87: 77 | B87: Banking | C87: IDFCFIRSTB | D87: 2021-05-27 | E87: 54.25 | F87: 54.27 | G87: 53.18 | H87: 52.12 | I87: 51.03 | J87: 55.33 | K87: 56.42 | L87: 57.48 | M87: 55.35 | N87: 53.2 | O87: 149587000 | P87: 0.82%
A88: 78 | B88: Oil_Gas | C88: IGL | D88: 2021-05-27 | E88: 511.85 | F88: 513.65 | G88: 501.00 | H88: 490.15 | I88: 477.50 | J88: 524.50 | K88: 537.15 | L88: 548.00 | M88: 526.3 | N88: 502.8 | O88: 4235000 | P88: 6.98%
A89: 79 | B89: Others | C89: INDIGO | D89: 2021-05-27 | E89: 1637.95 | F89: 1647.57 | G89: 1621.03 | H89: 1604.12 | I89: 1577.58 | J89: 1664.48 | K89: 1691.02 | L89: 1707.93 | M89: 1674.1 | N89: 1630.65 | O89: 3903500 | P89: 6.09%
A90: 80 | B90: Banking | C90: INDUSINDBK | D90: 2021-05-27 | E90: 937.45 | F90: 935.85 | G90: 918.75 | H90: 900.05 | I90: 882.95 | J90: 954.55 | K90: 971.65 | L90: 990.35 | M90: 952.95 | N90: 917.15 | O90: 18826200 | P90: -0.49%
A91: 81 | B91: Telecom | C91: INDUSTOWER | D91: 2021-05-27 | E91: 253.80 | F91: 255.02 | G91: 251.63 | H91: 249.47 | I91: 246.08 | J91: 257.18 | K91: 260.57 | L91: 262.73 | M91: 258.4 | N91: 252.85 | O91: 8478400 | P91: -1.01%
A92: 82 | B92: Technology | C92: INFY | D92: 2021-05-27 | E92: 1359.95 | F92: 1364.23 | G92: 1350.72 | H92: 1341.48 | I92: 1327.97 | J92: 1373.47 | K92: 1386.98 | L92: 1396.22 | M92: 1377.75 | N92: 1355 | O92: 29131200 | P92: 4.18%
A93: 83 | B93: Oil_Gas | C93: IOC | D93: 2021-05-27 | E93: 91.40 | F93: 91.02 | G93: 88.38 | H93: 85.37 | I93: 82.73 | J93: 94.03 | K93: 96.67 | L93: 99.68 | M93: 93.65 | N93: 88 | O93: 54086500 | P93: 4.30%
A94: 84 | B94: Others | C94: IRCTC | D94: 2021-05-27 | E94: 1797.65 | F94: 1795.18 | G94: 1771.67 | H94: 1745.68 | I94: 1722.17 | J94: 1821.17 | K94: 1844.68 | L94: 1870.67 | M94: 1818.7 | N94: 1769.2 | O94: 1391975 | P94: -3.51%
A95: 85 | B95: FMCG | C95: ITC | D95: 2021-05-27 | E95: 203.00 | F95: 203.77 | G95: 201.88 | H95: 200.77 | I95: 198.88 | J95: 204.88 | K95: 206.77 | L95: 207.88 | M95: 205.65 | N95: 202.65 | O95: 104246400 | P95: 6.13%
A96: 86 | B96: Metals | C96: JINDALSTEL | D96: 2021-05-27 | E96: 443.35 | F96: 444.97 | G96: 431.63 | H96: 419.92 | I96: 406.58 | J96: 456.68 | K96: 470.02 | L96: 481.73 | M96: 458.3 | N96: 433.25 | O96: 27745000 | P96: -2.01%
A97: 87 | B97: Metals | C97: JSWSTEEL | D97: 2021-05-27 | E97: 721.35 | F97: 725.62 | G97: 709.73 | H97: 698.12 | I97: 682.23 | J97: 737.23 | K97: 753.12 | L97: 764.73 | M97: 741.5 | N97: 714 | O97: 34132050 | P97: 1.63%
A98: 88 | B98: Others | C98: JUBLFOOD | D98: 2021-05-27 | E98: 2908.85 | F98: 2927.53 | G98: 2883.07 | H98: 2857.28 | I98: 2812.82 | J98: 2953.32 | K98: 2997.78 | L98: 3023.57 | M98: 2972 | N98: 2901.75 | O98: 1286000 | P98: -0.16%
A99: 89 | B99: Banking | C99: KOTAKBANK | D99: 2021-05-27 | E99: 1754.35 | F99: 1769.12 | G99: 1732.23 | H99: 1710.12 | I99: 1673.23 | J99: 1791.23 | K99: 1828.12 | L99: 1850.23 | M99: 1806 | N99: 1747 | O99: 10855200 | P99: 2.15%
A100: 90 | B100: Finance | C100: L&TFH | D100: 2021-05-27 | E100: 87.60 | F100: 88.20 | G100: 86.40 | H100: 85.20 | I100: 83.40 | J100: 89.40 | K100: 91.20 | L100: 92.40 | M100: 90 | N100: 87 | O100: 36249288 | P100: 7.04%
A101: 91 | B101: Others | C101: LALPATHLAB | D101: 2021-05-27 | E101: 2926.00 | F101: 2944.40 | G101: 2896.80 | H101: 2867.60 | I101: 2820.00 | J101: 2973.60 | K101: 3021.20 | L101: 3050.40 | M101: 2992 | N101: 2915.2 | O101: 381500 | P101: 3.88%
A102: 92 | B102: Finance | C102: LICHSGFIN | D102: 2021-05-27 | E102: 406.55 | F102: 410.47 | G102: 401.08 | H102: 395.62 | I102: 386.23 | J102: 415.93 | K102: 425.32 | L102: 430.78 | M102: 419.85 | N102: 405 | O102: 5404000 | P102: 10.11%
A103: 93 | B103: Capital_Goods | C103: LT | D103: 2021-05-27 | E103: 1348.95 | F103: 1355.63 | G103: 1339.27 | H103: 1329.58 | I103: 1313.22 | J103: 1365.32 | K103: 1381.68 | L103: 1391.37 | M103: 1372 | N103: 1345.95 | O103: 14756800 | P103: 3.55%
A104: 94 | B104: Technology | C104: LTI | D104: 2021-05-27 | E104: 3902.15 | F104: 3898.70 | G104: 3847.55 | H104: 3792.95 | I104: 3741.80 | J104: 3953.30 | K104: 4004.45 | L104: 4059.05 | M104: 3949.85 | N104: 3844.1 | O104: 386250 | P104: -0.77%
A105: 95 | B105: Technology | C105: LTTS | D105: 2021-05-27 | E105: 2735.50 | F105: 2711.20 | G105: 2637.40 | H105: 2539.30 | I105: 2465.50 | J105: 2809.30 | K105: 2883.10 | L105: 2981.20 | M105: 2785 | N105: 2613.1 | O105: 478000 | P105: -4.89%
A106: 96 | B106: Pharma | C106: LUPIN | D106: 2021-05-27 | E106: 1074.60 | F106: 1072.65 | G106: 1055.40 | H106: 1036.20 | I106: 1018.95 | J106: 1091.85 | K106: 1109.10 | L106: 1128.30 | M106: 1089.9 | N106: 1053.45 | O106: 8474500 | P106: 0.18%
A107: 97 | B107: Automobile | C107: M&M | D107: 2021-05-27 | E107: 757.25 | F107: 764.55 | G107: 747.70 | H107: 738.15 | I107: 721.30 | J107: 774.10 | K107: 790.95 | L107: 800.50 | M107: 781.4 | N107: 755 | O107: 10696700 | P107: 6.76%
A108: 98 | B108: Finance | C108: M&MFIN | D108: 2021-05-27 | E108: 162.60 | F108: 162.28 | G108: 158.57 | H108: 154.53 | I108: 150.82 | J108: 166.32 | K108: 170.03 | L108: 174.07 | M108: 166 | N108: 158.25 | O108: 17600000 | P108: 3.72%
A109: 99 | B109: Finance | C109: MANAPPURAM | D109: 2021-05-27 | E109: 148.95 | F109: 149.57 | G109: 144.93 | H109: 140.92 | I109: 136.28 | J109: 153.58 | K109: 158.22 | L109: 162.23 | M109: 154.2 | N109: 145.55 | O109: 23076000 | P109: 0.18%
A110: 100 | B110: FMCG | C110: MARICO | D110: 2021-05-27 | E110: 413.45 | F110: 413.43 | G110: 403.07 | H110: 392.68 | I110: 382.32 | J110: 423.82 | K110: 434.18 | L110: 444.57 | M110: 423.8 | N110: 403.05 | O110: 7816000 | P110: 8.62%
A111: 101 | B111: Automobile | C111: MARUTI | D111: 2021-05-27 | E111: 6486.90 | F111: 6515.47 | G111: 6436.58 | H111: 6386.27 | I111: 6307.38 | J111: 6565.78 | K111: 6644.67 | L111: 6694.98 | M111: 6594.35 | N111: 6465.15 | O111: 2684200 | P111: 5.47%
A112: 102 | B112: FMCG | C112: MCDOWELL-N | D112: 2021-05-27 | E112: 522.25 | F112: 525.70 | G112: 515.95 | H112: 509.65 | I112: 499.90 | J112: 532.00 | K112: 541.75 | L112: 548.05 | M112: 535.45 | N112: 519.4 | O112: 13721250 | P112: 3.67%
A113: 103 | B113: Finance | C113: MFSL | D113: 2021-05-27 | E113: 900.00 | F113: 906.38 | G113: 889.02 | H113: 878.03 | I113: 860.67 | J113: 917.37 | K113: 934.73 | L113: 945.72 | M113: 923.75 | N113: 895.4 | O113: 2049450 | P113: 3.24%
A114: 104 | B114: Oil_Gas | C114: MGL | D114: 2021-05-27 | E114: 1131.10 | F114: 1125.18 | G114: 1100.32 | H114: 1069.53 | I114: 1044.67 | J114: 1155.97 | K114: 1180.83 | L114: 1211.62 | M114: 1150.05 | N114: 1094.4 | O114: 1396800 | P114: 3.56%
A115: 105 | B115: Technology | C115: MINDTREE | D115: 2021-05-27 | E115: 2115.55 | F115: 2121.37 | G115: 2095.73 | H115: 2075.92 | I115: 2050.28 | J115: 2141.18 | K115: 2166.82 | L115: 2186.63 | M115: 2147 | N115: 2101.55 | O115: 1509200 | P115: 5.10%
A116: 106 | B116: Automobile | C116: MOTHERSUMI | D116: 2021-05-27 | E116: 216.05 | F116: 218.23 | G116: 213.32 | H116: 210.58 | I116: 205.67 | J116: 220.97 | K116: 225.88 | L116: 228.62 | M116: 223.15 | N116: 215.5 | O116: 29326500 | P116: 3.85%
A117: 107 | B117: Technology | C117: MPHASIS | D117: 2021-05-27 | E117: 1767.95 | F117: 1753.28 | G117: 1711.77 | H117: 1655.58 | I117: 1614.07 | J117: 1809.47 | K117: 1850.98 | L117: 1907.17 | M117: 1794.8 | N117: 1697.1 | O117: 251550 | P117: -3.85%
A118: 108 | B118: Automobile | C118: MRF | D118: 2021-05-27 | E118: 81170.05 | F118: 80289.17 | G118: 78333.38 | H118: 75496.72 | I118: 73540.93 | J118: 83125.83 | K118: 85081.62 | L118: 87918.28 | M118: 82244.95 | N118: 77452.5 | O118: 41600 | P118: 9.22%
A119: 109 | B119: Finance | C119: MUTHOOTFIN | D119: 2021-05-27 | E119: 1163.20 | F119: 1171.67 | G119: 1148.53 | H119: 1133.87 | I119: 1110.73 | J119: 1186.33 | K119: 1209.47 | L119: 1224.13 | M119: 1194.8 | N119: 1157 | O119: 2939250 | P119: 6.29%
A120: 110 | B120: Others | C120: NAM-INDIA | D120: 2021-05-27 | E120: 342.95 | F120: 343.67 | G120: 340.28 | H120: 337.62 | I120: 334.23 | J120: 346.33 | K120: 349.72 | L120: 352.38 | M120: 347.05 | N120: 341 | O120: 1724800 | P120: -2.53%
A121: 111 | B121: Metals | C121: NATIONALUM | D121: 2021-05-27 | E121: 64.90 | F121: 65.25 | G121: 63.70 | H121: 62.50 | I121: 60.95 | J121: 66.45 | K121: 68.00 | L121: 69.20 | M121: 66.8 | N121: 64.05 | O121: 83844000 | P121: -1.81%
A122: 112 | B122: Others | C122: NAUKRI | D122: 2021-05-27 | E122: 4942.75 | F122: 4970.57 | G122: 4875.98 | H122: 4809.22 | I122: 4714.63 | J122: 5037.33 | K122: 5131.92 | L122: 5198.68 | M122: 5065.15 | N122: 4903.8 | O122: 982375 | P122: 0.78%
A123: 113 | B123: Chemical | C123: NAVINFLUOR | D123: 2021-05-27 | E123: 3446.90 | F123: 3453.08 | G123: 3351.47 | H123: 3256.03 | I123: 3154.42 | J123: 3548.52 | K123: 3650.13 | L123: 3745.57 | M123: 3554.7 | N123: 3357.65 | O123: 373500 | P123: 19.17%
A124: 114 | B124: FMCG | C124: NESTLEIND | D124: 2021-05-27 | E124: 16412.00 | F124: 16471.87 | G124: 16323.58 | H124: 16235.17 | I124: 16086.88 | J124: 16560.28 | K124: 16708.57 | L124: 16796.98 | M124: 16620.15 | N124: 16383.45 | O124: 310150 | P124: 3.30%
A125: 115 | B125: Metals | C125: NMDC | D125: 2021-05-27 | E125: 156.20 | F125: 156.32 | G125: 153.33 | H125: 150.47 | I125: 147.48 | J125: 159.18 | K125: 162.17 | L125: 165.03 | M125: 159.3 | N125: 153.45 | O125: 42605300 | P125: -3.84%
A126: 116 | B126: Power | C126: NTPC | D126: 2021-05-27 | E126: 103.10 | F126: 103.92 | G126: 101.53 | H126: 99.97 | I126: 97.58 | J126: 105.48 | K126: 107.87 | L126: 109.43 | M126: 106.3 | N126: 102.35 | O126: 69283500 | P126: 2.01%
A127: 117 | B127: Oil_Gas | C127: ONGC | D127: 2021-05-27 | E127: 108.70 | F127: 108.63 | G127: 104.07 | H127: 99.43 | I127: 94.87 | J127: 113.27 | K127: 117.83 | L127: 122.47 | M127: 113.2 | N127: 104 | O127: 38430700 | P127: 17.99%
A128: 118 | B128: Textile | C128: PAGEIND | D128: 2021-05-27 | E128: 29746.35 | F128: 29790.52 | G128: 29476.03 | H128: 29205.72 | I128: 28891.23 | J128: 30060.83 | K128: 30375.32 | L128: 30645.63 | M128: 30105 | N128: 29520.2 | O128: 63870 | P128: -1.53%
A129: 119 | B129: Pharma | C129: PEL | D129: 2021-05-27 | E129: 1685.20 | F129: 1693.97 | G129: 1666.48 | H129: 1647.77 | I129: 1620.28 | J129: 1712.68 | K129: 1740.17 | L129: 1758.88 | M129: 1721.45 | N129: 1675.25 | O129: 3404775 | P129: 0.28%
A130: 120 | B130: Oil_Gas | C130: PETRONET | D130: 2021-05-27 | E130: 241.10 | F130: 240.83 | G130: 236.62 | H130: 232.13 | I130: 227.92 | J130: 245.32 | K130: 249.53 | L130: 254.02 | M130: 245.05 | N130: 236.35 | O130: 16467000 | P130: 2.18%
A131: 121 | B131: Finance | C131: PFC | D131: 2021-05-27 | E131: 108.90 | F131: 108.80 | G131: 106.35 | H131: 103.80 | I131: 101.35 | J131: 111.35 | K131: 113.80 | L131: 116.35 | M131: 111.25 | N131: 106.25 | O131: 31359600 | P131: 1.38%
A132: 122 | B132: Pharma | C132: PFIZER | D132: 2021-05-27 | E132: 5299.00 | F132: 5336.27 | G132: 5242.78 | H132: 5186.57 | I132: 5093.08 | J132: 5392.48 | K132: 5485.97 | L132: 5542.18 | M132: 5429.75 | N132: 5280.05 | O132: 292625 | P132: 4.18%
A133: 123 | B133: FMCG | C133: PIDILITIND | D133: 2021-05-27 | E133: 1826.30 | F133: 1837.80 | G133: 1808.60 | H133: 1790.90 | I133: 1761.70 | J133: 1855.50 | K133: 1884.70 | L133: 1902.40 | M133: 1867 | N133: 1820.1 | O133: 1921000 | P133: 4.06%
A134: 124 | B134: Chemical | C134: PIIND | D134: 2021-05-27 | E134: 2527.70 | F134: 2552.08 | G134: 2492.57 | H134: 2457.43 | I134: 2397.92 | J134: 2587.22 | K134: 2646.73 | L134: 2681.87 | M134: 2611.6 | N134: 2516.95 | O134: 418250 | P134: 8.50%
A135: 125 | B135: Banking | C135: PNB | D135: 2021-05-27 | E135: 34.95 | F135: 35.18 | G135: 34.47 | H135: 33.98 | I135: 33.27 | J135: 35.67 | K135: 36.38 | L135: 36.87 | M135: 35.9 | N135: 34.7 | O135: 175728000 | P135: -0.62%
A136: 126 | B136: Power | C136: POWERGRID | D136: 2021-05-27 | E136: 221.25 | F136: 220.97 | G136: 218.23 | H136: 215.22 | I136: 212.48 | J136: 223.98 | K136: 226.72 | L136: 229.73 | M136: 223.7 | N136: 217.95 | O136: 19700000 | P136: 3.92%
A137: 127 | B137: Media | C137: PVR | D137: 2021-05-27 | E137: 1136.15 | F137: 1150.40 | G137: 1117.80 | H137: 1099.45 | I137: 1066.85 | J137: 1168.75 | K137: 1201.35 | L137: 1219.70 | M137: 1183 | N137: 1132.05 | O137: 1724459 | P137: 2.76%
A138: 128 | B138: Cement | C138: RAMCOCEM | D138: 2021-05-27 | E138: 989.95 | F138: 980.60 | G138: 956.35 | H138: 922.75 | I138: 898.50 | J138: 1014.20 | K138: 1038.45 | L138: 1072.05 | M138: 1004.85 | N138: 947 | O138: 1670250 | P138: -6.21%
A139: 129 | B139: Banking | C139: RBLBANK | D139: 2021-05-27 | E139: 184.90 | F139: 186.85 | G139: 181.90 | H139: 178.90 | I139: 173.95 | J139: 189.85 | K139: 194.80 | L139: 197.80 | M139: 191.8 | N139: 183.85 | O139: 23374000 | P139: 6.29%
A140: 130 | B140: Power | C140: RECLTD | D140: 2021-05-27 | E140: 128.90 | F140: 129.07 | G140: 126.48 | H140: 124.07 | I140: 121.48 | J140: 131.48 | K140: 134.07 | L140: 136.48 | M140: 131.65 | N140: 126.65 | O140: 15702000 | P140: -0.53%
A141: 131 | B141: Oil_Gas | C141: RELIANCE | D141: 2021-05-27 | E141: 2005.60 | F141: 2016.53 | G141: 1989.07 | H141: 1972.53 | I141: 1945.07 | J141: 2033.07 | K141: 2060.53 | L141: 2077.07 | M141: 2044 | N141: 2000 | O141: 28383250 | P141: 5.85%
A142: 132 | B142: Metals | C142: SAIL | D142: 2021-05-27 | E142: 120.30 | F142: 117.43 | G142: 112.87 | H142: 105.43 | I142: 100.87 | J142: 124.87 | K142: 129.43 | L142: 136.87 | M142: 122 | N142: 110 | O142: 125960500 | P142: 22.50%
A143: 133 | B143: Finance | C143: SBILIFE | D143: 2021-05-27 | E143: 934.45 | F143: 935.03 | G143: 923.07 | H143: 911.68 | I143: 899.72 | J143: 946.42 | K143: 958.38 | L143: 969.77 | M143: 947 | N143: 923.65 | O143: 4428000 | P143: 2.34%
A144: 134 | B144: Banking | C144: SBIN | D144: 2021-05-27 | E144: 354.00 | F144: 356.85 | G144: 349.35 | H144: 344.70 | I144: 337.20 | J144: 361.50 | K144: 369.00 | L144: 373.65 | M144: 364.35 | N144: 352.2 | O144: 91645500 | P144: -1.60%
A145: 135 | B145: Cement | C145: SHREECEM | D145: 2021-05-27 | E145: 28079.50 | F145: 28176.57 | G145: 27753.13 | H145: 27426.77 | I145: 27003.33 | J145: 28502.93 | K145: 28926.37 | L145: 29252.73 | M145: 28600 | N145: 27850.2 | O145: 156325 | P145: 1.41%
A146: 136 | B146: Capital_Goods | C146: SIEMENS | D146: 2021-05-27 | E146: 1892.95 | F146: 1897.80 | G146: 1873.60 | H146: 1854.25 | I146: 1830.05 | J146: 1917.15 | K146: 1941.35 | L146: 1960.70 | M146: 1922 | N146: 1878.45 | O146: 932525 | P146: 2.94%
A147: 137 | B147: Textile | C147: SRF | D147: 2021-05-27 | E147: 6462.90 | F147: 6495.65 | G147: 6377.35 | H147: 6291.80 | I147: 6173.50 | J147: 6581.20 | K147: 6699.50 | L147: 6785.05 | M147: 6613.95 | N147: 6410.1 | O147: 438625 | P147: 4.47%
A148: 138 | B148: Finance | C148: SRTRANSFIN | D148: 2021-05-27 | E148: 1350.35 | F148: 1380.67 | G148: 1310.68 | H148: 1271.02 | I148: 1201.03 | J148: 1420.33 | K148: 1490.32 | L148: 1529.98 | M148: 1450.65 | N148: 1341 | O148: 3996000 | P148: -1.19%
A149: 139 | B149: Pharma | C149: SUNPHARMA | D149: 2021-05-27 | E149: 658.45 | F149: 657.20 | G149: 643.95 | H149: 629.45 | I149: 616.20 | J149: 671.70 | K149: 684.95 | L149: 699.45 | M149: 670.45 | N149: 642.7 | O149: 40947200 | P149: 3.54%
A150: 140 | B150: Media | C150: SUNTV | D150: 2021-05-27 | E150: 546.85 | F150: 541.30 | G150: 527.60 | H150: 508.35 | I150: 494.65 | J150: 560.55 | K150: 574.25 | L150: 593.50 | M150: 555 | N150: 522.05 | O150: 15130500 | P150: 11.10%
A151: 141 | B151: Chemical | C151: TATACHEM | D151: 2021-05-27 | E151: 796.80 | F151: 784.92 | G151: 767.88 | H151: 738.97 | I151: 721.93 | J151: 813.83 | K151: 830.87 | L151: 859.78 | M151: 801.95 | N151: 756 | O151: 8979000 | P151: 6.18%
A152: 142 | B152: FMCG | C152: TATACONSUM | D152: 2021-05-27 | E152: 670.75 | F152: 673.53 | G152: 665.62 | H152: 660.48 | I152: 652.57 | J152: 678.67 | K152: 686.58 | L152: 691.72 | M152: 681.45 | N152: 668.4 | O152: 6930900 | P152: 4.58%
A153: 143 | B153: Automobile | C153: TATAMOTORS | D153: 2021-05-27 | E153: 294.75 | F153: 297.02 | G153: 291.18 | H153: 287.62 | I153: 281.78 | J153: 300.58 | K153: 306.42 | L153: 309.98 | M153: 302.85 | N153: 293.45 | O153: 95338200 | P153: 2.17%
A154: 144 | B154: Power | C154: TATAPOWER | D154: 2021-05-27 | E154: 99.30 | F154: 99.30 | G154: 96.70 | H154: 94.10 | I154: 91.50 | J154: 101.90 | K154: 104.50 | L154: 107.10 | M154: 101.9 | N154: 96.7 | O154: 118975500 | P154: -0.71%
A155: 145 | B155: Metals | C155: TATASTEEL | D155: 2021-05-27 | E155: 1037.90 | F155: 1036.67 | G155: 1016.63 | H155: 995.37 | I155: 975.33 | J155: 1057.93 | K155: 1077.97 | L155: 1099.23 | M155: 1056.7 | N155: 1015.4 | O155: 46794200 | P155: -3.38%
A156: 146 | B156: Technology | C156: TCS | D156: 2021-05-27 | E156: 3052.50 | F156: 3077.37 | G156: 3012.33 | H156: 2972.17 | I156: 2907.13 | J156: 3117.53 | K156: 3182.57 | L156: 3222.73 | M156: 3142.4 | N156: 3037.2 | O156: 6720000 | P156: 16.06%
A157: 147 | B157: Technology | C157: TECHM | D157: 2021-05-27 | E157: 964.90 | F157: 969.00 | G157: 957.55 | H157: 950.20 | I157: 938.75 | J157: 976.35 | K157: 987.80 | L157: 995.15 | M157: 980.45 | N157: 961.65 | O157: 11047800 | P157: 5.25%
A158: 148 | B158: FMCG | C158: TITAN | D158: 2021-05-27 | E158: 1496.45 | F158: 1498.68 | G158: 1473.37 | H158: 1450.28 | I158: 1424.97 | J158: 1521.77 | K158: 1547.08 | L158: 1570.17 | M158: 1524 | N158: 1475.6 | O158: 5224500 | P158: -4.54%
A159: 149 | B159: Pharma | C159: TORNTPHARM | D159: 2021-05-27 | E159: 2525.05 | F159: 2523.88 | G159: 2488.57 | H159: 2452.08 | I159: 2416.77 | J159: 2560.37 | K159: 2595.68 | L159: 2632.17 | M159: 2559.2 | N159: 2487.4 | O159: 1013000 | P159: 3.03%
A160: 150 | B160: Power | C160: TORNTPOWER | D160: 2021-05-27 | E160: 397.10 | F160: 391.23 | G160: 381.02 | H160: 364.93 | I160: 354.72 | J160: 407.32 | K160: 417.53 | L160: 433.62 | M160: 401.45 | N160: 375.15 | O160: 1839000 | P160: -4.67%
A161: 151 | B161: Others | C161: TRENT | D161: 2021-05-27 | E161: 783.10 | F161: 780.70 | G161: 766.60 | H161: 750.10 | I161: 736.00 | J161: 797.20 | K161: 811.30 | L161: 827.80 | M161: 794.8 | N161: 764.2 | O161: 1118675 | P161: 10.85%
A162: 152 | B162: Automobile | C162: TVSMOTOR | D162: 2021-05-27 | E162: 633.45 | F162: 634.08 | G162: 624.97 | H162: 616.48 | I162: 607.37 | J162: 642.57 | K162: 651.68 | L162: 660.17 | M162: 643.2 | N162: 625.6 | O162: 4898600 | P162: 0.09%
A163: 153 | B163: FMCG | C163: UBL | D163: 2021-05-27 | E163: 1210.25 | F163: 1210.65 | G163: 1198.40 | H163: 1186.55 | I163: 1174.30 | J163: 1222.50 | K163: 1234.75 | L163: 1246.60 | M163: 1222.9 | N163: 1198.8 | O163: 1007300 | P163: 3.23%
A164: 154 | B164: Cement | C164: ULTRACEMCO | D164: 2021-05-27 | E164: 6306.70 | F164: 6343.40 | G164: 6241.00 | H164: 6175.30 | I164: 6072.90 | J164: 6409.10 | K164: 6511.50 | L164: 6577.20 | M164: 6445.8 | N164: 6277.7 | O164: 2400300 | P164: -0.20%
A165: 155 | B165: Chemical | C165: UPL | D165: 2021-05-27 | E165: 610.55 | F165: 614.07 | G165: 604.73 | H165: 598.92 | I165: 589.58 | J165: 619.88 | K165: 629.22 | L165: 635.03 | M165: 623.4 | N165: 608.25 | O165: 18320900 | P165: -0.13%
A166: 156 | B166: Metals | C166: VEDL | D166: 2021-05-27 | E166: 258.30 | F166: 259.68 | G166: 252.12 | H166: 245.93 | I166: 238.37 | J166: 265.87 | K166: 273.43 | L166: 279.62 | M166: 267.25 | N166: 253.5 | O166: 67604800 | P166: 0.27%
A167: 157 | B167: Capital_Goods | C167: VOLTAS | D167: 2021-05-27 | E167: 959.80 | F167: 966.23 | G167: 950.87 | H167: 941.93 | I167: 926.57 | J167: 975.17 | K167: 990.53 | L167: 999.47 | M167: 981.6 | N167: 957.3 | O167: 3368500 | P167: 1.80%
A168: 158 | B168: Technology | C168: WIPRO | D168: 2021-05-27 | E168: 493.85 | F168: 499.13 | G168: 485.82 | H168: 477.78 | I168: 464.47 | J168: 507.17 | K168: 520.48 | L168: 528.52 | M168: 512.45 | N168: 491.1 | O168: 30022400 | P168: 5.78%
A169: 159 | B169: Media | C169: ZEEL | D169: 2021-05-27 | E169: 186.35 | F169: 187.78 | G169: 183.57 | H169: 180.78 | I169: 176.57 | J169: 190.57 | K169: 194.78 | L169: 197.57 | M169: 192 | N169: 185 | O169: 66711000 | P169: 4.60%
A175: Pivot Point: This is trigger point for intra day buy/sell based on the price range of the previous day
A176: As per the tool,the trader should take BUY position just above Pivot and keep the stop loss of pivot point and the first target would be Resistance 1(R1)
A177: If R1 is crossed then R2 becomes the next target with stop loss of at R1
A178: Similarly if price goes below pivot point then the trader should sell and keep a stop loss of pivot point and the first target would be S1
A179: If S1 is crossed then S2 becomes the next target with stop loss of at S1
A181: Disclaimer:
A182: This document has been prepared by the Retail Research Desk of Asit C Mehta
A183: Investment Intermediates Ltd. and is meant for use of the recipient only
A184: and is not for circulation. This document is not to be reported or
A185: copied or made available to others. It should not be considered to be
A186: taken as an offer to sell or a solicitation to buy any security. The
A187: information contained herein is from sources believed reliable. We do
A188: not represent that it is accurate or complete and it should not be
A189: relied upon as such. We may from time to time have positions in and buy
A190: and sell securities referred to herein

Sheet Cash Intra
M5: Back to Main Page
A6: FOR INTRA DAY TRADING | K6: =Main!B10 -> 2021-05-03
A8: Sr.no | B8: Scrip | C8: CLOSE RATE | D8: Pivot Point | E8: Supports | H8: Resistances
C9: Point | E9: S1 | F9: S2 | G9: S3 | H9: R1 | I9: R2 | J9: R3 | K9: HIGH | L9: LOW | M9: Total Trade Quanity in Lakhs
A10: 1 | B10: Nifty 50 | C10: 14631.1 | D10: 14696.08 | E10: 14536.72 | F10: 14442.33 | G10: 14282.97 | H10: 14790.47 | I10: 14949.83 | J10: 15044.22 | K10: 14855.45 | L10: 14601.7
A11: 2 | B11: Nifty Bank | C11: 32781.8 | D11: 32966.82 | E11: 32478.38 | F11: 32174.97 | G11: 31686.53 | H11: 33270.23 | I11: 33758.67 | J11: 34062.08 | K11: 33455.25 | L11: 32663.4
A12: 3 | B12: Nifty CPSE | C12: 1813.75 | D12: 1810.15 | E12: 1774.45 | F12: 1735.15 | G12: 1699.45 | H12: 1849.45 | I12: 1885.15 | J12: 1924.45 | K12: 1845.85 | L12: 1770.85
A13: 4 | B13: Nifty Infra | C13: 4053.1 | D13: 4067.30 | E13: 4017.40 | F13: 3981.70 | G13: 3931.80 | H13: 4103.00 | I13: 4152.90 | J13: 4188.60 | K13: 4117.2 | L13: 4031.6
A14: 5 | B14: Nifty IT | C14: 25664.45 | D14: 25804.22 | E14: 25454.13 | F14: 25243.82 | G14: 24893.73 | H14: 26014.53 | I14: 26364.62 | J14: 26574.93 | K14: 26154.3 | L14: 25593.9
A15: 6 | B15: Nifty PSE | C15: 3175.85 | D15: 3165.05 | E15: 3104.10 | F15: 3032.35 | G15: 2971.40 | H15: 3236.80 | I15: 3297.75 | J15: 3369.50 | K15: 3226 | L15: 3093.3
A16: 7 | B16: Nifty Midcap 50 | C16: 6725.2 | D16: 6741.28 | E16: 6661.07 | F16: 6596.93 | G16: 6516.72 | H16: 6805.42 | I16: 6885.63 | J16: 6949.77 | K16: 6821.5 | L16: 6677.15
A17: 8 | B17: ACC | C17: 1882.75 | D17: 1880.42 | E17: 1857.38 | F17: 1832.02 | G17: 1808.98 | H17: 1905.78 | I17: 1928.82 | J17: 1954.18 | K17: 1903.45 | L17: 1855.05 | M17: 10.81167
A18: 9 | B18: AUBANK | C18: 1004.3 | D18: 1027.78 | E18: 971.57 | F18: 938.83 | G18: 882.62 | H18: 1060.52 | I18: 1116.73 | J18: 1149.47 | K18: 1084 | L18: 995.05 | M18: 69.57375
A19: 10 | B19: AARTIIND | C19: 1604.85 | D19: 1593.37 | E19: 1541.98 | F19: 1479.12 | G19: 1427.73 | H19: 1656.23 | I19: 1707.62 | J19: 1770.48 | K19: 1644.75 | L19: 1530.5 | M19: 9.72527
A20: 11 | B20: ABBOTINDIA | C20: 15151.75 | D20: 15098.90 | E20: 14902.85 | F20: 14653.95 | G20: 14457.90 | H20: 15347.80 | I20: 15543.85 | J20: 15792.75 | K20: 15294.95 | L20: 14850 | M20: 0.11975
A21: 12 | B21: ADANIENT | C21: 1158.7 | D21: 1167.55 | E21: 1134.15 | F21: 1109.60 | G21: 1076.20 | H21: 1192.10 | I21: 1225.50 | J21: 1250.05 | K21: 1200.95 | L21: 1143 | M21: 42.325
A22: 13 | B22: ADANIGREEN | C22: 1018.95 | D22: 1026.18 | E22: 1003.77 | F22: 988.58 | G22: 966.17 | H22: 1041.37 | I22: 1063.78 | J22: 1078.97 | K22: 1048.6 | L22: 1011 | M22: 4.66631
A23: 14 | B23: ADANIPORTS | C23: 730.05 | D23: 738.00 | E23: 716.55 | F23: 703.05 | G23: 681.60 | H23: 751.50 | I23: 772.95 | J23: 786.45 | K23: 759.45 | L23: 724.5 | M23: 126.00934
A24: 15 | B24: ATGL | C24: 1150.75 | D24: 1146.45 | E24: 1133.30 | F24: 1115.85 | G24: 1102.70 | H24: 1163.90 | I24: 1177.05 | J24: 1194.50 | K24: 1159.6 | L24: 1129 | M24: 12.75816
A25: 16 | B25: ADANITRANS | C25: 1049.9 | D25: 1048.37 | E25: 1036.73 | F25: 1023.57 | G25: 1011.93 | H25: 1061.53 | I25: 1073.17 | J25: 1086.33 | K25: 1060 | L25: 1035.2 | M25: 4.3922
A26: 17 | B26: ABCAPITAL | C26: 114.55 | D26: 114.78 | E26: 113.12 | F26: 111.68 | G26: 110.02 | H26: 116.22 | I26: 117.88 | J26: 119.32 | K26: 116.45 | L26: 113.35 | M26: 20.19593
A27: 18 | B27: ABFRL | C27: 175 | D27: 175.93 | E27: 173.37 | F27: 171.73 | G27: 169.17 | H27: 177.57 | I27: 180.13 | J27: 181.77 | K27: 178.5 | L27: 174.3 | M27: 19.34646
A28: 19 | B28: AJANTPHARM | C28: 1840.1 | D28: 1865.13 | E28: 1800.27 | F28: 1760.43 | G28: 1695.57 | H28: 1904.97 | I28: 1969.83 | J28: 2009.67 | K28: 1930 | L28: 1825.3 | M28: 2.89772
A29: 20 | B29: APLLTD | C29: 985.7 | D29: 985.20 | E29: 975.50 | F29: 965.30 | G29: 955.60 | H29: 995.40 | I29: 1005.10 | J29: 1015.30 | K29: 994.9 | L29: 975 | M29: 2.49981
A30: 21 | B30: ALKEM | C30: 2759.05 | D30: 2753.12 | E30: 2718.23 | F30: 2677.42 | G30: 2642.53 | H30: 2793.93 | I30: 2828.82 | J30: 2869.63 | K30: 2788 | L30: 2712.3 | M30: 1.334
A31: 22 | B31: AMARAJABAT | C31: 810.75 | D31: 807.08 | E31: 799.27 | F31: 787.78 | G31: 779.97 | H31: 818.57 | I31: 826.38 | J31: 837.87 | K31: 814.9 | L31: 795.6 | M31: 9.17883
A32: 23 | B32: AMBUJACEM | C32: 309.05 | D32: 311.88 | E32: 303.92 | F32: 298.78 | G32: 290.82 | H32: 317.02 | I32: 324.98 | J32: 330.12 | K32: 319.85 | L32: 306.75 | M32: 198.22885
A33: 24 | B33: APOLLOHOSP | C33: 3197.5 | D33: 3230.10 | E33: 3150.20 | F33: 3102.90 | G33: 3023.00 | H33: 3277.40 | I33: 3357.30 | J33: 3404.60 | K33: 3310 | L33: 3182.8 | M33: 9.06562
A34: 25 | B34: APOLLOTYRE | C34: 216.35 | D34: 214.32 | E34: 205.03 | F34: 193.72 | G34: 184.43 | H34: 225.63 | I34: 234.92 | J34: 246.23 | K34: 223.6 | L34: 203 | M34: 197.47072
A35: 26 | B35: ASHOKLEY | C35: 112.7 | D35: 113.52 | E35: 111.28 | F35: 109.87 | G35: 107.63 | H35: 114.93 | I35: 117.17 | J35: 118.58 | K35: 115.75 | L35: 112.1 | M35: 179.70808
A36: 27 | B36: ASIANPAINT | C36: 2536.4 | D36: 2555.42 | E36: 2505.03 | F36: 2473.67 | G36: 2423.28 | H36: 2586.78 | I36: 2637.17 | J36: 2668.53 | K36: 2605.8 | L36: 2524.05 | M36: 13.84907
A37: 28 | B37: AUROPHARMA | C37: 980.85 | D37: 977.95 | E37: 966.90 | F37: 952.95 | G37: 941.90 | H37: 991.90 | I37: 1002.95 | J37: 1016.90 | K37: 989 | L37: 964 | M37: 20.09351
A38: 29 | B38: DMART | C38: 2852.9 | D38: 2867.90 | E38: 2803.90 | F38: 2754.90 | G38: 2690.90 | H38: 2916.90 | I38: 2980.90 | J38: 3029.90 | K38: 2931.9 | L38: 2818.9 | M38: 3.22948
A39: 30 | B39: AXISBANK | C39: 714.9 | D39: 716.58 | E39: 703.32 | F39: 691.73 | G39: 678.47 | H39: 728.17 | I39: 741.43 | J39: 753.02 | K39: 729.85 | L39: 705 | M39: 230.11654
A40: 31 | B40: BAJAJ-AUTO | C40: 3833.75 | D40: 3866.70 | E40: 3767.05 | F40: 3700.35 | G40: 3600.70 | H40: 3933.40 | I40: 4033.05 | J40: 4099.75 | K40: 3966.35 | L40: 3800 | M40: 13.40273
A41: 32 | B41: BAJFINANCE | C41: 5451.9 | D41: 5434.75 | E41: 5344.85 | F41: 5237.80 | G41: 5147.90 | H41: 5541.80 | I41: 5631.70 | J41: 5738.75 | K41: 5524.65 | L41: 5327.7 | M41: 41.24888
A42: 33 | B42: BAJAJFINSV | C42: 11041.65 | D42: 11045.12 | E42: 10865.23 | F42: 10688.82 | G42: 10508.93 | H42: 11221.53 | I42: 11401.42 | J42: 11577.83 | K42: 11225 | L42: 10868.7 | M42: 8.35355
A43: 34 | B43: BAJAJHLDNG | C43: 3421.2 | D43: 3493.40 | E43: 3337.80 | F43: 3254.40 | G43: 3098.80 | H43: 3576.80 | I43: 3732.40 | J43: 3815.80 | K43: 3649 | L43: 3410 | M43: 0.80888
A44: 35 | B44: BALKRISIND | C44: 1769.95 | D44: 1771.70 | E44: 1736.00 | F44: 1702.05 | G44: 1666.35 | H44: 1805.65 | I44: 1841.35 | J44: 1875.30 | K44: 1807.4 | L44: 1737.75 | M44: 4.17325
A45: 36 | B45: BANDHANBNK | C45: 329.75 | D45: 331.47 | E45: 322.98 | F45: 316.22 | G45: 307.73 | H45: 338.23 | I45: 346.72 | J45: 353.48 | K45: 339.95 | L45: 324.7 | M45: 89.61859
A46: 37 | B46: BANKBARODA | C46: 66.75 | D46: 66.73 | E46: 65.07 | F46: 63.38 | G46: 61.72 | H46: 68.42 | I46: 70.08 | J46: 71.77 | K46: 68.4 | L46: 65.05 | M46: 511.82287
A47: 38 | B47: BANKINDIA | C47: 66.35 | D47: 66.38 | E47: 64.97 | F47: 63.58 | G47: 62.17 | H47: 67.77 | I47: 69.18 | J47: 70.57 | K47: 67.8 | L47: 65 | M47: 40.98425
A48: 39 | B48: BATAINDIA | C48: 1369.55 | D48: 1362.33 | E48: 1342.22 | F48: 1314.88 | G48: 1294.77 | H48: 1389.67 | I48: 1409.78 | J48: 1437.12 | K48: 1382.45 | L48: 1335 | M48: 8.22288
A49: 40 | B49: BERGEPAINT | C49: 704 | D49: 707.08 | E49: 697.37 | F49: 690.73 | G49: 681.02 | H49: 713.72 | I49: 723.43 | J49: 730.07 | K49: 716.8 | L49: 700.45 | M49: 5.83146
A50: 41 | B50: BEL | C50: 131.75 | D50: 132.00 | E50: 127.55 | F50: 123.35 | G50: 118.90 | H50: 136.20 | I50: 140.65 | J50: 144.85 | K50: 136.45 | L50: 127.8 | M50: 177.29247
A51: 42 | B51: BHARATFORG | C51: 610.4 | D51: 608.88 | E51: 596.77 | F51: 583.13 | G51: 571.02 | H51: 622.52 | I51: 634.63 | J51: 648.27 | K51: 621 | L51: 595.25 | M51: 30.22088
A52: 43 | B52: BHEL | C52: 48.3 | D52: 47.97 | E52: 46.53 | F52: 44.77 | G52: 43.33 | H52: 49.73 | I52: 51.17 | J52: 52.93 | K52: 49.4 | L52: 46.2 | M52: 628.14554
A53: 44 | B53: BPCL | C53: 421.8 | D53: 424.65 | E53: 411.80 | F53: 401.80 | G53: 388.95 | H53: 434.65 | I53: 447.50 | J53: 457.50 | K53: 437.5 | L53: 414.65 | M53: 168.5147
A54: 45 | B54: BHARTIARTL | C54: 536.75 | D54: 539.08 | E54: 531.17 | F54: 525.58 | G54: 517.67 | H54: 544.67 | I54: 552.58 | J54: 558.17 | K54: 547 | L54: 533.5 | M54: 81.78192
A55: 46 | B55: BIOCON | C55: 379.65 | D55: 383.22 | E55: 374.63 | F55: 369.62 | G55: 361.03 | H55: 388.23 | I55: 396.82 | J55: 401.83 | K55: 391.8 | L55: 378.2 | M55: 97.10688
A56: 47 | B56: BBTC | C56: 1161 | D56: 1166.32 | E56: 1144.68 | F56: 1128.37 | G56: 1106.73 | H56: 1182.63 | I56: 1204.27 | J56: 1220.58 | K56: 1187.95 | L56: 1150 | M56: 0.44533
A57: 48 | B57: BOSCHLTD | C57: 13509 | D57: 13533.02 | E57: 13436.03 | F57: 13363.07 | G57: 13266.08 | H57: 13605.98 | I57: 13702.97 | J57: 13775.93 | K57: 13630 | L57: 13460.05 | M57: 0.15105
A58: 49 | B58: BRITANNIA | C58: 3449 | D58: 3451.45 | E58: 3434.55 | F58: 3420.10 | G58: 3403.20 | H58: 3465.90 | I58: 3482.80 | J58: 3497.25 | K58: 3468.35 | L58: 3437 | M58: 4.36187
A59: 50 | B59: CESC | C59: 607.95 | D59: 611.47 | E59: 600.63 | F59: 593.32 | G59: 582.48 | H59: 618.78 | I59: 629.62 | J59: 636.93 | K59: 622.3 | L59: 604.15 | M59: 3.46497
A60: 51 | B60: CADILAHC | C60: 571.15 | D60: 569.37 | E60: 559.88 | F60: 548.62 | G60: 539.13 | H60: 580.63 | I60: 590.12 | J60: 601.38 | K60: 578.85 | L60: 558.1 | M60: 97.69446
A61: 52 | B61: CANBK | C61: 138.75 | D61: 139.72 | E61: 135.53 | F61: 132.32 | G61: 128.13 | H61: 142.93 | I61: 147.12 | J61: 150.33 | K61: 143.9 | L61: 136.5 | M61: 188.5985
A62: 53 | B62: CASTROLIND | C62: 125.75 | D62: 125.68 | E62: 125.07 | F62: 124.38 | G62: 123.77 | H62: 126.37 | I62: 126.98 | J62: 127.67 | K62: 126.3 | L62: 125 | M62: 11.07112
A63: 54 | B63: CHOLAFIN | C63: 571.75 | D63: 579.22 | E63: 557.48 | F63: 543.22 | G63: 521.48 | H63: 593.48 | I63: 615.22 | J63: 629.48 | K63: 600.95 | L63: 564.95 | M63: 54.81211
A64: 55 | B64: CIPLA | C64: 910.35 | D64: 910.70 | E64: 900.40 | F64: 890.45 | G64: 880.15 | H64: 920.65 | I64: 930.95 | J64: 940.90 | K64: 921 | L64: 900.75 | M64: 64.59737
A65: 56 | B65: CUB | C65: 166.75 | D65: 167.20 | E65: 165.05 | F65: 163.35 | G65: 161.20 | H65: 168.90 | I65: 171.05 | J65: 172.75 | K65: 169.35 | L65: 165.5 | M65: 14.47507
A66: 57 | B66: COALINDIA | C66: 133.05 | D66: 131.55 | E66: 128.50 | F66: 123.95 | G66: 120.90 | H66: 136.10 | I66: 139.15 | J66: 143.70 | K66: 134.6 | L66: 127 | M66: 273.9695
A67: 58 | B67: COFORGE | C67: 2869.05 | D67: 2869.80 | E67: 2819.85 | F67: 2770.65 | G67: 2720.70 | H67: 2919.00 | I67: 2968.95 | J67: 3018.15 | K67: 2919.75 | L67: 2820.6 | M67: 4.73597
A68: 59 | B68: COLPAL | C68: 1481.9 | D68: 1480.97 | E68: 1468.93 | F68: 1455.97 | G68: 1443.93 | H68: 1493.93 | I68: 1505.97 | J68: 1518.93 | K68: 1493 | L68: 1468 | M68: 7.25194
A69: 60 | B69: CONCOR | C69: 589.9 | D69: 582.07 | E69: 559.13 | F69: 528.37 | G69: 505.43 | H69: 612.83 | I69: 635.77 | J69: 666.53 | K69: 605 | L69: 551.3 | M69: 64.93359
A70: 61 | B70: COROMANDEL | C70: 741.9 | D70: 732.63 | E70: 720.27 | F70: 698.63 | G70: 686.27 | H70: 754.27 | I70: 766.63 | J70: 788.27 | K70: 745 | L70: 711 | M70: 7.5345
A71: 62 | B71: CROMPTON | C71: 384.9 | D71: 381.40 | E71: 376.80 | F71: 368.70 | G71: 364.10 | H71: 389.50 | I71: 394.10 | J71: 402.20 | K71: 386 | L71: 373.3 | M71: 15.48079
A72: 63 | B72: CUMMINSIND | C72: 837.6 | D72: 844.13 | E72: 826.92 | F72: 816.23 | G72: 799.02 | H72: 854.82 | I72: 872.03 | J72: 882.72 | K72: 861.35 | L72: 833.45 | M72: 6.37991
A73: 64 | B73: DLF | C73: 247.3 | D73: 248.32 | E73: 242.13 | F73: 236.97 | G73: 230.78 | H73: 253.48 | I73: 259.67 | J73: 264.83 | K73: 254.5 | L73: 243.15 | M73: 64.42696
A74: 65 | B74: DABUR | C74: 538.05 | D74: 539.67 | E74: 534.08 | F74: 530.12 | G74: 524.53 | H74: 543.63 | I74: 549.22 | J74: 553.18 | K74: 545.25 | L74: 535.7 | M74: 19.60727
A75: 66 | B75: DALBHARAT | C75: 1506.35 | D75: 1517.05 | E75: 1470.10 | F75: 1433.85 | G75: 1386.90 | H75: 1553.30 | I75: 1600.25 | J75: 1636.50 | K75: 1564 | L75: 1480.8 | M75: 2.28082
A76: 67 | B76: DHANI | C76: 176.55 | D76: 177.70 | E76: 171.90 | F76: 167.25 | G76: 161.45 | H76: 182.35 | I76: 188.15 | J76: 192.80 | K76: 183.5 | L76: 173.05 | M76: 22.16564
A77: 68 | B77: DIVISLAB | C77: 4062.35 | D77: 4035.65 | E77: 3936.30 | F77: 3810.25 | G77: 3710.90 | H77: 4161.70 | I77: 4261.05 | J77: 4387.10 | K77: 4135 | L77: 3909.6 | M77: 24.99026
A78: 69 | B78: LALPATHLAB | C78: 2932.7 | D78: 2945.90 | E78: 2906.80 | F78: 2880.90 | G78: 2841.80 | H78: 2971.80 | I78: 3010.90 | J78: 3036.80 | K78: 2985 | L78: 2920 | M78: 5.53159
A79: 70 | B79: DRREDDY | C79: 5163.1 | D79: 5166.42 | E79: 5121.83 | F79: 5080.57 | G79: 5035.98 | H79: 5207.68 | I79: 5252.27 | J79: 5293.53 | K79: 5211 | L79: 5125.15 | M79: 13.0695
A80: 71 | B80: EDELWEISS | C80: 58.45 | D80: 59.07 | E80: 57.43 | F80: 56.42 | G80: 54.78 | H80: 60.08 | I80: 61.72 | J80: 62.73 | K80: 60.7 | L80: 58.05 | M80: 21.88497
A81: 72 | B81: EICHERMOT | C81: 2421.65 | D81: 2435.30 | E81: 2400.35 | F81: 2379.05 | G81: 2344.10 | H81: 2456.60 | I81: 2491.55 | J81: 2512.85 | K81: 2470.25 | L81: 2414 | M81: 6.46257
A82: 73 | B82: EMAMILTD | C82: 491.65 | D82: 492.43 | E82: 488.87 | F82: 486.08 | G82: 482.52 | H82: 495.22 | I82: 498.78 | J82: 501.57 | K82: 496 | L82: 489.65 | M82: 1.22962
A83: 74 | B83: ENDURANCE | C83: 1292.45 | D83: 1295.90 | E83: 1271.80 | F83: 1251.15 | G83: 1227.05 | H83: 1316.55 | I83: 1340.65 | J83: 1361.30 | K83: 1320 | L83: 1275.25 | M83: 1.5018
A84: 75 | B84: ESCORTS | C84: 1118.6 | D84: 1128.87 | E84: 1100.73 | F84: 1082.87 | G84: 1054.73 | H84: 1146.73 | I84: 1174.87 | J84: 1192.73 | K84: 1157 | L84: 1111 | M84: 26.462
A85: 76 | B85: EXIDEIND | C85: 177.95 | D85: 179.18 | E85: 175.62 | F85: 173.28 | G85: 169.72 | H85: 181.52 | I85: 185.08 | J85: 187.42 | K85: 182.75 | L85: 176.85 | M85: 101.21057
A86: 77 | B86: FEDERALBNK | C86: 80.1 | D86: 79.75 | E86: 76.60 | F86: 73.10 | G86: 69.95 | H86: 83.25 | I86: 86.40 | J86: 89.90 | K86: 82.9 | L86: 76.25 | M86: 641.29131
A87: 78 | B87: FORTIS | C87: 210.7 | D87: 212.07 | E87: 208.63 | F87: 206.57 | G87: 203.13 | H87: 214.13 | I87: 217.57 | J87: 219.63 | K87: 215.5 | L87: 210 | M87: 24.44471
A88: 79 | B88: FRETAIL | C88: 51.1 | D88: 50.93 | E88: 49.42 | F88: 47.73 | G88: 46.22 | H88: 52.62 | I88: 54.13 | J88: 55.82 | K88: 52.45 | L88: 49.25 | M88: 39.81346
A89: 80 | B89: GAIL | C89: 137.2 | D89: 136.98 | E89: 132.52 | F89: 127.83 | G89: 123.37 | H89: 141.67 | I89: 146.13 | J89: 150.82 | K89: 141.45 | L89: 132.3 | M89: 213.49478
A90: 81 | B90: GMRINFRA | C90: 22.95 | D90: 22.83 | E90: 22.62 | F90: 22.28 | G90: 22.07 | H90: 23.17 | I90: 23.38 | J90: 23.72 | K90: 23.05 | L90: 22.5 | M90: 166.32975
A91: 82 | B91: GICRE | C91: 204.75 | D91: 204.93 | E91: 201.87 | F91: 198.98 | G91: 195.92 | H91: 207.82 | I91: 210.88 | J91: 213.77 | K91: 208 | L91: 202.05 | M91: 5.84384
A92: 83 | B92: GLENMARK | C92: 576.8 | D92: 575.42 | E92: 566.88 | F92: 556.97 | G92: 548.43 | H92: 585.33 | I92: 593.87 | J92: 603.78 | K92: 583.95 | L92: 565.5 | M92: 36.99395
A93: 84 | B93: GODREJAGRO | C93: 499.35 | D93: 501.05 | E93: 494.40 | F93: 489.45 | G93: 482.80 | H93: 506.00 | I93: 512.65 | J93: 517.60 | K93: 507.7 | L93: 496.1 | M93: 0.75642
A94: 85 | B94: GODREJCP | C94: 691.75 | D94: 696.68 | E94: 682.57 | F94: 673.38 | G94: 659.27 | H94: 705.87 | I94: 719.98 | J94: 729.17 | K94: 710.8 | L94: 687.5 | M94: 10.65138
A95: 86 | B95: GODREJIND | C95: 509.95 | D95: 510.18 | E95: 504.47 | F95: 498.98 | G95: 493.27 | H95: 515.67 | I95: 521.38 | J95: 526.87 | K95: 515.9 | L95: 504.7 | M95: 0.50927
A96: 87 | B96: GODREJPROP | C96: 1368.35 | D96: 1373.42 | E96: 1352.83 | F96: 1337.32 | G96: 1316.73 | H96: 1388.93 | I96: 1409.52 | J96: 1425.03 | K96: 1394 | L96: 1357.9 | M96: 4.07058
A97: 88 | B97: GRASIM | C97: 1401.75 | D97: 1380.72 | E97: 1354.03 | F97: 1306.32 | G97: 1279.63 | H97: 1428.43 | I97: 1455.12 | J97: 1502.83 | K97: 1407.4 | L97: 1333 | M97: 32.61678
A98: 89 | B98: GUJGASLTD | C98: 530.95 | D98: 529.97 | E98: 520.43 | F98: 509.92 | G98: 500.38 | H98: 540.48 | I98: 550.02 | J98: 560.53 | K98: 539.5 | L98: 519.45 | M98: 7.85408
A99: 90 | B99: GSPL | C99: 269.65 | D99: 269.78 | E99: 265.12 | F99: 260.58 | G99: 255.92 | H99: 274.32 | I99: 278.98 | J99: 283.52 | K99: 274.45 | L99: 265.25 | M99: 8.8244
A100: 91 | B100: HCLTECH | C100: 898.95 | D100: 903.12 | E100: 891.23 | F100: 883.52 | G100: 871.63 | H100: 910.83 | I100: 922.72 | J100: 930.43 | K100: 915 | L100: 895.4 | M100: 109.21664
A101: 92 | B101: HDFCAMC | C101: 2776.35 | D101: 2786.13 | E101: 2747.27 | F101: 2718.18 | G101: 2679.32 | H101: 2815.22 | I101: 2854.08 | J101: 2883.17 | K101: 2825 | L101: 2757.05 | M101: 3.26476
A102: 93 | B102: HDFCBANK | C102: 1412.3 | D102: 1424.53 | E102: 1395.27 | F102: 1378.23 | G102: 1348.97 | H102: 1441.57 | I102: 1470.83 | J102: 1487.87 | K102: 1453.8 | L102: 1407.5 | M102: 176.16451
A103: 94 | B103: HDFCLIFE | C103: 665.1 | D103: 667.93 | E103: 657.87 | F103: 650.63 | G103: 640.57 | H103: 675.17 | I103: 685.23 | J103: 692.47 | K103: 678 | L103: 660.7 | M103: 27.42166
A104: 95 | B104: HAVELLS | C104: 990.25 | D104: 1002.72 | E104: 969.88 | F104: 949.52 | G104: 916.68 | H104: 1023.08 | I104: 1055.92 | J104: 1076.28 | K104: 1035.55 | L104: 982.35 | M104: 14.28474
A105: 96 | B105: HEROMOTOCO | C105: 2819.15 | D105: 2828.05 | E105: 2796.10 | F105: 2773.05 | G105: 2741.10 | H105: 2851.10 | I105: 2883.05 | J105: 2906.10 | K105: 2860 | L105: 2805 | M105: 6.70258
A106: 97 | B106: HINDALCO | C106: 364.4 | D106: 367.57 | E106: 358.13 | F106: 351.87 | G106: 342.43 | H106: 373.83 | I106: 383.27 | J106: 389.53 | K106: 377 | L106: 361.3 | M106: 199.35239
A107: 98 | B107: HINDPETRO | C107: 234.65 | D107: 236.03 | E107: 226.82 | F107: 218.98 | G107: 209.77 | H107: 243.87 | I107: 253.08 | J107: 260.92 | K107: 245.25 | L107: 228.2 | M107: 155.63433
A108: 99 | B108: HINDUNILVR | C108: 2353.75 | D108: 2375.63 | E108: 2308.37 | F108: 2262.98 | G108: 2195.72 | H108: 2421.02 | I108: 2488.28 | J108: 2533.67 | K108: 2442.9 | L108: 2330.25 | M108: 40.10778
A109: 100 | B109: HINDZINC | C109: 305.1 | D109: 306.57 | E109: 300.58 | F109: 296.07 | G109: 290.08 | H109: 311.08 | I109: 317.07 | J109: 321.58 | K109: 312.55 | L109: 302.05 | M109: 17.26897
A110: 101 | B110: HUDCO | C110: 41.7 | D110: 41.77 | E110: 41.33 | F110: 40.97 | G110: 40.53 | H110: 42.13 | I110: 42.57 | J110: 42.93 | K110: 42.2 | L110: 41.4 | M110: 13.48098
A111: 102 | B111: HDFC | C111: 2420.1 | D111: 2452.07 | E111: 2379.13 | F111: 2338.17 | G111: 2265.23 | H111: 2493.03 | I111: 2565.97 | J111: 2606.93 | K111: 2525 | L111: 2411.1 | M111: 60.24595
A112: 103 | B112: ICICIBANK | C112: 600.5 | D112: 604.98 | E112: 593.62 | F112: 586.73 | G112: 575.37 | H112: 611.87 | I112: 623.23 | J112: 630.12 | K112: 616.35 | L112: 598.1 | M112: 236.53258
A113: 104 | B113: ICICIGI | C113: 1414 | D113: 1412.70 | E113: 1401.30 | F113: 1388.60 | G113: 1377.20 | H113: 1425.40 | I113: 1436.80 | J113: 1449.50 | K113: 1424.1 | L113: 1400 | M113: 5.12509
A114: 105 | B114: ICICIPRULI | C114: 521.95 | D114: 524.53 | E114: 514.57 | F114: 507.18 | G114: 497.22 | H114: 531.92 | I114: 541.88 | J114: 549.27 | K114: 534.5 | L114: 517.15 | M114: 22.20242
A115: 106 | B115: ISEC | C115: 453.95 | D115: 457.05 | E115: 445.50 | F115: 437.05 | G115: 425.50 | H115: 465.50 | I115: 477.05 | J115: 485.50 | K115: 468.6 | L115: 448.6 | M115: 4.4157
A116: 107 | B116: IDFCFIRSTB | C116: 54.7 | D116: 54.62 | E116: 53.68 | F116: 52.67 | G116: 51.73 | H116: 55.63 | I116: 56.57 | J116: 57.58 | K116: 55.55 | L116: 53.6 | M116: 352.47446
A117: 108 | B117: ITC | C117: 202.6 | D117: 203.43 | E117: 201.17 | F117: 199.73 | G117: 197.47 | H117: 204.87 | I117: 207.13 | J117: 208.57 | K117: 205.7 | L117: 202 | M117: 164.95657
A118: 109 | B118: IBULHSGFIN | C118: 181.05 | D118: 181.48 | E118: 176.77 | F118: 172.48 | G118: 167.77 | H118: 185.77 | I118: 190.48 | J118: 194.77 | K118: 186.2 | L118: 177.2 | M118: 100.62923
A119: 110 | B119: INDHOTEL | C119: 111.5 | D119: 111.07 | E119: 107.63 | F119: 103.77 | G119: 100.33 | H119: 114.93 | I119: 118.37 | J119: 122.23 | K119: 114.5 | L119: 107.2 | M119: 33.70405
A120: 111 | B120: IOC | C120: 90.85 | D120: 90.65 | E120: 88.20 | F120: 85.55 | G120: 83.10 | H120: 93.30 | I120: 95.75 | J120: 98.40 | K120: 93.1 | L120: 88 | M120: 298.15698
A121: 112 | B121: IRCTC | C121: 1791.4 | D121: 1786.10 | E121: 1763.05 | F121: 1734.70 | G121: 1711.65 | H121: 1814.45 | I121: 1837.50 | J121: 1865.85 | K121: 1809.15 | L121: 1757.75 | M121: 7.56655
A122: 113 | B122: IGL | C122: 508.95 | D122: 509.80 | E122: 496.65 | F122: 484.35 | G122: 471.20 | H122: 522.10 | I122: 535.25 | J122: 547.55 | K122: 522.95 | L122: 497.5 | M122: 25.16221
A123: 114 | B123: INDUSTOWER | C123: 252.5 | D123: 253.52 | E123: 249.23 | F123: 245.97 | G123: 241.68 | H123: 256.78 | I123: 261.07 | J123: 264.33 | K123: 257.8 | L123: 250.25 | M123: 19.51318
A124: 115 | B124: INDUSINDBK | C124: 934.95 | D124: 932.85 | E124: 917.20 | F124: 899.45 | G124: 883.80 | H124: 950.60 | I124: 966.25 | J124: 984.00 | K124: 948.5 | L124: 915.1 | M124: 73.01455
A125: 116 | B125: NAUKRI | C125: 4914.7 | D125: 4941.52 | E125: 4839.18 | F125: 4763.67 | G125: 4661.33 | H125: 5017.03 | I125: 5119.37 | J125: 5194.88 | K125: 5043.85 | L125: 4866 | M125: 2.86271
A126: 117 | B126: INFY | C126: 1354.35 | D126: 1358.05 | E126: 1342.20 | F126: 1330.05 | G126: 1314.20 | H126: 1370.20 | I126: 1386.05 | J126: 1398.20 | K126: 1373.9 | L126: 1345.9 | M126: 83.54677
A127: 118 | B127: INDIGO | C127: 1643.4 | D127: 1651.73 | E127: 1623.67 | F127: 1603.93 | G127: 1575.87 | H127: 1671.47 | I127: 1699.53 | J127: 1719.27 | K127: 1679.8 | L127: 1632 | M127: 7.53681
A128: 119 | B128: IPCALAB | C128: 2105.3 | D128: 2099.83 | E128: 2072.12 | F128: 2038.93 | G128: 2011.22 | H128: 2133.02 | I128: 2160.73 | J128: 2193.92 | K128: 2127.55 | L128: 2066.65 | M128: 1.50675
A129: 120 | B129: JSWENERGY | C129: 109.6 | D129: 109.50 | E129: 107.60 | F129: 105.60 | G129: 103.70 | H129: 111.50 | I129: 113.40 | J129: 115.40 | K129: 111.4 | L129: 107.5 | M129: 93.24766
A130: 121 | B130: JSWSTEEL | C130: 717.85 | D130: 723.10 | E130: 706.20 | F130: 694.55 | G130: 677.65 | H130: 734.75 | I130: 751.65 | J130: 763.30 | K130: 740 | L130: 711.45 | M130: 364.49711
A131: 122 | B131: JINDALSTEL | C131: 441.5 | D131: 443.25 | E131: 430.65 | F131: 419.80 | G131: 407.20 | H131: 454.10 | I131: 466.70 | J131: 477.55 | K131: 455.85 | L131: 432.4 | M131: 167.15876
A132: 123 | B132: JUBLFOOD | C132: 2891.7 | D132: 2912.75 | E132: 2860.50 | F132: 2829.30 | G132: 2777.05 | H132: 2943.95 | I132: 2996.20 | J132: 3027.40 | K132: 2965 | L132: 2881.55 | M132: 3.86049
A133: 124 | B133: KOTAKBANK | C133: 1748.8 | D133: 1763.42 | E133: 1724.83 | F133: 1700.87 | G133: 1662.28 | H133: 1787.38 | I133: 1825.97 | J133: 1849.93 | K133: 1802 | L133: 1739.45 | M133: 26.21783
A134: 125 | B134: L&TFH | C134: 87.05 | D134: 87.67 | E134: 85.88 | F134: 84.72 | G134: 82.93 | H134: 88.83 | I134: 90.62 | J134: 91.78 | K134: 89.45 | L134: 86.5 | M134: 239.684
A135: 126 | B135: LTTS | C135: 2728.9 | D135: 2700.42 | E135: 2634.13 | F135: 2539.37 | G135: 2473.08 | H135: 2795.18 | I135: 2861.47 | J135: 2956.23 | K135: 2766.7 | L135: 2605.65 | M135: 5.62025
A136: 127 | B136: LICHSGFIN | C136: 405.7 | D136: 409.10 | E136: 400.60 | F136: 395.50 | G136: 387.00 | H136: 414.20 | I136: 422.70 | J136: 427.80 | K136: 417.6 | L136: 404 | M136: 24.58547
A137: 128 | B137: LTI | C137: 3890.25 | D137: 3883.65 | E137: 3837.60 | F137: 3784.95 | G137: 3738.90 | H137: 3936.30 | I137: 3982.35 | J137: 4035.00 | K137: 3929.7 | L137: 3831 | M137: 3.03588
A138: 129 | B138: LT | C138: 1340.45 | D138: 1347.18 | E138: 1329.37 | F138: 1318.28 | G138: 1300.47 | H138: 1358.27 | I138: 1376.08 | J138: 1387.17 | K138: 1365 | L138: 1336.1 | M138: 19.68093
A139: 130 | B139: LUPIN | C139: 1069.5 | D139: 1065.80 | E139: 1048.70 | F139: 1027.90 | G139: 1010.80 | H139: 1086.60 | I139: 1103.70 | J139: 1124.50 | K139: 1082.9 | L139: 1045 | M139: 18.22879
A140: 131 | B140: MRF | C140: 80720.55 | D140: 79873.18 | E140: 78047.37 | F140: 75374.18 | G140: 73548.37 | H140: 82546.37 | I140: 84372.18 | J140: 87045.37 | K140: 81699 | L140: 77200 | M140: 0.60005
A141: 132 | B141: MGL | C141: 1125.35 | D141: 1118.90 | E141: 1094.05 | F141: 1062.75 | G141: 1037.90 | H141: 1150.20 | I141: 1175.05 | J141: 1206.35 | K141: 1143.75 | L141: 1087.6 | M141: 5.84164
A142: 133 | B142: M&MFIN | C142: 161.85 | D142: 161.68 | E142: 158.22 | F142: 154.58 | G142: 151.12 | H142: 165.32 | I142: 168.78 | J142: 172.42 | K142: 165.15 | L142: 158.05 | M142: 184.05989
A143: 134 | B143: M&M | C143: 752.55 | D143: 760.47 | E143: 742.53 | F143: 732.52 | G143: 714.58 | H143: 770.48 | I143: 788.42 | J143: 798.43 | K143: 778.4 | L143: 750.45 | M143: 44.66148
A144: 135 | B144: MANAPPURAM | C144: 149.05 | D144: 149.25 | E144: 144.90 | F144: 140.75 | G144: 136.40 | H144: 153.40 | I144: 157.75 | J144: 161.90 | K144: 153.6 | L144: 145.1 | M144: 71.31339
A145: 136 | B145: MARICO | C145: 411.45 | D145: 411.78 | E145: 401.37 | F145: 391.28 | G145: 380.87 | H145: 421.87 | I145: 432.28 | J145: 442.37 | K145: 422.2 | L145: 401.7 | M145: 61.5998
A146: 137 | B146: MARUTI | C146: 6455.65 | D146: 6478.75 | E146: 6397.90 | F146: 6340.15 | G146: 6259.30 | H146: 6536.50 | I146: 6617.35 | J146: 6675.10 | K146: 6559.6 | L146: 6421 | M146: 8.49997
A147: 138 | B147: MFSL | C147: 895.9 | D147: 901.95 | E147: 884.20 | F147: 872.50 | G147: 854.75 | H147: 913.65 | I147: 931.40 | J147: 943.10 | K147: 919.7 | L147: 890.25 | M147: 6.69783
A148: 139 | B148: MINDTREE | C148: 2106 | D148: 2112.32 | E148: 2084.78 | F148: 2063.57 | G148: 2036.03 | H148: 2133.53 | I148: 2161.07 | J148: 2182.28 | K148: 2139.85 | L148: 2091.1 | M148: 5.93831
A149: 140 | B149: MOTHERSUMI | C149: 214.7 | D149: 216.90 | E149: 211.90 | F149: 209.10 | G149: 204.10 | H149: 219.70 | I149: 224.70 | J149: 227.50 | K149: 221.9 | L149: 214.1 | M149: 81.7152
A150: 141 | B150: MPHASIS | C150: 1764.8 | D150: 1768.35 | E150: 1751.75 | F150: 1738.70 | G150: 1722.10 | H150: 1781.40 | I150: 1798.00 | J150: 1811.05 | K150: 1784.95 | L150: 1755.3 | M150: 4.57673
A151: 142 | B151: MUTHOOTFIN | C151: 1157.4 | D151: 1165.13 | E151: 1143.27 | F151: 1129.13 | G151: 1107.27 | H151: 1179.27 | I151: 1201.13 | J151: 1215.27 | K151: 1187 | L151: 1151 | M151: 10.58811
A152: 143 | B152: NATCOPHARM | C152: 896.35 | D152: 898.12 | E152: 884.23 | F152: 872.12 | G152: 858.23 | H152: 910.23 | I152: 924.12 | J152: 936.23 | K152: 912 | L152: 886 | M152: 2.27542
A153: 144 | B153: NMDC | C153: 155.75 | D153: 155.73 | E153: 152.77 | F153: 149.78 | G153: 146.82 | H153: 158.72 | I153: 161.68 | J153: 164.67 | K153: 158.7 | L153: 152.75 | M153: 166.744
A154: 145 | B154: NTPC | C154: 102.45 | D154: 103.38 | E154: 101.12 | F154: 99.78 | G154: 97.52 | H154: 104.72 | I154: 106.98 | J154: 108.32 | K154: 105.65 | L154: 102.05 | M154: 153.21193
A155: 146 | B155: NATIONALUM | C155: 64.65 | D155: 64.92 | E155: 63.33 | F155: 62.02 | G155: 60.43 | H155: 66.23 | I155: 67.82 | J155: 69.13 | K155: 66.5 | L155: 63.6 | M155: 633.36705
A156: 147 | B156: NAVINFLUOR | C156: 3428.2 | D156: 3435.32 | E156: 3332.63 | F156: 3237.07 | G156: 3134.38 | H156: 3530.88 | I156: 3633.57 | J156: 3729.13 | K156: 3538 | L156: 3339.75 | M156: 5.35939
A157: 148 | B157: NESTLEIND | C157: 16309.25 | D157: 16377.82 | E157: 16186.43 | F157: 16063.62 | G157: 15872.23 | H157: 16500.63 | I157: 16692.02 | J157: 16814.83 | K157: 16569.2 | L157: 16255 | M157: 0.97783
A158: 149 | B158: NAM-INDIA | C158: 341.7 | D158: 341.97 | E158: 338.43 | F158: 335.17 | G158: 331.63 | H158: 345.23 | I158: 348.77 | J158: 352.03 | K158: 345.5 | L158: 338.7 | M158: 4.70876
A159: 150 | B159: OBEROIRLTY | C159: 547.25 | D159: 544.68 | E159: 538.37 | F159: 529.48 | G159: 523.17 | H159: 553.57 | I159: 559.88 | J159: 568.77 | K159: 551 | L159: 535.8 | M159: 1.91242
A160: 151 | B160: ONGC | C160: 108.15 | D160: 108.05 | E160: 103.40 | F160: 98.65 | G160: 94.00 | H160: 112.80 | I160: 117.45 | J160: 122.20 | K160: 112.7 | L160: 103.3 | M160: 813.58264
A161: 152 | B161: OIL | C161: 122.1 | D161: 121.28 | E161: 118.87 | F161: 115.63 | G161: 113.22 | H161: 124.52 | I161: 126.93 | J161: 130.17 | K161: 123.7 | L161: 118.05 | M161: 12.46044
A162: 153 | B162: OFSS | C162: 3478.55 | D162: 3495.17 | E162: 3421.38 | F162: 3364.22 | G162: 3290.43 | H162: 3552.33 | I162: 3626.12 | J162: 3683.28 | K162: 3568.95 | L162: 3438 | M162: 0.8088
A163: 154 | B163: PIIND | C163: 2511.65 | D163: 2535.83 | E163: 2474.87 | F163: 2438.08 | G163: 2377.12 | H163: 2572.62 | I163: 2633.58 | J163: 2670.37 | K163: 2596.8 | L163: 2499.05 | M163: 3.12484
A164: 155 | B164: PAGEIND | C164: 29660.6 | D164: 29701.72 | E164: 29428.43 | F164: 29196.27 | G164: 28922.98 | H164: 29933.88 | I164: 30207.17 | J164: 30439.33 | K164: 29975 | L164: 29469.55 | M164: 0.19104
A165: 156 | B165: PETRONET | C165: 239.95 | D165: 239.27 | E165: 234.88 | F165: 229.82 | G165: 225.43 | H165: 244.33 | I165: 248.72 | J165: 253.78 | K165: 243.65 | L165: 234.2 | M165: 37.56006
A166: 157 | B166: PFIZER | C166: 5273.5 | D166: 5317.20 | E166: 5212.85 | F166: 5152.20 | G166: 5047.85 | H166: 5377.85 | I166: 5482.20 | J166: 5542.85 | K166: 5421.55 | L166: 5256.55 | M166: 1.6421
A167: 158 | B167: PIDILITIND | C167: 1815.8 | D167: 1825.97 | E167: 1795.23 | F167: 1774.67 | G167: 1743.93 | H167: 1846.53 | I167: 1877.27 | J167: 1897.83 | K167: 1856.7 | L167: 1805.4 | M167: 3.60185
A168: 159 | B168: PEL | C168: 1680.2 | D168: 1685.57 | E168: 1657.13 | F168: 1634.07 | G168: 1605.63 | H168: 1708.63 | I168: 1737.07 | J168: 1760.13 | K168: 1714 | L168: 1662.5 | M168: 7.65368
A169: 160 | B169: POLYCAB | C169: 1467.05 | D169: 1492.68 | E169: 1434.37 | F169: 1401.68 | G169: 1343.37 | H169: 1525.37 | I169: 1583.68 | J169: 1616.37 | K169: 1551 | L169: 1460 | M169: 3.54788
A170: 161 | B170: PFC | C170: 108.4 | D170: 108.23 | E170: 105.82 | F170: 103.23 | G170: 100.82 | H170: 110.82 | I170: 113.23 | J170: 115.82 | K170: 110.65 | L170: 105.65 | M170: 69.48975
A171: 162 | B171: POWERGRID | C171: 220.05 | D171: 219.67 | E171: 217.03 | F171: 214.02 | G171: 211.38 | H171: 222.68 | I171: 225.32 | J171: 228.33 | K171: 222.3 | L171: 216.65 | M171: 95.04624
A172: 163 | B172: PRESTIGE | C172: 271.85 | D172: 272.93 | E172: 269.92 | F172: 267.98 | G172: 264.97 | H172: 274.87 | I172: 277.88 | J172: 279.82 | K172: 275.95 | L172: 271 | M172: 3.49938
A173: 164 | B173: PGHH | C173: 13548.5 | D173: 13451.18 | E173: 13327.37 | F173: 13106.23 | G173: 12982.42 | H173: 13672.32 | I173: 13796.13 | J173: 14017.27 | K173: 13575 | L173: 13230.05 | M173: 0.05924
A174: 165 | B174: PNB | C174: 34.85 | D174: 35.02 | E174: 34.33 | F174: 33.82 | G174: 33.13 | H174: 35.53 | I174: 36.22 | J174: 36.73 | K174: 35.7 | L174: 34.5 | M174: 950.08214
A175: 166 | B175: RBLBANK | C175: 185.75 | D175: 187.30 | E175: 183.15 | F175: 180.55 | G175: 176.40 | H175: 189.90 | I175: 194.05 | J175: 196.65 | K175: 191.45 | L175: 184.7 | M175: 180.67172
A176: 167 | B176: RECLTD | C176: 128.1 | D176: 128.40 | E176: 125.80 | F176: 123.50 | G176: 120.90 | H176: 130.70 | I176: 133.30 | J176: 135.60 | K176: 131 | L176: 126.1 | M176: 40.22431
A177: 168 | B177: RAJESHEXPO | C177: 521.5 | D177: 522.13 | E177: 509.37 | F177: 497.23 | G177: 484.47 | H177: 534.27 | I177: 547.03 | J177: 559.17 | K177: 534.9 | L177: 510 | M177: 1.96037
A178: 169 | B178: RELIANCE | C178: 1994.5 | D178: 2006.02 | E178: 1976.03 | F178: 1957.57 | G178: 1927.58 | H178: 2024.48 | I178: 2054.47 | J178: 2072.93 | K178: 2036 | L178: 1987.55 | M178: 91.50974
A179: 170 | B179: SBICARD | C179: 984.2 | D179: 987.40 | E179: 968.95 | F179: 953.70 | G179: 935.25 | H179: 1002.65 | I179: 1021.10 | J179: 1036.35 | K179: 1005.85 | L179: 972.15 | M179: 18.42192
A180: 171 | B180: SBILIFE | C180: 928.7 | D180: 929.67 | E180: 918.83 | F180: 908.97 | G180: 898.13 | H180: 939.53 | I180: 950.37 | J180: 960.23 | K180: 940.5 | L180: 919.8 | M180: 13.26833
A181: 172 | B181: SRF | C181: 6431.1 | D181: 6469.15 | E181: 6348.30 | F181: 6265.50 | G181: 6144.65 | H181: 6551.95 | I181: 6672.80 | J181: 6755.60 | K181: 6590 | L181: 6386.35 | M181: 2.14303
A182: 173 | B182: SANOFI | C182: 7551.3 | D182: 7529.10 | E182: 7486.20 | F182: 7421.10 | G182: 7378.20 | H182: 7594.20 | I182: 7637.10 | J182: 7702.20 | K182: 7572 | L182: 7464 | M182: 0.17832
A183: 174 | B183: SHREECEM | C183: 27910.5 | D183: 28050.33 | E183: 27668.32 | F183: 27426.13 | G183: 27044.12 | H183: 28292.52 | I183: 28674.53 | J183: 28916.72 | K183: 28432.35 | L183: 27808.15 | M183: 0.32147
A184: 175 | B184: SRTRANSFIN | C184: 1345.05 | D184: 1375.27 | E184: 1305.53 | F184: 1266.02 | G184: 1196.28 | H184: 1414.78 | I184: 1484.52 | J184: 1524.03 | K184: 1445 | L184: 1335.75 | M184: 41.55073
A185: 176 | B185: SIEMENS | C185: 1881.45 | D185: 1887.27 | E185: 1862.18 | F185: 1842.92 | G185: 1817.83 | H185: 1906.53 | I185: 1931.62 | J185: 1950.88 | K185: 1912.35 | L185: 1868 | M185: 2.12294
A186: 177 | B186: SBIN | C186: 353.5 | D186: 355.48 | E186: 348.47 | F186: 343.43 | G186: 336.42 | H186: 360.52 | I186: 367.53 | J186: 372.57 | K186: 362.5 | L186: 350.45 | M186: 538.3284
A187: 178 | B187: SAIL | C187: 119.5 | D187: 116.70 | E187: 112.05 | F187: 104.60 | G187: 99.95 | H187: 124.15 | I187: 128.80 | J187: 136.25 | K187: 121.35 | L187: 109.25 | M187: 2117.43607
A188: 179 | B188: SUNPHARMA | C188: 654.45 | D188: 653.72 | E188: 640.83 | F188: 627.22 | G188: 614.33 | H188: 667.33 | I188: 680.22 | J188: 693.83 | K188: 666.6 | L188: 640.1 | M188: 108.74266
A189: 180 | B189: SUNTV | C189: 543.35 | D189: 537.93 | E189: 525.92 | F189: 508.48 | G189: 496.47 | H189: 555.37 | I189: 567.38 | J189: 584.82 | K189: 549.95 | L189: 520.5 | M189: 139.10216
A190: 181 | B190: SYNGENE | C190: 553.75 | D190: 559.75 | E190: 545.10 | F190: 536.45 | G190: 521.80 | H190: 568.40 | I190: 583.05 | J190: 591.70 | K190: 574.4 | L190: 551.1 | M190: 15.12977
A191: 182 | B191: TVSMOTOR | C191: 630.9 | D191: 630.98 | E191: 621.97 | F191: 613.03 | G191: 604.02 | H191: 639.92 | I191: 648.93 | J191: 657.87 | K191: 640 | L191: 622.05 | M191: 30.96434
A192: 183 | B192: TATACHEM | C192: 792.45 | D192: 779.93 | E192: 762.87 | F192: 733.28 | G192: 716.22 | H192: 809.52 | I192: 826.58 | J192: 856.17 | K192: 797 | L192: 750.35 | M192: 92.13112
A193: 184 | B193: TCS | C193: 3035.65 | D193: 3062.57 | E193: 2993.08 | F193: 2950.52 | G193: 2881.03 | H193: 3105.13 | I193: 3174.62 | J193: 3217.18 | K193: 3132.05 | L193: 3020 | M193: 30.72305
A194: 185 | B194: TATACONSUM | C194: 669.5 | D194: 670.85 | E194: 663.70 | F194: 657.90 | G194: 650.75 | H194: 676.65 | I194: 683.80 | J194: 689.60 | K194: 678 | L194: 665.05 | M194: 22.06232
A195: 186 | B195: TATAMOTORS | C195: 293.85 | D195: 295.90 | E195: 290.50 | F195: 287.15 | G195: 281.75 | H195: 299.25 | I195: 304.65 | J195: 308.00 | K195: 301.3 | L195: 292.55 | M195: 361.21668
A196: 187 | B196: TATAPOWER | C196: 98.85 | D196: 98.83 | E196: 96.27 | F196: 93.68 | G196: 91.12 | H196: 101.42 | I196: 103.98 | J196: 106.57 | K196: 101.4 | L196: 96.25 | M196: 401.2574
A197: 188 | B197: TATASTEEL | C197: 1034 | D197: 1032.57 | E197: 1012.53 | F197: 991.07 | G197: 971.03 | H197: 1054.03 | I197: 1074.07 | J197: 1095.53 | K197: 1052.6 | L197: 1011.1 | M197: 281.29738
A198: 189 | B198: TECHM | C198: 960.4 | D198: 964.23 | E198: 951.57 | F198: 942.73 | G198: 930.07 | H198: 973.07 | I198: 985.73 | J198: 994.57 | K198: 976.9 | L198: 955.4 | M198: 31.29105
A199: 190 | B199: RAMCOCEM | C199: 985.5 | D199: 981.60 | E199: 959.65 | F199: 933.80 | G199: 911.85 | H199: 1007.45 | I199: 1029.40 | J199: 1055.25 | K199: 1003.55 | L199: 955.75 | M199: 9.18768
A200: 191 | B200: TITAN | C200: 1491.65 | D200: 1493.07 | E200: 1469.58 | F200: 1447.52 | G200: 1424.03 | H200: 1515.13 | I200: 1538.62 | J200: 1560.68 | K200: 1516.55 | L200: 1471 | M200: 36.91399
A201: 192 | B201: TORNTPHARM | C201: 2509.25 | D201: 2511.67 | E201: 2478.53 | F201: 2447.82 | G201: 2414.68 | H201: 2542.38 | I201: 2575.52 | J201: 2606.23 | K201: 2544.8 | L201: 2480.95 | M201: 1.83152
A202: 193 | B202: TORNTPOWER | C202: 396.3 | D202: 393.35 | E202: 387.35 | F202: 378.40 | G202: 372.40 | H202: 402.30 | I202: 408.30 | J202: 417.25 | K202: 399.35 | L202: 384.4 | M202: 5.1805
A203: 194 | B203: TRENT | C203: 776.7 | D203: 776.12 | E203: 761.53 | F203: 746.37 | G203: 731.78 | H203: 791.28 | I203: 805.87 | J203: 821.03 | K203: 790.7 | L203: 760.95 | M203: 18.41225
A204: 195 | B204: UPL | C204: 606.9 | D204: 610.65 | E204: 600.30 | F204: 593.70 | G204: 583.35 | H204: 617.25 | I204: 627.60 | J204: 634.20 | K204: 621 | L204: 604.05 | M204: 30.72295
A205: 196 | B205: ULTRACEMCO | C205: 6278.95 | D205: 6312.17 | E205: 6200.33 | F205: 6121.72 | G205: 6009.88 | H205: 6390.78 | I205: 6502.62 | J205: 6581.23 | K205: 6424 | L205: 6233.55 | M205: 4.75175
... 29 more rows

Sheet MidCap Intra
L5: Back To Main Page
A6: FOR INTRA DAY TRADING | K6: =Main!B10 -> 2021-05-03
A9: Sr.no | B9: Scrip | C9: CLOSE RATE | D9: Pivot Point | E9: Supports | H9: Resistances
C10: Point | E10: S1 | F10: S2 | G10: S3 | H10: R1 | I10: R2 | J10: R3 | K10: HIGH | L10: LOW | M10: Total Trade Quanity in Lakhs
A11: 1 | B11: 3MINDIA | C11: 25537.95 | D11: 25470.43 | E11: 25172.27 | F11: 24806.58 | G11: 24508.42 | H11: 25836.12 | I11: 26134.28 | J11: 26499.97 | K11: 25768.6 | L11: 25104.75 | M11: 0.08051
A12: 2 | B12: ABB | C12: 1381.25 | D12: 1380.22 | E12: 1361.03 | F12: 1340.82 | G12: 1321.63 | H12: 1400.43 | I12: 1419.62 | J12: 1439.83 | K12: 1399.4 | L12: 1360 | M12: 1.67258
A13: 3 | B13: POWERINDIA | C13: 1805.4 | D13: 1812.17 | E13: 1764.33 | F13: 1723.27 | G13: 1675.43 | H13: 1853.23 | I13: 1901.07 | J13: 1942.13 | K13: 1860 | L13: 1771.1 | M13: 1.451
A14: 4 | B14: ACC | C14: 1882.75 | D14: 1880.42 | E14: 1857.38 | F14: 1832.02 | G14: 1808.98 | H14: 1905.78 | I14: 1928.82 | J14: 1954.18 | K14: 1903.45 | L14: 1855.05 | M14: 10.81167
A15: 5 | B15: AIAENG | C15: 1862.75 | D15: 1869.93 | E15: 1848.97 | F15: 1835.18 | G15: 1814.22 | H15: 1883.72 | I15: 1904.68 | J15: 1918.47 | K15: 1890.9 | L15: 1856.15 | M15: 0.10098
A16: 6 | B16: APLAPOLLO | C16: 1302.25 | D16: 1307.70 | E16: 1290.55 | F16: 1278.85 | G16: 1261.70 | H16: 1319.40 | I16: 1336.55 | J16: 1348.25 | K16: 1324.85 | L16: 1296 | M16: 5.80426
A17: 7 | B17: AUBANK | C17: 1004.3 | D17: 1027.78 | E17: 971.57 | F17: 938.83 | G17: 882.62 | H17: 1060.52 | I17: 1116.73 | J17: 1149.47 | K17: 1084 | L17: 995.05 | M17: 69.57375
A18: 8 | B18: AARTIDRUGS | C18: 709.95 | D18: 712.52 | E18: 703.03 | F18: 696.12 | G18: 686.63 | H18: 719.43 | I18: 728.92 | J18: 735.83 | K18: 722 | L18: 705.6 | M18: 2.5841
A19: 9 | B19: AARTIIND | C19: 1604.85 | D19: 1593.37 | E19: 1541.98 | F19: 1479.12 | G19: 1427.73 | H19: 1656.23 | I19: 1707.62 | J19: 1770.48 | K19: 1644.75 | L19: 1530.5 | M19: 9.72527
A20: 10 | B20: AAVAS | C20: 2274.65 | D20: 2259.68 | E20: 2219.97 | F20: 2165.28 | G20: 2125.57 | H20: 2314.37 | I20: 2354.08 | J20: 2408.77 | K20: 2299.4 | L20: 2205 | M20: 1.21332
A21: 11 | B21: ABBOTINDIA | C21: 15151.75 | D21: 15098.90 | E21: 14902.85 | F21: 14653.95 | G21: 14457.90 | H21: 15347.80 | I21: 15543.85 | J21: 15792.75 | K21: 15294.95 | L21: 14850 | M21: 0.11975
A22: 12 | B22: ADANIENT | C22: 1158.7 | D22: 1167.55 | E22: 1134.15 | F22: 1109.60 | G22: 1076.20 | H22: 1192.10 | I22: 1225.50 | J22: 1250.05 | K22: 1200.95 | L22: 1143 | M22: 42.325
A23: 13 | B23: ADANIGREEN | C23: 1018.95 | D23: 1026.18 | E23: 1003.77 | F23: 988.58 | G23: 966.17 | H23: 1041.37 | I23: 1063.78 | J23: 1078.97 | K23: 1048.6 | L23: 1011 | M23: 4.66631
A24: 14 | B24: ADANIPORTS | C24: 730.05 | D24: 738.00 | E24: 716.55 | F24: 703.05 | G24: 681.60 | H24: 751.50 | I24: 772.95 | J24: 786.45 | K24: 759.45 | L24: 724.5 | M24: 126.00934
A25: 15 | B25: ATGL | C25: 1150.75 | D25: 1146.45 | E25: 1133.30 | F25: 1115.85 | G25: 1102.70 | H25: 1163.90 | I25: 1177.05 | J25: 1194.50 | K25: 1159.6 | L25: 1129 | M25: 12.75816
A26: 16 | B26: ADANITRANS | C26: 1049.9 | D26: 1048.37 | E26: 1036.73 | F26: 1023.57 | G26: 1011.93 | H26: 1061.53 | I26: 1073.17 | J26: 1086.33 | K26: 1060 | L26: 1035.2 | M26: 4.3922
A27: 17 | B27: ABCAPITAL | C27: 114.55 | D27: 114.78 | E27: 113.12 | F27: 111.68 | G27: 110.02 | H27: 116.22 | I27: 117.88 | J27: 119.32 | K27: 116.45 | L27: 113.35 | M27: 20.19593
A28: 18 | B28: ABFRL | C28: 175 | D28: 175.93 | E28: 173.37 | F28: 171.73 | G28: 169.17 | H28: 177.57 | I28: 180.13 | J28: 181.77 | K28: 178.5 | L28: 174.3 | M28: 19.34646
A29: 19 | B29: ADVENZYMES | C29: 400.7 | D29: 400.25 | E29: 393.05 | F29: 385.40 | G29: 378.20 | H29: 407.90 | I29: 415.10 | J29: 422.75 | K29: 407.45 | L29: 392.6 | M29: 2.3537
A30: 20 | B30: AEGISCHEM | C30: 304.2 | D30: 308.22 | E30: 298.48 | F30: 292.77 | G30: 283.03 | H30: 313.93 | I30: 323.67 | J30: 329.38 | K30: 317.95 | L30: 302.5 | M30: 3.36403
A31: 21 | B31: AFFLE | C31: 5522.95 | D31: 5518.37 | E31: 5481.58 | F31: 5440.22 | G31: 5403.43 | H31: 5559.73 | I31: 5596.52 | J31: 5637.88 | K31: 5555.15 | L31: 5477 | M31: 0.32528
A32: 22 | B32: AJANTPHARM | C32: 1840.1 | D32: 1865.13 | E32: 1800.27 | F32: 1760.43 | G32: 1695.57 | H32: 1904.97 | I32: 1969.83 | J32: 2009.67 | K32: 1930 | L32: 1825.3 | M32: 2.89772
A33: 23 | B33: AKZOINDIA | C33: 2243.15 | D33: 2238.82 | E33: 2204.33 | F33: 2165.52 | G33: 2131.03 | H33: 2277.63 | I33: 2312.12 | J33: 2350.93 | K33: 2273.3 | L33: 2200 | M33: 0.36575
A34: 24 | B34: ALEMBICLTD | C34: 110.05 | D34: 108.75 | E34: 106.30 | F34: 102.55 | G34: 100.10 | H34: 112.50 | I34: 114.95 | J34: 118.70 | K34: 111.2 | L34: 105 | M34: 10.10503
A35: 25 | B35: APLLTD | C35: 985.7 | D35: 985.20 | E35: 975.50 | F35: 965.30 | G35: 955.60 | H35: 995.40 | I35: 1005.10 | J35: 1015.30 | K35: 994.9 | L35: 975 | M35: 2.49981
A36: 26 | B36: ALKEM | C36: 2759.05 | D36: 2753.12 | E36: 2718.23 | F36: 2677.42 | G36: 2642.53 | H36: 2793.93 | I36: 2828.82 | J36: 2869.63 | K36: 2788 | L36: 2712.3 | M36: 1.334
A37: 27 | B37: ALKYLAMINE | C37: 8471.7 | D37: 8342.30 | E37: 8040.60 | F37: 7609.50 | G37: 7307.80 | H37: 8773.40 | I37: 9075.10 | J37: 9506.20 | K37: 8644 | L37: 7911.2 | M37: 1.89097
A38: 28 | B38: ALOKINDS | C38: 19.3 | D38: 19.30 | E38: 19.00 | F38: 18.70 | G38: 18.40 | H38: 19.60 | I38: 19.90 | J38: 20.20 | K38: 19.6 | L38: 19 | M38: 141.12653
A39: 29 | B39: AMARAJABAT | C39: 810.75 | D39: 807.08 | E39: 799.27 | F39: 787.78 | G39: 779.97 | H39: 818.57 | I39: 826.38 | J39: 837.87 | K39: 814.9 | L39: 795.6 | M39: 9.17883
A40: 30 | B40: AMBER | C40: 3099.3 | D40: 3123.80 | E40: 3058.50 | F40: 3017.70 | G40: 2952.40 | H40: 3164.60 | I40: 3229.90 | J40: 3270.70 | K40: 3189.1 | L40: 3083 | M40: 0.6624
A41: 31 | B41: AMBUJACEM | C41: 309.05 | D41: 311.88 | E41: 303.92 | F41: 298.78 | G41: 290.82 | H41: 317.02 | I41: 324.98 | J41: 330.12 | K41: 319.85 | L41: 306.75 | M41: 198.22885
A42: 32 | B42: APOLLOHOSP | C42: 3197.5 | D42: 3230.10 | E42: 3150.20 | F42: 3102.90 | G42: 3023.00 | H42: 3277.40 | I42: 3357.30 | J42: 3404.60 | K42: 3310 | L42: 3182.8 | M42: 9.06562
A43: 33 | B43: APOLLOTYRE | C43: 216.35 | D43: 214.32 | E43: 205.03 | F43: 193.72 | G43: 184.43 | H43: 225.63 | I43: 234.92 | J43: 246.23 | K43: 223.6 | L43: 203 | M43: 197.47072
A44: 34 | B44: ASHOKLEY | C44: 112.7 | D44: 113.52 | E44: 111.28 | F44: 109.87 | G44: 107.63 | H44: 114.93 | I44: 117.17 | J44: 118.58 | K44: 115.75 | L44: 112.1 | M44: 179.70808
A45: 35 | B45: ASHOKA | C45: 82.55 | D45: 83.48 | E45: 81.07 | F45: 79.58 | G45: 77.17 | H45: 84.97 | I45: 87.38 | J45: 88.87 | K45: 85.9 | L45: 82 | M45: 20.21987
A46: 36 | B46: ASIANPAINT | C46: 2536.4 | D46: 2555.42 | E46: 2505.03 | F46: 2473.67 | G46: 2423.28 | H46: 2586.78 | I46: 2637.17 | J46: 2668.53 | K46: 2605.8 | L46: 2524.05 | M46: 13.84907
A47: 37 | B47: ASTERDM | C47: 143.05 | D47: 143.85 | E47: 141.55 | F47: 140.05 | G47: 137.75 | H47: 145.35 | I47: 147.65 | J47: 149.15 | K47: 146.15 | L47: 142.35 | M47: 5.59592
A48: 38 | B48: ASTRAZEN | C48: 3907.95 | D48: 3902.97 | E48: 3807.98 | F48: 3708.02 | G48: 3613.03 | H48: 4002.93 | I48: 4097.92 | J48: 4197.88 | K48: 3997.95 | L48: 3803 | M48: 0.8148
A49: 39 | B49: ASTRAL | C49: 1579.15 | D49: 1595.30 | E49: 1550.60 | F49: 1522.05 | G49: 1477.35 | H49: 1623.85 | I49: 1668.55 | J49: 1697.10 | K49: 1640 | L49: 1566.75 | M49: 2.49067
A50: 40 | B50: ATUL | C50: 8088.7 | D50: 8199.05 | E50: 7899.65 | F50: 7710.60 | G50: 7411.20 | H50: 8388.10 | I50: 8687.50 | J50: 8876.55 | K50: 8498.45 | L50: 8010 | M50: 0.97603
A51: 41 | B51: AUROPHARMA | C51: 980.85 | D51: 977.95 | E51: 966.90 | F51: 952.95 | G51: 941.90 | H51: 991.90 | I51: 1002.95 | J51: 1016.90 | K51: 989 | L51: 964 | M51: 20.09351
A52: 42 | B52: AVANTIFEED | C52: 486.8 | D52: 489.80 | E52: 479.00 | F52: 471.20 | G52: 460.40 | H52: 497.60 | I52: 508.40 | J52: 516.20 | K52: 500.6 | L52: 482 | M52: 1.86097
A53: 43 | B53: DMART | C53: 2852.9 | D53: 2867.90 | E53: 2803.90 | F53: 2754.90 | G53: 2690.90 | H53: 2916.90 | I53: 2980.90 | J53: 3029.90 | K53: 2931.9 | L53: 2818.9 | M53: 3.22948
A54: 44 | B54: AXISBANK | C54: 714.9 | D54: 716.58 | E54: 703.32 | F54: 691.73 | G54: 678.47 | H54: 728.17 | I54: 741.43 | J54: 753.02 | K54: 729.85 | L54: 705 | M54: 230.11654
A55: 45 | B55: BASF | C55: 2228.75 | D55: 2185.58 | E55: 2101.17 | F55: 1973.58 | G55: 1889.17 | H55: 2313.17 | I55: 2397.58 | J55: 2525.17 | K55: 2270 | L55: 2058 | M55: 2.45981
A56: 46 | B56: BEML | C56: 1167.15 | D56: 1174.38 | E56: 1140.77 | F56: 1114.38 | G56: 1080.77 | H56: 1200.77 | I56: 1234.38 | J56: 1260.77 | K56: 1208 | L56: 1148 | M56: 4.29313
A57: 47 | B57: BSE | C57: 600.65 | D57: 603.03 | E57: 592.57 | F57: 584.48 | G57: 574.02 | H57: 611.12 | I57: 621.58 | J57: 629.67 | K57: 613.5 | L57: 594.95 | M57: 2.09734
A58: 48 | B58: BAJAJ-AUTO | C58: 3833.75 | D58: 3866.70 | E58: 3767.05 | F58: 3700.35 | G58: 3600.70 | H58: 3933.40 | I58: 4033.05 | J58: 4099.75 | K58: 3966.35 | L58: 3800 | M58: 13.40273
A59: 49 | B59: BAJAJCON | C59: 280.45 | D59: 281.35 | E59: 277.10 | F59: 273.75 | G59: 269.50 | H59: 284.70 | I59: 288.95 | J59: 292.30 | K59: 285.6 | L59: 278 | M59: 6.22479
A60: 50 | B60: BAJAJELEC | C60: 1151 | D60: 1147.65 | E60: 1122.15 | F60: 1093.30 | G60: 1067.80 | H60: 1176.50 | I60: 1202.00 | J60: 1230.85 | K60: 1173.15 | L60: 1118.8 | M60: 1.08309
A61: 51 | B61: BAJFINANCE | C61: 5451.9 | D61: 5434.75 | E61: 5344.85 | F61: 5237.80 | G61: 5147.90 | H61: 5541.80 | I61: 5631.70 | J61: 5738.75 | K61: 5524.65 | L61: 5327.7 | M61: 41.24888
A62: 52 | B62: BAJAJFINSV | C62: 11041.65 | D62: 11045.12 | E62: 10865.23 | F62: 10688.82 | G62: 10508.93 | H62: 11221.53 | I62: 11401.42 | J62: 11577.83 | K62: 11225 | L62: 10868.7 | M62: 8.35355
A63: 53 | B63: BAJAJHLDNG | C63: 3421.2 | D63: 3493.40 | E63: 3337.80 | F63: 3254.40 | G63: 3098.80 | H63: 3576.80 | I63: 3732.40 | J63: 3815.80 | K63: 3649 | L63: 3410 | M63: 0.80888
A64: 54 | B64: BALKRISIND | C64: 1769.95 | D64: 1771.70 | E64: 1736.00 | F64: 1702.05 | G64: 1666.35 | H64: 1805.65 | I64: 1841.35 | J64: 1875.30 | K64: 1807.4 | L64: 1737.75 | M64: 4.17325
A65: 55 | B65: BALMLAWRIE | C65: 128.05 | D65: 128.05 | E65: 124.10 | F65: 120.15 | G65: 116.20 | H65: 132.00 | I65: 135.95 | J65: 139.90 | K65: 132 | L65: 124.1 | M65: 13.14071
A66: 56 | B66: BALRAMCHIN | C66: 279.25 | D66: 277.92 | E66: 269.88 | F66: 260.52 | G66: 252.48 | H66: 287.28 | I66: 295.32 | J66: 304.68 | K66: 285.95 | L66: 268.55 | M66: 46.69769
A67: 57 | B67: BANDHANBNK | C67: 329.75 | D67: 331.47 | E67: 322.98 | F67: 316.22 | G67: 307.73 | H67: 338.23 | I67: 346.72 | J67: 353.48 | K67: 339.95 | L67: 324.7 | M67: 89.61859
A68: 58 | B68: BANKBARODA | C68: 66.75 | D68: 66.73 | E68: 65.07 | F68: 63.38 | G68: 61.72 | H68: 68.42 | I68: 70.08 | J68: 71.77 | K68: 68.4 | L68: 65.05 | M68: 511.82287
A69: 59 | B69: BANKINDIA | C69: 66.35 | D69: 66.38 | E69: 64.97 | F69: 63.58 | G69: 62.17 | H69: 67.77 | I69: 69.18 | J69: 70.57 | K69: 67.8 | L69: 65 | M69: 40.98425
A70: 60 | B70: MAHABANK | C70: 24.05 | D70: 24.30 | E70: 23.75 | F70: 23.45 | G70: 22.90 | H70: 24.60 | I70: 25.15 | J70: 25.45 | K70: 24.85 | L70: 24 | M70: 88.22796
A71: 61 | B71: BATAINDIA | C71: 1369.55 | D71: 1362.33 | E71: 1342.22 | F71: 1314.88 | G71: 1294.77 | H71: 1389.67 | I71: 1409.78 | J71: 1437.12 | K71: 1382.45 | L71: 1335 | M71: 8.22288
A72: 62 | B72: BAYERCROP | C72: 5346.85 | D72: 5306.63 | E72: 5216.27 | F72: 5085.68 | G72: 4995.32 | H72: 5437.22 | I72: 5527.58 | J72: 5658.17 | K72: 5397 | L72: 5176.05 | M72: 0.20727
A73: 63 | B73: BERGEPAINT | C73: 704 | D73: 707.08 | E73: 697.37 | F73: 690.73 | G73: 681.02 | H73: 713.72 | I73: 723.43 | J73: 730.07 | K73: 716.8 | L73: 700.45 | M73: 5.83146
A74: 64 | B74: BDL | C74: 336.85 | D74: 337.33 | E74: 335.17 | F74: 333.48 | G74: 331.32 | H74: 339.02 | I74: 341.18 | J74: 342.87 | K74: 339.5 | L74: 335.65 | M74: 0.64074
A75: 65 | B75: BEL | C75: 131.75 | D75: 132.00 | E75: 127.55 | F75: 123.35 | G75: 118.90 | H75: 136.20 | I75: 140.65 | J75: 144.85 | K75: 136.45 | L75: 127.8 | M75: 177.29247
A76: 66 | B76: BHARATFORG | C76: 610.4 | D76: 608.88 | E76: 596.77 | F76: 583.13 | G76: 571.02 | H76: 622.52 | I76: 634.63 | J76: 648.27 | K76: 621 | L76: 595.25 | M76: 30.22088
A77: 67 | B77: BHEL | C77: 48.3 | D77: 47.97 | E77: 46.53 | F77: 44.77 | G77: 43.33 | H77: 49.73 | I77: 51.17 | J77: 52.93 | K77: 49.4 | L77: 46.2 | M77: 628.14554
A78: 68 | B78: BPCL | C78: 421.8 | D78: 424.65 | E78: 411.80 | F78: 401.80 | G78: 388.95 | H78: 434.65 | I78: 447.50 | J78: 457.50 | K78: 437.5 | L78: 414.65 | M78: 168.5147
A79: 69 | B79: BHARATRAS | C79: 12230.3 | D79: 12043.10 | E79: 11587.20 | F79: 10944.10 | G79: 10488.20 | H79: 12686.20 | I79: 13142.10 | J79: 13785.20 | K79: 12499 | L79: 11400 | M79: 0.15271
A80: 70 | B80: BHARTIARTL | C80: 536.75 | D80: 539.08 | E80: 531.17 | F80: 525.58 | G80: 517.67 | H80: 544.67 | I80: 552.58 | J80: 558.17 | K80: 547 | L80: 533.5 | M80: 81.78192
A81: 71 | B81: BIOCON | C81: 379.65 | D81: 383.22 | E81: 374.63 | F81: 369.62 | G81: 361.03 | H81: 388.23 | I81: 396.82 | J81: 401.83 | K81: 391.8 | L81: 378.2 | M81: 97.10688
A82: 72 | B82: BIRLACORPN | C82: 918.15 | D82: 921.15 | E82: 912.50 | F82: 906.85 | G82: 898.20 | H82: 926.80 | I82: 935.45 | J82: 941.10 | K82: 929.8 | L82: 915.5 | M82: 0.48042
A83: 73 | B83: BSOFT | C83: 245.7 | D83: 246.47 | E83: 243.23 | F83: 240.77 | G83: 237.53 | H83: 248.93 | I83: 252.17 | J83: 254.63 | K83: 249.7 | L83: 244 | M83: 3.8607
A84: 74 | B84: BLISSGVS | C84: 101.3 | D84: 102.17 | E84: 99.33 | F84: 97.37 | G84: 94.53 | H84: 104.13 | I84: 106.97 | J84: 108.93 | K84: 105 | L84: 100.2 | M84: 6.10126
A85: 75 | B85: BLUEDART | C85: 5244.3 | D85: 5297.05 | E85: 5169.15 | F85: 5094.00 | G85: 4966.10 | H85: 5372.20 | I85: 5500.10 | J85: 5575.25 | K85: 5424.95 | L85: 5221.9 | M85: 0.18355
A86: 76 | B86: BLUESTARCO | C86: 845.5 | D86: 850.67 | E86: 834.83 | F86: 824.17 | G86: 808.33 | H86: 861.33 | I86: 877.17 | J86: 887.83 | K86: 866.5 | L86: 840 | M86: 0.34053
A87: 77 | B87: BBTC | C87: 1161 | D87: 1166.32 | E87: 1144.68 | F87: 1128.37 | G87: 1106.73 | H87: 1182.63 | I87: 1204.27 | J87: 1220.58 | K87: 1187.95 | L87: 1150 | M87: 0.44533
A88: 78 | B88: BOMDYEING | C88: 66.2 | D88: 66.78 | E88: 65.42 | F88: 64.63 | G88: 63.27 | H88: 67.57 | I88: 68.93 | J88: 69.72 | K88: 68.15 | L88: 66 | M88: 15.63514
A89: 79 | B89: BOSCHLTD | C89: 13509 | D89: 13533.02 | E89: 13436.03 | F89: 13363.07 | G89: 13266.08 | H89: 13605.98 | I89: 13702.97 | J89: 13775.93 | K89: 13630 | L89: 13460.05 | M89: 0.15105
A90: 80 | B90: BRIGADE | C90: 250.4 | D90: 252.53 | E90: 247.87 | F90: 245.33 | G90: 240.67 | H90: 255.07 | I90: 259.73 | J90: 262.27 | K90: 257.2 | L90: 250 | M90: 0.6748
A91: 81 | B91: BRITANNIA | C91: 3449 | D91: 3451.45 | E91: 3434.55 | F91: 3420.10 | G91: 3403.20 | H91: 3465.90 | I91: 3482.80 | J91: 3497.25 | K91: 3468.35 | L91: 3437 | M91: 4.36187
A92: 82 | B92: CARERATING | C92: 500.8 | D92: 499.93 | E92: 490.87 | F92: 480.93 | G92: 471.87 | H92: 509.87 | I92: 518.93 | J92: 528.87 | K92: 509 | L92: 490 | M92: 2.35071
A93: 83 | B93: CCL | C93: 266.8 | D93: 265.88 | E93: 259.47 | F93: 252.13 | G93: 245.72 | H93: 273.22 | I93: 279.63 | J93: 286.97 | K93: 272.3 | L93: 258.55 | M93: 4.72687
A94: 84 | B94: CESC | C94: 607.95 | D94: 611.47 | E94: 600.63 | F94: 593.32 | G94: 582.48 | H94: 618.78 | I94: 629.62 | J94: 636.93 | K94: 622.3 | L94: 604.15 | M94: 3.46497
A95: 85 | B95: CRISIL | C95: 1859.05 | D95: 1852.85 | E95: 1830.20 | F95: 1801.35 | G95: 1778.70 | H95: 1881.70 | I95: 1904.35 | J95: 1933.20 | K95: 1875.5 | L95: 1824 | M95: 0.28472
A96: 86 | B96: CSBBANK | C96: 258.25 | D96: 260.42 | E96: 252.83 | F96: 247.42 | G96: 239.83 | H96: 265.83 | I96: 273.42 | J96: 278.83 | K96: 268 | L96: 255 | M96: 3.94895
A97: 87 | B97: CADILAHC | C97: 571.15 | D97: 569.37 | E97: 559.88 | F97: 548.62 | G97: 539.13 | H97: 580.63 | I97: 590.12 | J97: 601.38 | K97: 578.85 | L97: 558.1 | M97: 97.69446
A98: 88 | B98: CANFINHOME | C98: 581.45 | D98: 580.42 | E98: 571.63 | F98: 561.82 | G98: 553.03 | H98: 590.23 | I98: 599.02 | J98: 608.83 | K98: 589.2 | L98: 570.6 | M98: 2.91905
A99: 89 | B99: CANBK | C99: 138.75 | D99: 139.72 | E99: 135.53 | F99: 132.32 | G99: 128.13 | H99: 142.93 | I99: 147.12 | J99: 150.33 | K99: 143.9 | L99: 136.5 | M99: 188.5985
A100: 90 | B100: CAPLIPOINT | C100: 493.1 | D100: 496.07 | E100: 488.13 | F100: 483.17 | G100: 475.23 | H100: 501.03 | I100: 508.97 | J100: 513.93 | K100: 504 | L100: 491.1 | M100: 1.35962
A101: 91 | B101: CGCL | C101: 449.2 | D101: 443.07 | E101: 431.13 | F101: 413.07 | G101: 401.13 | H101: 461.13 | I101: 473.07 | J101: 491.13 | K101: 455 | L101: 425 | M101: 1.87951
A102: 92 | B102: CARBORUNIV | C102: 547.85 | D102: 542.43 | E102: 514.87 | F102: 481.88 | G102: 454.32 | H102: 575.42 | I102: 602.98 | J102: 635.97 | K102: 570 | L102: 509.45 | M102: 14.8907
A103: 93 | B103: CASTROLIND | C103: 125.75 | D103: 125.68 | E103: 125.07 | F103: 124.38 | G103: 123.77 | H103: 126.37 | I103: 126.98 | J103: 127.67 | K103: 126.3 | L103: 125 | M103: 11.07112
A104: 94 | B104: CEATLTD | C104: 1386 | D104: 1383.37 | E104: 1349.03 | F104: 1312.07 | G104: 1277.73 | H104: 1420.33 | I104: 1454.67 | J104: 1491.63 | K104: 1417.7 | L104: 1346.4 | M104: 5.86822
A105: 95 | B105: CENTRALBK | C105: 16.3 | D105: 16.30 | E105: 16.15 | F105: 16.00 | G105: 15.85 | H105: 16.45 | I105: 16.60 | J105: 16.75 | K105: 16.45 | L105: 16.15 | M105: 34.36792
A106: 96 | B106: CDSL | C106: 806.8 | D106: 811.93 | E106: 796.87 | F106: 786.93 | G106: 771.87 | H106: 821.87 | I106: 836.93 | J106: 846.87 | K106: 827 | L106: 802 | M106: 7.25914
A107: 97 | B107: CENTURYPLY | C107: 350 | D107: 347.67 | E107: 333.33 | F107: 316.67 | G107: 302.33 | H107: 364.33 | I107: 378.67 | J107: 395.33 | K107: 362 | L107: 331 | M107: 8.15877
A108: 98 | B108: CENTURYTEX | C108: 481.6 | D108: 484.47 | E108: 470.93 | F108: 460.27 | G108: 446.73 | H108: 495.13 | I108: 508.67 | J108: 519.33 | K108: 498 | L108: 473.8 | M108: 4.41044
A109: 99 | B109: CERA | C109: 3844.35 | D109: 3853.67 | E109: 3801.78 | F109: 3759.22 | G109: 3707.33 | H109: 3896.23 | I109: 3948.12 | J109: 3990.68 | K109: 3905.55 | L109: 3811.1 | M109: 0.04916
A110: 100 | B110: CHALET | C110: 143.2 | D110: 142.93 | E110: 140.07 | F110: 136.93 | G110: 134.07 | H110: 146.07 | I110: 148.93 | J110: 152.07 | K110: 145.8 | L110: 139.8 | M110: 0.75405
A111: 101 | B111: CHAMBLFERT | C111: 217.35 | D111: 217.88 | E111: 214.07 | F111: 210.78 | G111: 206.97 | H111: 221.17 | I111: 224.98 | J111: 228.27 | K111: 221.7 | L111: 214.6 | M111: 8.07759
A112: 102 | B112: CHENNPETRO | C112: 110.55 | D112: 111.57 | E112: 108.68 | F112: 106.82 | G112: 103.93 | H112: 113.43 | I112: 116.32 | J112: 118.18 | K112: 114.45 | L112: 109.7 | M112: 15.42163
A113: 103 | B113: CHOLAHLDNG | C113: 568.25 | D113: 568.93 | E113: 563.87 | F113: 559.48 | G113: 554.42 | H113: 573.32 | I113: 578.38 | J113: 582.77 | K113: 574 | L113: 564.55 | M113: 0.82999
A114: 104 | B114: CHOLAFIN | C114: 571.75 | D114: 579.22 | E114: 557.48 | F114: 543.22 | G114: 521.48 | H114: 593.48 | I114: 615.22 | J114: 629.48 | K114: 600.95 | L114: 564.95 | M114: 54.81211
A115: 105 | B115: CIPLA | C115: 910.35 | D115: 910.70 | E115: 900.40 | F115: 890.45 | G115: 880.15 | H115: 920.65 | I115: 930.95 | J115: 940.90 | K115: 921 | L115: 900.75 | M115: 64.59737
A116: 106 | B116: CUB | C116: 166.75 | D116: 167.20 | E116: 165.05 | F116: 163.35 | G116: 161.20 | H116: 168.90 | I116: 171.05 | J116: 172.75 | K116: 169.35 | L116: 165.5 | M116: 14.47507
A117: 107 | B117: COALINDIA | C117: 133.05 | D117: 131.55 | E117: 128.50 | F117: 123.95 | G117: 120.90 | H117: 136.10 | I117: 139.15 | J117: 143.70 | K117: 134.6 | L117: 127 | M117: 273.9695
A118: 108 | B118: COCHINSHIP | C118: 365.55 | D118: 363.92 | E118: 356.63 | F118: 347.72 | G118: 340.43 | H118: 372.83 | I118: 380.12 | J118: 389.03 | K118: 371.2 | L118: 355 | M118: 3.19495
A119: 109 | B119: COFORGE | C119: 2869.05 | D119: 2869.80 | E119: 2819.85 | F119: 2770.65 | G119: 2720.70 | H119: 2919.00 | I119: 2968.95 | J119: 3018.15 | K119: 2919.75 | L119: 2820.6 | M119: 4.73597
A120: 110 | B120: COLPAL | C120: 1481.9 | D120: 1480.97 | E120: 1468.93 | F120: 1455.97 | G120: 1443.93 | H120: 1493.93 | I120: 1505.97 | J120: 1518.93 | K120: 1493 | L120: 1468 | M120: 7.25194
A121: 111 | B121: CONCOR | C121: 589.9 | D121: 582.07 | E121: 559.13 | F121: 528.37 | G121: 505.43 | H121: 612.83 | I121: 635.77 | J121: 666.53 | K121: 605 | L121: 551.3 | M121: 64.93359
A122: 112 | B122: COROMANDEL | C122: 741.9 | D122: 732.63 | E122: 720.27 | F122: 698.63 | G122: 686.27 | H122: 754.27 | I122: 766.63 | J122: 788.27 | K122: 745 | L122: 711 | M122: 7.5345
A123: 113 | B123: CREDITACC | C123: 595.4 | D123: 598.52 | E123: 589.48 | F123: 583.57 | G123: 574.53 | H123: 604.43 | I123: 613.47 | J123: 619.38 | K123: 607.55 | L123: 592.6 | M123: 0.35415
A124: 114 | B124: CROMPTON | C124: 384.9 | D124: 381.40 | E124: 376.80 | F124: 368.70 | G124: 364.10 | H124: 389.50 | I124: 394.10 | J124: 402.20 | K124: 386 | L124: 373.3 | M124: 15.48079
A125: 115 | B125: CUMMINSIND | C125: 837.6 | D125: 844.13 | E125: 826.92 | F125: 816.23 | G125: 799.02 | H125: 854.82 | I125: 872.03 | J125: 882.72 | K125: 861.35 | L125: 833.45 | M125: 6.37991
A126: 116 | B126: CYIENT | C126: 737.05 | D126: 739.52 | E126: 727.53 | F126: 718.02 | G126: 706.03 | H126: 749.03 | I126: 761.02 | J126: 770.53 | K126: 751.5 | L126: 730 | M126: 2.35198
A127: 117 | B127: DBCORP | C127: 81.25 | D127: 81.70 | E127: 80.60 | F127: 79.95 | G127: 78.85 | H127: 82.35 | I127: 83.45 | J127: 84.10 | K127: 82.8 | L127: 81.05 | M127: 1.82561
A128: 118 | B128: DCBBANK | C128: 90.65 | D128: 91.02 | E128: 88.63 | F128: 86.62 | G128: 84.23 | H128: 93.03 | I128: 95.42 | J128: 97.43 | K128: 93.4 | L128: 89 | M128: 25.55797
A129: 119 | B129: DCMSHRIRAM | C129: 702.4 | D129: 717.83 | E129: 675.67 | F129: 648.93 | G129: 606.77 | H129: 744.57 | I129: 786.73 | J129: 813.47 | K129: 760 | L129: 691.1 | M129: 12.22801
A130: 120 | B130: DLF | C130: 247.3 | D130: 248.32 | E130: 242.13 | F130: 236.97 | G130: 230.78 | H130: 253.48 | I130: 259.67 | J130: 264.83 | K130: 254.5 | L130: 243.15 | M130: 64.42696
A131: 121 | B131: DABUR | C131: 538.05 | D131: 539.67 | E131: 534.08 | F131: 530.12 | G131: 524.53 | H131: 543.63 | I131: 549.22 | J131: 553.18 | K131: 545.25 | L131: 535.7 | M131: 19.60727
A132: 122 | B132: DALBHARAT | C132: 1506.35 | D132: 1517.05 | E132: 1470.10 | F132: 1433.85 | G132: 1386.90 | H132: 1553.30 | I132: 1600.25 | J132: 1636.50 | K132: 1564 | L132: 1480.8 | M132: 2.28082
A133: 123 | B133: DEEPAKNTR | C133: 1865.6 | D133: 1844.50 | E133: 1789.00 | F133: 1712.40 | G133: 1656.90 | H133: 1921.10 | I133: 1976.60 | J133: 2053.20 | K133: 1900 | L133: 1767.9 | M133: 26.23486
A134: 124 | B134: DELTACORP | C134: 150.2 | D134: 150.80 | E134: 148.70 | F134: 147.20 | G134: 145.10 | H134: 152.30 | I134: 154.40 | J134: 155.90 | K134: 152.9 | L134: 149.3 | M134: 18.29365
A135: 125 | B135: DHANI | C135: 176.55 | D135: 177.70 | E135: 171.90 | F135: 167.25 | G135: 161.45 | H135: 182.35 | I135: 188.15 | J135: 192.80 | K135: 183.5 | L135: 173.05 | M135: 22.16564
A136: 126 | B136: DHANUKA | C136: 768.85 | D136: 768.47 | E136: 750.43 | F136: 732.02 | G136: 713.98 | H136: 786.88 | I136: 804.92 | J136: 823.33 | K136: 786.5 | L136: 750.05 | M136: 0.911
A137: 127 | B137: DBL | C137: 546.35 | D137: 546.27 | E137: 538.53 | F137: 530.72 | G137: 522.98 | H137: 554.08 | I137: 561.82 | J137: 569.63 | K137: 554 | L137: 538.45 | M137: 4.08
A138: 128 | B138: DISHTV | C138: 9.25 | D138: 9.28 | E138: 9.17 | F138: 9.08 | G138: 8.97 | H138: 9.37 | I138: 9.48 | J138: 9.57 | K138: 9.4 | L138: 9.2 | M138: 25.24431
A139: 129 | B139: DCAL | C139: 157.65 | D139: 158.63 | E139: 154.52 | F139: 151.38 | G139: 147.27 | H139: 161.77 | I139: 165.88 | J139: 169.02 | K139: 162.75 | L139: 155.5 | M139: 6.14461
A140: 130 | B140: DIVISLAB | C140: 4062.35 | D140: 4035.65 | E140: 3936.30 | F140: 3810.25 | G140: 3710.90 | H140: 4161.70 | I140: 4261.05 | J140: 4387.10 | K140: 4135 | L140: 3909.6 | M140: 24.99026
A141: 131 | B141: DIXON | C141: 4201.8 | D141: 4199.93 | E141: 4151.87 | F141: 4101.93 | G141: 4053.87 | H141: 4249.87 | I141: 4297.93 | J141: 4347.87 | K141: 4248 | L141: 4150 | M141: 2.2875
A142: 132 | B142: LALPATHLAB | C142: 2932.7 | D142: 2945.90 | E142: 2906.80 | F142: 2880.90 | G142: 2841.80 | H142: 2971.80 | I142: 3010.90 | J142: 3036.80 | K142: 2985 | L142: 2920 | M142: 5.53159
A143: 133 | B143: DRREDDY | C143: 5163.1 | D143: 5166.42 | E143: 5121.83 | F143: 5080.57 | G143: 5035.98 | H143: 5207.68 | I143: 5252.27 | J143: 5293.53 | K143: 5211 | L143: 5125.15 | M143: 13.0695
A144: 134 | B144: EIDPARRY | C144: 346.55 | D144: 341.50 | E144: 327.05 | F144: 307.55 | G144: 293.10 | H144: 361.00 | I144: 375.45 | J144: 394.95 | K144: 355.95 | L144: 322 | M144: 32.27618
A145: 135 | B145: EIHOTEL | C145: 86.7 | D145: 86.92 | E145: 85.93 | F145: 85.17 | G145: 84.18 | H145: 87.68 | I145: 88.67 | J145: 89.43 | K145: 87.9 | L145: 86.15 | M145: 3.26768
A146: 136 | B146: EPL | C146: 224.65 | D146: 226.12 | E146: 222.33 | F146: 220.02 | G146: 216.23 | H146: 228.43 | I146: 232.22 | J146: 234.53 | K146: 229.9 | L146: 223.8 | M146: 1.07216
A147: 137 | B147: ESABINDIA | C147: 1781.65 | D147: 1794.47 | E147: 1755.18 | F147: 1728.72 | G147: 1689.43 | H147: 1820.93 | I147: 1860.22 | J147: 1886.68 | K147: 1833.75 | L147: 1768 | M147: 0.07286
A148: 138 | B148: EDELWEISS | C148: 58.45 | D148: 59.07 | E148: 57.43 | F148: 56.42 | G148: 54.78 | H148: 60.08 | I148: 61.72 | J148: 62.73 | K148: 60.7 | L148: 58.05 | M148: 21.88497
A149: 139 | B149: EICHERMOT | C149: 2421.65 | D149: 2435.30 | E149: 2400.35 | F149: 2379.05 | G149: 2344.10 | H149: 2456.60 | I149: 2491.55 | J149: 2512.85 | K149: 2470.25 | L149: 2414 | M149: 6.46257
A150: 140 | B150: ELGIEQUIP | C150: 213.3 | D150: 214.42 | E150: 210.08 | F150: 206.87 | G150: 202.53 | H150: 217.63 | I150: 221.97 | J150: 225.18 | K150: 218.75 | L150: 211.2 | M150: 0.97157
A151: 141 | B151: EMAMILTD | C151: 491.65 | D151: 492.43 | E151: 488.87 | F151: 486.08 | G151: 482.52 | H151: 495.22 | I151: 498.78 | J151: 501.57 | K151: 496 | L151: 489.65 | M151: 1.22962
A152: 142 | B152: ENDURANCE | C152: 1292.45 | D152: 1295.90 | E152: 1271.80 | F152: 1251.15 | G152: 1227.05 | H152: 1316.55 | I152: 1340.65 | J152: 1361.30 | K152: 1320 | L152: 1275.25 | M152: 1.5018
A153: 143 | B153: ENGINERSIN | C153: 72.75 | D153: 73.13 | E153: 71.82 | F153: 70.88 | G153: 69.57 | H153: 74.07 | I153: 75.38 | J153: 76.32 | K153: 74.45 | L153: 72.2 | M153: 13.40968
A154: 144 | B154: EQUITAS | C154: 81 | D154: 80.67 | E154: 78.83 | F154: 76.67 | G154: 74.83 | H154: 82.83 | I154: 84.67 | J154: 86.83 | K154: 82.5 | L154: 78.5 | M154: 11.63228
A155: 145 | B155: ERIS | C155: 601.95 | D155: 601.05 | E155: 596.10 | F155: 590.25 | G155: 585.30 | H155: 606.90 | I155: 611.85 | J155: 617.70 | K155: 606 | L155: 595.2 | M155: 0.37569
A156: 146 | B156: ESCORTS | C156: 1118.6 | D156: 1128.87 | E156: 1100.73 | F156: 1082.87 | G156: 1054.73 | H156: 1146.73 | I156: 1174.87 | J156: 1192.73 | K156: 1157 | L156: 1111 | M156: 26.462
A157: 147 | B157: EXIDEIND | C157: 177.95 | D157: 179.18 | E157: 175.62 | F157: 173.28 | G157: 169.72 | H157: 181.52 | I157: 185.08 | J157: 187.42 | K157: 182.75 | L157: 176.85 | M157: 101.21057
A158: 148 | B158: FDC | C158: 304.1 | D158: 306.28 | E158: 300.87 | F158: 297.63 | G158: 292.22 | H158: 309.52 | I158: 314.93 | J158: 318.17 | K158: 311.7 | L158: 303.05 | M158: 1.679
A159: 149 | B159: FEDERALBNK | C159: 80.1 | D159: 79.75 | E159: 76.60 | F159: 73.10 | G159: 69.95 | H159: 83.25 | I159: 86.40 | J159: 89.90 | K159: 82.9 | L159: 76.25 | M159: 641.29131
A160: 150 | B160: FINEORG | C160: 2862.7 | D160: 2887.68 | E160: 2827.37 | F160: 2792.03 | G160: 2731.72 | H160: 2923.02 | I160: 2983.33 | J160: 3018.67 | K160: 2948 | L160: 2852.35 | M160: 1.18008
A161: 151 | B161: FINCABLES | C161: 361.75 | D161: 363.47 | E161: 358.98 | F161: 356.22 | G161: 351.73 | H161: 366.23 | I161: 370.72 | J161: 373.48 | K161: 367.95 | L161: 360.7 | M161: 0.70194
A162: 152 | B162: FINPIPE | C162: 151.25 | D162: 151.77 | E162: 149.78 | F162: 148.32 | G162: 146.33 | H162: 153.23 | I162: 155.22 | J162: 156.68 | K162: 153.75 | L162: 150.3 | M162: 7.0859
A163: 153 | B163: FSL | C163: 112.8 | D163: 113.08 | E163: 111.72 | F163: 110.63 | G163: 109.27 | H163: 114.17 | I163: 115.53 | J163: 116.62 | K163: 114.45 | L163: 112 | M163: 17.86114
A164: 154 | B164: FORTIS | C164: 210.7 | D164: 212.07 | E164: 208.63 | F164: 206.57 | G164: 203.13 | H164: 214.13 | I164: 217.57 | J164: 219.63 | K164: 215.5 | L164: 210 | M164: 24.44471
A165: 155 | B165: FCONSUMER | C165: 6.95 | D165: 7.02 | E165: 6.83 | F165: 6.72 | G165: 6.53 | H165: 7.13 | I165: 7.32 | J165: 7.43 | K165: 7.2 | L165: 6.9 | M165: 42.26465
A166: 156 | B166: FRETAIL | C166: 51.1 | D166: 50.93 | E166: 49.42 | F166: 47.73 | G166: 46.22 | H166: 52.62 | I166: 54.13 | J166: 55.82 | K166: 52.45 | L166: 49.25 | M166: 39.81346
A167: 157 | B167: GAIL | C167: 137.2 | D167: 136.98 | E167: 132.52 | F167: 127.83 | G167: 123.37 | H167: 141.67 | I167: 146.13 | J167: 150.82 | K167: 141.45 | L167: 132.3 | M167: 213.49478
A168: 158 | B168: GEPIL | C168: 259.9 | D168: 261.38 | E168: 257.32 | F168: 254.73 | G168: 250.67 | H168: 263.97 | I168: 268.03 | J168: 270.62 | K168: 265.45 | L168: 258.8 | M168: 0.50783
A169: 159 | B169: GHCL | C169: 236 | D169: 234.98 | E169: 233.07 | F169: 230.13 | G169: 228.22 | H169: 237.92 | I169: 239.83 | J169: 242.77 | K169: 236.9 | L169: 232.05 | M169: 2.04437
A170: 160 | B170: GMMPFAUDLR | C170: 4154.8 | D170: 4172.60 | E170: 4128.20 | F170: 4101.60 | G170: 4057.20 | H170: 4199.20 | I170: 4243.60 | J170: 4270.20 | K170: 4217 | L170: 4146 | M170: 0.2397
A171: 161 | B171: GMRINFRA | C171: 22.95 | D171: 22.83 | E171: 22.62 | F171: 22.28 | G171: 22.07 | H171: 23.17 | I171: 23.38 | J171: 23.72 | K171: 23.05 | L171: 22.5 | M171: 166.32975
A172: 162 | B172: GALAXYSURF | C172: 2922.15 | D172: 2919.05 | E172: 2878.10 | F172: 2834.05 | G172: 2793.10 | H172: 2963.10 | I172: 3004.05 | J172: 3048.10 | K172: 2960 | L172: 2875 | M172: 0.3457
A173: 163 | B173: GRSE | C173: 175.5 | D173: 176.18 | E173: 174.37 | F173: 173.23 | G173: 171.42 | H173: 177.32 | I173: 179.13 | J173: 180.27 | K173: 178 | L173: 175.05 | M173: 1.24242
A174: 164 | B174: GARFIBRES | C174: 2621 | D174: 2622.77 | E174: 2575.43 | F174: 2529.87 | G174: 2482.53 | H174: 2668.33 | I174: 2715.67 | J174: 2761.23 | K174: 2670.1 | L174: 2577.2 | M174: 0.19246
A175: 165 | B175: GICRE | C175: 204.75 | D175: 204.93 | E175: 201.87 | F175: 198.98 | G175: 195.92 | H175: 207.82 | I175: 210.88 | J175: 213.77 | K175: 208 | L175: 202.05 | M175: 5.84384
A176: 166 | B176: GILLETTE | C176: 5492.8 | D176: 5480.63 | E176: 5451.27 | F176: 5409.73 | G176: 5380.37 | H176: 5522.17 | I176: 5551.53 | J176: 5593.07 | K176: 5510 | L176: 5439.1 | M176: 0.03936
A177: 167 | B177: GLAXO | C177: 1458.9 | D177: 1454.77 | E177: 1444.63 | F177: 1430.37 | G177: 1420.23 | H177: 1469.03 | I177: 1479.17 | J177: 1493.43 | K177: 1464.9 | L177: 1440.5 | M177: 0.23086
A178: 168 | B178: GLENMARK | C178: 576.8 | D178: 575.42 | E178: 566.88 | F178: 556.97 | G178: 548.43 | H178: 585.33 | I178: 593.87 | J178: 603.78 | K178: 583.95 | L178: 565.5 | M178: 36.99395
A179: 169 | B179: GODFRYPHLP | C179: 861.9 | D179: 863.72 | E179: 857.73 | F179: 853.57 | G179: 847.58 | H179: 867.88 | I179: 873.87 | J179: 878.03 | K179: 869.7 | L179: 859.55 | M179: 0.18279
A180: 170 | B180: GODREJAGRO | C180: 499.35 | D180: 501.05 | E180: 494.40 | F180: 489.45 | G180: 482.80 | H180: 506.00 | I180: 512.65 | J180: 517.60 | K180: 507.7 | L180: 496.1 | M180: 0.75642
A181: 171 | B181: GODREJCP | C181: 691.75 | D181: 696.68 | E181: 682.57 | F181: 673.38 | G181: 659.27 | H181: 705.87 | I181: 719.98 | J181: 729.17 | K181: 710.8 | L181: 687.5 | M181: 10.65138
A182: 172 | B182: GODREJIND | C182: 509.95 | D182: 510.18 | E182: 504.47 | F182: 498.98 | G182: 493.27 | H182: 515.67 | I182: 521.38 | J182: 526.87 | K182: 515.9 | L182: 504.7 | M182: 0.50927
A183: 173 | B183: GODREJPROP | C183: 1368.35 | D183: 1373.42 | E183: 1352.83 | F183: 1337.32 | G183: 1316.73 | H183: 1388.93 | I183: 1409.52 | J183: 1425.03 | K183: 1394 | L183: 1357.9 | M183: 4.07058
A184: 174 | B184: GRANULES | C184: 333.7 | D184: 334.53 | E184: 329.17 | F184: 324.63 | G184: 319.27 | H184: 339.07 | I184: 344.43 | J184: 348.97 | K184: 339.9 | L184: 330 | M184: 38.50263
A185: 175 | B185: GRAPHITE | C185: 732.4 | D185: 734.37 | E185: 719.08 | F185: 705.77 | G185: 690.48 | H185: 747.68 | I185: 762.97 | J185: 776.28 | K185: 749.65 | L185: 721.05 | M185: 30.78635
A186: 176 | B186: GRASIM | C186: 1401.75 | D186: 1380.72 | E186: 1354.03 | F186: 1306.32 | G186: 1279.63 | H186: 1428.43 | I186: 1455.12 | J186: 1502.83 | K186: 1407.4 | L186: 1333 | M186: 32.61678
A187: 177 | B187: GESHIP | C187: 314.9 | D187: 313.93 | E187: 303.87 | F187: 292.83 | G187: 282.77 | H187: 324.97 | I187: 335.03 | J187: 346.07 | K187: 324 | L187: 302.9 | M187: 17.71902
A188: 178 | B188: GREAVESCOT | C188: 145.35 | D188: 142.87 | E188: 136.73 | F188: 128.12 | G188: 121.98 | H188: 151.48 | I188: 157.62 | J188: 166.23 | K188: 149 | L188: 134.25 | M188: 67.06307
A189: 179 | B189: GRINDWELL | C189: 915.9 | D189: 916.02 | E189: 903.88 | F189: 891.87 | G189: 879.73 | H189: 928.03 | I189: 940.17 | J189: 952.18 | K189: 928.15 | L189: 904 | M189: 0.15125
A190: 180 | B190: GUJALKALI | C190: 412.15 | D190: 414.63 | E190: 407.52 | F190: 402.88 | G190: 395.77 | H190: 419.27 | I190: 426.38 | J190: 431.02 | K190: 421.75 | L190: 410 | M190: 2.34372
A191: 181 | B191: GAEL | C191: 150.25 | D191: 148.72 | E191: 143.93 | F191: 137.62 | G191: 132.83 | H191: 155.03 | I191: 159.82 | J191: 166.13 | K191: 153.5 | L191: 142.4 | M191: 19.02929
A192: 182 | B192: FLUOROCHEM | C192: 798.55 | D192: 796.38 | E192: 773.77 | F192: 748.98 | G192: 726.37 | H192: 821.17 | I192: 843.78 | J192: 868.57 | K192: 819 | L192: 771.6 | M192: 1.31749
A193: 183 | B193: GUJGASLTD | C193: 530.95 | D193: 529.97 | E193: 520.43 | F193: 509.92 | G193: 500.38 | H193: 540.48 | I193: 550.02 | J193: 560.53 | K193: 539.5 | L193: 519.45 | M193: 7.85408
A194: 184 | B194: GMDCLTD | C194: 58.8 | D194: 58.47 | E194: 57.13 | F194: 55.47 | G194: 54.13 | H194: 60.13 | I194: 61.47 | J194: 63.13 | K194: 59.8 | L194: 56.8 | M194: 21.17782
A195: 185 | B195: GNFC | C195: 361.85 | D195: 361.92 | E195: 350.18 | F195: 338.52 | G195: 326.78 | H195: 373.58 | I195: 385.32 | J195: 396.98 | K195: 373.65 | L195: 350.25 | M195: 20.41968
A196: 186 | B196: GPPL | C196: 92.2 | D196: 92.72 | E196: 90.83 | F196: 89.47 | G196: 87.58 | H196: 94.08 | I196: 95.97 | J196: 97.33 | K196: 94.6 | L196: 91.35 | M196: 3.79686
A197: 187 | B197: GSFC | C197: 94.45 | D197: 94.68 | E197: 92.57 | F197: 90.68 | G197: 88.57 | H197: 96.57 | I197: 98.68 | J197: 100.57 | K197: 96.8 | L197: 92.8 | M197: 16.0712
A198: 188 | B198: GSPL | C198: 269.65 | D198: 269.78 | E198: 265.12 | F198: 260.58 | G198: 255.92 | H198: 274.32 | I198: 278.98 | J198: 283.52 | K198: 274.45 | L198: 265.25 | M198: 8.8244
A199: 189 | B199: GULFOILLUB | C199: 707.2 | D199: 709.97 | E199: 701.43 | F199: 695.67 | G199: 687.13 | H199: 715.73 | I199: 724.27 | J199: 730.03 | K199: 718.5 | L199: 704.2 | M199: 0.10289
A200: 190 | B200: HEG | C200: 2303.1 | D200: 2298.05 | E200: 2237.10 | F200: 2171.10 | G200: 2110.15 | H200: 2364.05 | I200: 2425.00 | J200: 2491.00 | K200: 2359 | L200: 2232.05 | M200: 8.01157
A201: 191 | B201: HCLTECH | C201: 898.95 | D201: 903.12 | E201: 891.23 | F201: 883.52 | G201: 871.63 | H201: 910.83 | I201: 922.72 | J201: 930.43 | K201: 915 | L201: 895.4 | M201: 109.21664
A202: 192 | B202: HDFCAMC | C202: 2776.35 | D202: 2786.13 | E202: 2747.27 | F202: 2718.18 | G202: 2679.32 | H202: 2815.22 | I202: 2854.08 | J202: 2883.17 | K202: 2825 | L202: 2757.05 | M202: 3.26476
A203: 193 | B203: HDFCBANK | C203: 1412.3 | D203: 1424.53 | E203: 1395.27 | F203: 1378.23 | G203: 1348.97 | H203: 1441.57 | I203: 1470.83 | J203: 1487.87 | K203: 1453.8 | L203: 1407.5 | M203: 176.16451
A204: 194 | B204: HDFCLIFE | C204: 665.1 | D204: 667.93 | E204: 657.87 | F204: 650.63 | G204: 640.57 | H204: 675.17 | I204: 685.23 | J204: 692.47 | K204: 678 | L204: 660.7 | M204: 27.42166
A205: 195 | B205: HFCL | C205: 27.8 | D205: 27.83 | E205: 27.02 | F205: 26.23 | G205: 25.42 | H205: 28.62 | I205: 29.43 | J205: 30.22 | K205: 28.65 | L205: 27.05 | M205: 40.23778
A206: 196 | B206: HATHWAY | C206: 23.45 | D206: 23.47 | E206: 22.83 | F206: 22.22 | G206: 21.58 | H206: 24.08 | I206: 24.72 | J206: 25.33 | K206: 24.1 | L206: 22.85 | M206: 73.83743
... 321 more rows

Sheet Bulk Deals
E6: Back To Main Page
A7: Subject : | B7: BULK DEAL | D7: =Main!B10 -> 2021-05-03
A9: Date | B9: Scrip code | C9: Scrip Name | D9: Client Name | E9: Buy / Sell | F9: Quantity Traded | G9: Trade Price / Wt.Avg.trade price | H9: Exchange
A10: 2021-04-30 | B10: 508136 | C10: BNALTD | D10: RAMESH CHIMANLAL SHAH | E10: SELL | F10: 15,895 | G10: 150.94 | H10: BSE
A11: 2021-04-30 | B11: 539197 | C11: DEVHARI | D11: FESTINO VINCOM LIMITED | E11: SELL | F11: 400,000 | G11: 0.71 | H11: BSE
A12: 2021-04-30 | B12: 531739 | C12: GENNEX | D12: REGIUS SUPPLIERS PRIVATE LIMITED | E12: SELL | F12: 761,488 | G12: 6.61 | H12: BSE
A13: 2021-04-30 | B13: 531739 | C13: GENNEX | D13: PRAGYA MERCANTILE PVT LTD | E13: BUY | F13: 1,800,000 | G13: 6.61 | H13: BSE
A14: 2021-04-30 | B14: 531739 | C14: GENNEX | D14: PRAGYA MERCANTILE PVT LTD | E14: SELL | F14: 50,000 | G14: 6.58 | H14: BSE
A15: 2021-04-30 | B15: 539692 | C15: IFINSER | D15: PARAS MAL BOTHRA | E15: BUY | F15: 19,652 | G15: 6.48 | H15: BSE
A16: 2021-04-30 | B16: 514165 | C16: INDIANACRY | D16: GURDIAL SINGH RIAR | E16: SELL | F16: 750,000 | G16: 11.78 | H16: BSE
A17: 2021-04-30 | B17: 535387 | C17: LAKHOTIA | D17: BHARAT B MISHRA HUF | E17: BUY | F17: 62,500 | G17: 8 | H17: BSE
A18: 2021-04-30 | B18: 535387 | C18: LAKHOTIA | D18: VIJAYKUMAR MUKHIYA | E18: SELL | F18: 73,901 | G18: 8 | H18: BSE
A19: 2021-04-30 | B19: 530219 | C19: NUTRICIRCLE | D19: VIPUL MOHAN PATEL | E19: BUY | F19: 1,400 | G19: 62.54 | H19: BSE
A20: 2021-04-30 | B20: 540198 | C20: OSIAJEE | D20: ACVC FOREX PRIVATE LIMITED | E20: BUY | F20: 14,259 | G20: 25.9 | H20: BSE
A21: 2021-04-30 | B21: 540198 | C21: OSIAJEE | D21: ACVC FOREX PRIVATE LIMITED | E21: SELL | F21: 33,369 | G21: 25.94 | H21: BSE
A22: 2021-04-30 | B22: 539291 | C22: OZONEWORLD | D22: JAYANTA RAY CHOUDHURY | E22: BUY | F22: 16,319 | G22: 65.09 | H22: BSE
A23: 2021-04-30 | B23: 539291 | C23: OZONEWORLD | D23: JAYANTA RAY CHOUDHURY | E23: SELL | F23: 20,169 | G23: 64.38 | H23: BSE
A24: 2021-04-30 | B24: 539561 | C24: REMLIFE | D24: UPPINANGADYSUDHINDRANAYAK | E24: BUY | F24: 18,720 | G24: 51.04 | H24: BSE
A25: 2021-04-30 | B25: 539561 | C25: REMLIFE | D25: SAURABHMOHNOT | E25: SELL | F25: 21,943 | G25: 50.09 | H25: BSE
A26: 2021-04-30 | B26: 500366 | C26: ROLTA | D26: MULTIPLIER SHARE & STOCK ADVISORS PRIVATE LIMITED | E26: BUY | F26: 900,000 | G26: 5.47 | H26: BSE
A27: 2021-04-30 | B27: 500366 | C27: ROLTA | D27: MULTIPLIER SHARE & STOCK ADVISORS PRIVATE LIMITED | E27: SELL | F27: 600,000 | G27: 5.47 | H27: BSE
A28: 2021-04-30 | B28: 532939 | C28: RPOWER | D28: HOUSING DEVELOPMENT FINANCE CORPORATION LIMITED | E28: SELL | F28: 17,124,993 | G28: 5.13 | H28: BSE
A29: 2021-04-30 | B29: 540259 | C29: SHANGAR | D29: OLGA TRADING PRIVATE LIMITED | E29: BUY | F29: 76,454 | G29: 13.96 | H29: BSE
A30: 2021-04-30 | B30: 540259 | C30: SHANGAR | D30: OLGA TRADING PRIVATE LIMITED | E30: SELL | F30: 130,068 | G30: 13.75 | H30: BSE
A31: 2021-04-30 | B31: 540259 | C31: SHANGAR | D31: GOENKA BUSINESS & FINANCE LIMITED | E31: SELL | F31: 103,603 | G31: 13.49 | H31: BSE
A32: 2021-04-30 | B32: 539026 | C32: SSPNFIN | D32: PAWAN KANSAL | E32: BUY | F32: 32,000 | G32: 10.25 | H32: BSE
A33: 2021-04-30 | B33: 539026 | C33: SSPNFIN | D33: ASHOK KUMAR SINGH | E33: BUY | F33: 44,000 | G33: 10.72 | H33: BSE
A34: 2021-04-30 | B34: 539026 | C34: SSPNFIN | D34: ESPS FINSERVE PRIVATE LIMITED | E34: SELL | F34: 44,000 | G34: 10.67 | H34: BSE
A35: 2021-04-30 | B35: 539026 | C35: SSPNFIN | D35: MAHESH PRATAP SINGH | E35: BUY | F35: 44,000 | G35: 10.67 | H35: BSE
A36: 2021-04-30 | B36: 539026 | C36: SSPNFIN | D36: MAHESH PRATAP SINGH | E36: SELL | F36: 44,000 | G36: 10.72 | H36: BSE
A37: 2021-04-30 | B37: 539026 | C37: SSPNFIN | D37: CHANDER PRAKASH TALWANI | E37: BUY | F37: 28,000 | G37: 10.2 | H37: BSE
A38: 2021-04-30 | B38: 539026 | C38: SSPNFIN | D38: SUBASH RAMASHISH MISHRA | E38: SELL | F38: 64,000 | G38: 10.23 | H38: BSE
A39: 2021-04-30 | B39: 531771 | C39: TOWASOK | D39: BHAVINI JAIN | E39: BUY | F39: 25,000 | G39: 5.44 | H39: BSE
A40: 2021-04-30 | B40: 531771 | C40: TOWASOK | D40: SHARAD KANAYALAL SHAH | E40: SELL | F40: 42,575 | G40: 5.44 | H40: BSE
A41: 2021-04-30 | B41: ANDHRSUGAR | C41: The Andhra Sugars Ltd | D41: VIKAS VIJAYKUMAR KHEMANI | E41: BUY | F41: 150,000 | G41: 391.54 | H41: NSE
A42: 2021-04-30 | B42: BPL | C42: BPL Ltd. | D42: ALPHA LEON ENTERPRISES LLP | E42: BUY | F42: 218,775 | G42: 34.24 | H42: NSE
A43: 2021-04-30 | B43: COFFEEDAY | C43: Coffee Day Enterprise Ltd | D43: SETU SECURITIES PVT LTD | E43: BUY | F43: 1,914,925 | G43: 37.7 | H43: NSE
A44: 2021-04-30 | B44: DHAMPURSUG | C44: Dhampur Sugar Mills Ltd | D44: MBL & CO. LIMITED | E44: BUY | F44: 377,942 | G44: 233.2 | H44: NSE
A45: 2021-04-30 | B45: FILATEX | C45: Filatex India Ltd | D45: WHEELERS DEVELOPERS PRIVATE LIMITED | E45: BUY | F45: 1,271,716 | G45: 92.74 | H45: NSE
A46: 2021-04-30 | B46: KEERTI | C46: Keerti Know & Skill Ltd. | D46: OLGA TRADING PRIVATE LIMITED | E46: BUY | F46: 47,368 | G46: 24.09 | H46: NSE
A47: 2021-04-30 | B47: MAGADSUGAR | C47: Magadh Sugar & Energy Ltd | D47: ALPHA LEON ENTERPRISES LLP | E47: BUY | F47: 94,575 | G47: 172.02 | H47: NSE
A48: 2021-04-30 | B48: MAGADSUGAR | C48: Magadh Sugar & Energy Ltd | D48: BYTES AND PIXELS FINSOFT LLP . | E48: BUY | F48: 88,865 | G48: 172.87 | H48: NSE
A49: 2021-04-30 | B49: MAGADSUGAR | C49: Magadh Sugar & Energy Ltd | D49: NAVY RAMAVAT (HUF) | E49: BUY | F49: 75,034 | G49: 172.9 | H49: NSE
A50: 2021-04-30 | B50: MANINDS | C50: Man Industries (I) Ltd | D50: GRAVITON RESEARCH CAPITAL LLP | E50: BUY | F50: 333,146 | G50: 92.44 | H50: NSE
A51: 2021-04-30 | B51: PNC | C51: Pritish Nandy Comm. Ltd. | D51: MANSI SHARES & STOCK ADVISORS PVT LTD | E51: BUY | F51: 90,000 | G51: 47.25 | H51: NSE
A52: 2021-04-30 | B52: RANASUG | C52: Rana Sugars Ltd | D52: NAVY RAMAVAT (HUF) | E52: BUY | F52: 829,953 | G52: 14.15 | H52: NSE
A53: 2021-04-30 | B53: RCOM | C53: Reliance Comm. Ltd. | D53: ANKITA VISHAL SHAH | E53: BUY | F53: 21,072,017 | G53: 1.64 | H53: NSE
A54: 2021-04-30 | B54: RELINFRA | C54: Reliance Infrastructu Ltd | D54: GRAVITON RESEARCH CAPITAL LLP | E54: BUY | F54: 1,376,076 | G54: 42.15 | H54: NSE
A55: 2021-04-30 | B55: RELINFRA | C55: Reliance Infrastructu Ltd | D55: QE SECURITIES | E55: BUY | F55: 1,397,501 | G55: 41.82 | H55: NSE
A56: 2021-04-30 | B56: ROLTA | C56: Rolta India Ltd. | D56: MULTIPLIER S AND S ADV PVT LTD | E56: BUY | F56: 2,298,759 | G56: 5.32 | H56: NSE
A57: 2021-04-30 | B57: ROLTA | C57: Rolta India Ltd. | D57: SWAPNIL MEHTA | E57: BUY | F57: 1,000,000 | G57: 5.4 | H57: NSE
A58: 2021-04-30 | B58: ROLTA | C58: Rolta India Ltd. | D58: MANSI SHARES & STOCK ADVISORS PVT LTD | E58: BUY | F58: 1,356,183 | G58: 5.4 | H58: NSE
A59: 2021-04-30 | B59: SHRENIK | C59: Shrenik Limited | D59: ALPHA LEON ENTERPRISES LLP | E59: BUY | F59: 1,004,000 | G59: 1.9 | H59: NSE
A60: 2021-04-30 | B60: SHRENIK | C60: Shrenik Limited | D60: DEVDIP BUILDERS PRIVATE LIMITED | E60: BUY | F60: 3,804,901 | G60: 1.93 | H60: NSE
A61: 2021-04-30 | B61: TATAMETALI | C61: Tata Metaliks Ltd | D61: XTX MARKETS LLP | E61: BUY | F61: 161,336 | G61: 1036.2 | H61: NSE
A62: 2021-04-30 | B62: TATAMETALI | C62: Tata Metaliks Ltd | D62: QE SECURITIES | E62: BUY | F62: 159502 | G62: 1043.07 | H62: NSE
A63: 2021-04-30 | B63: TATAMETALI | C63: Tata Metaliks Ltd | D63: GRAVITON RESEARCH CAPITAL LLP | E63: BUY | F63: 189,845 | G63: 1019.7 | H63: NSE
A64: 2021-04-30 | B64: BCP | C64: B.C. Power Controls Ltd | D64: ASHWIN KAMDAR (HUF) | E64: SELL | F64: 363,484 | G64: 3.16 | H64: NSE
A65: 2021-04-30 | B65: BPL | C65: BPL Ltd. | D65: ALPHA LEON ENTERPRISES LLP | E65: SELL | F65: 253,775 | G65: 34.77 | H65: NSE
A66: 2021-04-30 | B66: DHAMPURSUG | C66: Dhampur Sugar Mills Ltd | D66: MBL & CO. LIMITED | E66: SELL | F66: 369,736 | G66: 234.47 | H66: NSE
A67: 2021-04-30 | B67: KEERTI | C67: Keerti Know & Skill Ltd. | D67: OLGA TRADING PRIVATE LIMITED | E67: SELL | F67: 59,785 | G67: 24.66 | H67: NSE
A68: 2021-04-30 | B68: MAGADSUGAR | C68: Magadh Sugar & Energy Ltd | D68: BYTES AND PIXELS FINSOFT LLP . | E68: SELL | F68: 86,105 | G68: 172.89 | H68: NSE
A69: 2021-04-30 | B69: MAGADSUGAR | C69: Magadh Sugar & Energy Ltd | D69: NAVY RAMAVAT (HUF) | E69: SELL | F69: 75,058 | G69: 172.54 | H69: NSE
A70: 2021-04-30 | B70: MAGADSUGAR | C70: Magadh Sugar & Energy Ltd | D70: ALPHA LEON ENTERPRISES LLP | E70: SELL | F70: 102,024 | G70: 172.66 | H70: NSE
A71: 2021-04-30 | B71: MANINDS | C71: Man Industries (I) Ltd | D71: GRAVITON RESEARCH CAPITAL LLP | E71: SELL | F71: 333,146 | G71: 92.27 | H71: NSE
A72: 2021-04-30 | B72: RANASUG | C72: Rana Sugars Ltd | D72: NAVY RAMAVAT (HUF) | E72: SELL | F72: 829,953 | G72: 14.15 | H72: NSE
A73: 2021-04-30 | B73: RCOM | C73: Reliance Comm. Ltd. | D73: ANKITA VISHAL SHAH | E73: SELL | F73: 5,672,017 | G73: 1.64 | H73: NSE
A74: 2021-04-30 | B74: RCOM | C74: Reliance Comm. Ltd. | D74: HOUSING DEVELOPMENT FINANCE CORPORATION LIMITED | E74: SELL | F74: 27,500,000 | G74: 1.6 | H74: NSE
A75: 2021-04-30 | B75: RELINFRA | C75: Reliance Infrastructu Ltd | D75: GRAVITON RESEARCH CAPITAL LLP | E75: SELL | F75: 1,376,076 | G75: 42.15 | H75: NSE
A76: 2021-04-30 | B76: RELINFRA | C76: Reliance Infrastructu Ltd | D76: QE SECURITIES | E76: SELL | F76: 1,401,293 | G76: 41.92 | H76: NSE
A77: 2021-04-30 | B77: ROLTA | C77: Rolta India Ltd. | D77: MULTIPLIER S AND S ADV PVT LTD | E77: SELL | F77: 4,077,111 | G77: 5.38 | H77: NSE
A78: 2021-04-30 | B78: ROLTA | C78: Rolta India Ltd. | D78: MANSI SHARES & STOCK ADVISORS PVT LTD | E78: SELL | F78: 2,306,045 | G78: 5.4 | H78: NSE
A79: 2021-04-30 | B79: ROLTA | C79: Rolta India Ltd. | D79: SWAPNIL MEHTA | E79: SELL | F79: 1,000,000 | G79: 5.11 | H79: NSE
A80: 2021-04-30 | B80: RPOWER | C80: Reliance Power Limited | D80: HOUSING DEVELOPMENT FINANCE CORPORATION LIMITED | E80: SELL | F80: 22,077,935 | G80: 5.04 | H80: NSE
A81: 2021-04-30 | B81: SHRENIK | C81: Shrenik Limited | D81: ALPHA LEON ENTERPRISES LLP | E81: SELL | F81: 3,480,938 | G81: 1.95 | H81: NSE
A82: 2021-04-30 | B82: TATAMETALI | C82: Tata Metaliks Ltd | D82: XTX MARKETS LLP | E82: SELL | F82: 161,336 | G82: 1039.9 | H82: NSE
A83: 2021-04-30 | B83: TATAMETALI | C83: Tata Metaliks Ltd | D83: QE SECURITIES | E83: SELL | F83: 159,315 | G83: 1040.58 | H83: NSE
A84: 2021-04-30 | B84: TATAMETALI | C84: Tata Metaliks Ltd | D84: GRAVITON RESEARCH CAPITAL LLP | E84: SELL | F84: 189,845 | G84: 1022.4 | H84: NSE
A85: 2021-04-30 | B85: TOTAL | C85: Total Transport Sys Ltd | D85: SHIFALI MEHTA | E85: SELL | F85: 75,000 | G85: 40.95 | H85: NSE

Sheet Call Tracker (Equity & F&O)
M5: Back To Main Page
A6: Retail Research Technical Calls & Fundamental Performance Report for the month of April-2021
M7: =Main!B10 -> 2021-05-03
B8: Positional Call
A9: Sr.no | B9: Date | D9: Company | E9: Rec | F9: Rec Price | G9: Stop Loss*** | H9: Call Closed At | I9: Target | J9: Remark | K9: Profit / Loss per Share | L9: All charges | M9: Net Gain / Loss % | N9: Status | O9: Closed Date
A10: 1 | B10: 2021-02-26 | D10: IOC | E10: Buy<> | F10: 95.5 | G10: 88.5 | H10: 94.25 | I10: 107-112 | J10: Loss of Rs.1.25/- | K10: =H10-F10 -> -1.25 | L10: =(F10*-0.8)/100 -> -0.76 | M10: =(K10+L10)/F10 -> -2.11% | N10: Unsuccessful | O10: 2021-04-12 | R10: N
A11: 2 | B11: 2021-03-18 | D11: IRCTC | E11: Buy | F11: 1785 | G11: 1670 | H11: =(1872.5+1775)/2 -> 1,823.75 | I11: 2000 | J11: Profit of Rs.38.75/- | K11: =H11-F11 -> 38.75 | L11: =(F11*-0.8)/100 -> -14.28 | M11: 1.37% | N11: Successful | O11: 2021-04-01 | R11: H
A12: 3 | B12: 2021-03-19 | D12: HDFCAMC | E12: Buy | F12: 2850 | G12: 2650 | H12: 3,025.00 | I12: 3050-3250 | J12: Profit of Rs.175/- | K12: 175 | L12: -22.80 | M12: 5.34% | N12: Successful | O12: 2021-04-08 | R12: N
A13: 4 | B13: 2021-03-19 | D13: SRF | E13: Buy | F13: 5275 | G13: 4950 | H13: 5,725.00 | I13: 5700-5800 | J13: Profit of Rs.450/- | K13: =H13-F13 -> 450 | L13: =(F13*-0.8)/100 -> -42.20 | M13: =(K13+L13)/F13 -> 7.73% | N13: Successful | O13: 2021-04-01 | R13: N
A14: 5 | B14: 2021-03-22 | D14: RELIANCE | E14: Buy | F14: 2050 | G14: 1940 | H14: 1,925.00 | I14: 2300-2400 | J14: Loss of Rs.125/- | K14: -125 | L14: -16.40 | M14: -6.90% | N14: Unsuccessful | O14: 2021-04-12 | R14: H
A15: 6 | B15: 2021-03-22 | D15: IGL | E15: Buy | F15: 507 | G15: 478 | H15: 536.5 | I15: 545-564 | J15: Profit of Rs.29.50/- | K15: =H15-F15 -> 29.5 | L15: =(F15*-0.8)/100 -> -4.06 | M15: =(K15+L15)/F15 -> 5.02% | N15: Successful | O15: 2021-04-09 | R15: H
A16: 7 | B16: 2021-03-26 | D16: PIDILITIND | E16: Buy | F16: 1785 | G16: 1675 | H16: 1895 | I16: 2000-2050 | J16: Profit of Rs.110/- | K16: =H16-F16 -> 110 | L16: =(F16*-0.8)/100 -> -14.28 | M16: =(K16+L16)/F16 -> 5.36% | N16: Successful | O16: 2021-04-07 | R16: N
A17: 8 | B17: 2021-03-30 | D17: SUDARSCHEM | E17: Buy | F17: 516 | G17: 477 | H17: 547.5 | I17: 560-580 | J17: Profit of Rs.31.5/- | K17: 31.5 | L17: -4.13 | M17: 5.30% | N17: Successful | O17: 2021-04-07 | R17: H
A18: 5 | B18: 2021-03-22 | D18: ESCORT | E18: Buy | F18: 1270 | G18: 1195 | H18: 1,195.00 | I18: 1450 | J18: Loss of Rs.75/- | K18: -75 | L18: -10.16 | M18: -6.71% | N18: Unsuccessful | O18: 2021-04-15 | R18: N
A19: 10 | B19: 2021-04-05 | D19: HDFCBANK | E19: Buy | F19: 1465-1475 | G19: 1370 | I19: 1600-1700 | J19: Open | R19: H
A20: 11 | B20: 2021-04-05 | D20: EXIDEIND | E20: Buy | F20: 182 | G20: 174 | H20: 173.00 | I20: 195-200 | J20: Loss of Rs.9/- | K20: =H20-F20 -> -9 | L20: =(F20*-0.8)/100 -> -1.46 | M20: =(K20+L20)/F20 -> -5.75% | N20: Unsuccessful | O20: 2021-04-22 | R20: H
A21: 12 | B21: 2021-04-07 | D21: ICICIBANK | E21: Buy | F21: 569 | G21: 534 | H21: 607 | I21: 620-640 | J21: Profit of Rs.38/- | K21: 38 | L21: -4.55 | M21: 5.88% | N21: Successful | O21: 2021-04-28 | R21: H
A22: 13 | B22: 2021-04-09 | D22: GLAXO | E22: Buy | F22: 1430-1450 | G22: 1370 | I22: 1550-1600 | J22: Open | R22: H
A23: 14 | B23: 2021-04-15 | D23: GMMPFAUDLR | E23: Buy | F23: 4125 | G23: 3850 | H23: 4,350.00 | I23: 4500-4600 | J23: Part Profit of Rs.225/- | K23: =H23-F23 -> 225 | L23: =(F23*-0.8)/100 -> -33.00 | M23: =(K23+L23)/F23 -> 4.65% | N23: Successful | O23: 2021-04-28 | R23: N
A24: 15 | B24: 2021-04-19 | D24: PIDILITIND | E24: Buy | F24: 1765 | G24: 1680 | H24: 1870 | I24: 1900-1950 | J24: Profit of Rs.105/- | K24: 105 | L24: -14.12 | M24: 5.15% | N24: Successful | O24: 2021-04-28 | R24: H
A25: 16 | B25: 2021-04-27 | D25: GODREJAGRO | E25: Buy | F25: 492.5 | G25: 460 | H25: 515.00 | I25: 550 | J25: Part Profit of Rs.22.50/- | K25: =H25-F25 -> 22.5 | L25: =(F25*-0.8)/100 -> -3.94 | M25: =(K25+L25)/F25 -> 3.77% | N25: Successful | O25: 2021-04-29
A26: 17 | B26: 2021-04-28 | D26: HDFCAMC | E26: Buy | F26: 2790-2810 | G26: 2600 | I26: 3200 | J26: Open
A27: 18 | B27: 2021-04-29 | D27: SUMICHEM | E27: Buy | F27: 298-302 | G27: 278 | I27: 330-340 | J27: Open
A33: CLBS = Closing Basis ***
A34: Dividend adjusted <> | F34: Reinitiated $
A35: Part book {} | F35: Revised stoploss #
B37: Momentum Call
A38: Sr.no | B38: Date | D38: Company | E38: Rec | F38: Rec Price | G38: Stop Loss | H38: Call Closed At | I38: Target | J38: Remark | K38: Profit / Loss per Share/Lot | L38: All charges | M38: Net Gain / Loss % | N38: Status | O38: Closed Date
A39: 1 | B39: 2021-03-22 | D39: HDFCLIFE | E39: Buy | F39: 688.5 | G39: 668 | H39: 703 | I39: 715-725 | J39: Profit of Rs.14.5/- | K39: =H39-F39 -> 14.5 | L39: =(F39*-0.7)/100 -> -4.82 | M39: =(K39+L39)/F39 -> 1.41% | N39: Successful | O39: 2021-04-07 | R39: H
A40: 2 | B40: 2021-03-30 | D40: DHANUKA | E40: Buy | F40: 681 | G40: 660 | H40: 702.5 | I40: 710-720 | J40: Profit of Rs.21.5/- | K40: =H40-F40 -> 21.5 | L40: -4.77 | M40: =(K40+L40)/F40 -> 2.46% | N40: Successful | O40: 2021-04-01 | R40: H
A41: 3 | B41: 2021-03-31 | D41: DIVISLAB | E41: Buy | F41: 3685 | G41: 3490 | H41: 3775 | I41: 3750-3800 | J41: Profit of Rs.90/- | K41: =H41-F41 -> 90 | L41: -25.80 | M41: =(K41+L41)/F41 -> 1.74% | N41: Successful | O41: 2021-04-05 | R41: H
A42: 4 | B42: 2021-03-31 | D42: CSBBANK | E42: Buy | F42: 234.5 | G42: 228 | H42: 241 | I42: 245-250 | J42: Profit of Rs.6.5/- | K42: 6.5 | L42: -1.64 | M42: 2.07% | N42: Successful | O42: 2021-04-06 | R42: H
A43: 5 | B43: 2021-04-05 | D43: KOTAKBANK | E43: Buy | F43: 1782.5 | G43: 1730 | H43: 1710 | I43: 1880 | J43: Loss of Rs.72.5/- | K43: -72.5 | L43: -12.48 | M43: -4.77% | N43: Unsuccessful | O43: 2021-04-19 | R43: H
A44: 6 | B44: 2021-04-05 | D44: CUMMINSIND | E44: Buy | F44: 885 | G44: 855 | H44: 855 | I44: 930-940 | J44: Loss of Rs.30/- | K44: =H44-F44 -> -30 | L44: -6.20 | M44: =(K44+L44)/F44 -> -4.09% | N44: Unsuccessful | O44: 2021-04-12 | R44: N
A45: 7 | B45: 2021-04-05 | D45: GUJGASLTD | E45: Buy | F45: 548 | G45: 530 | H45: 568 | I45: 585-590 | J45: Profit of Rs.20/- | K45: =H45-F45 -> 20 | L45: -3.84 | M45: =(K45+L45)/F45 -> 2.95% | N45: Successful | O45: 2021-04-09 | R45: N
A46: 8 | B46: 2021-04-06 | D46: TVSMOTOR | E46: Sell | F46: 590 | G46: 608 | H46: 580.5 | I46: 560 | J46: Profit of Rs.9.5/- | K46: =F46-H46 -> 9.5 | L46: =(F46*-0.07)/100 -> -0.41 | M46: =(K46+L46)/F46 -> 1.54% | N46: Successful | O46: 2021-04-06 | R46: N
A47: 9 | B47: 2021-04-07 | D47: WIPRO | E47: Buy | F47: 425 | G47: 412 | H47: 435.5 | I47: 440-450 | J47: Profit of Rs.10.5/- | K47: =H47-F47 -> 10.5 | L47: =(F47*-0.07)/100 -> -0.30 | M47: 2.40% | N47: Successful | O47: 2021-04-07 | R47: H
A48: 10 | B48: 2021-04-07 | D48: GLENMARK | E48: Buy | F48: 501 | G48: 486 | H48: 515 | I48: 524-530 | J48: Profit of Rs.14/- | K48: 14 | L48: =(F48*-0.7)/100 -> -3.51 | M48: 2.09% | N48: Successful | O48: 2021-04-08 | R48: H
A49: 11 | B49: 2021-04-08 | D49: LTI | E49: Buy | F49: 4320 | G49: 4190 | H49: 4435 | I49: 4500 -4550 | J49: Profit of Rs.115/- | K49: =H49-F49 -> 115 | L49: =(F49*-0.7)/100 -> -30.24 | M49: =(K49+L49)/F49 -> 1.96% | N49: Successful | O49: 2021-04-09 | R49: N
A50: 12 | B50: 2021-04-09 | D50: GLAXO | E50: Buy | F50: 1425 | G50: 1380 | H50: 1475 | I50: 1500-1530 | J50: Profit of Rs.50/- | K50: =H50-F50 -> 50 | L50: =(F50*-0.07)/100 -> -1.00 | M50: =(K50+L50)/F50 -> 3.44% | N50: Successful | O50: 2021-04-09 | R50: H
A51: 13 | B51: 2021-04-09 | D51: NATIONALUM | E51: Sell | F51: 59.25 | G51: 61 | H51: 56.75 | I51: 56-55 | J51: Profit of Rs.2.5/- | K51: =F51-H51 -> 2.5 | L51: =(F51*-0.7)/100 -> -0.41 | M51: 3.52% | N51: Successful | O51: 2021-04-12 | R51: H
A52: 14 | B52: 2021-04-09 | D52: RAYMOND | E52: Buy | F52: 365 | G52: 353 | H52: 351.5 | I52: 385 | J52: Loss of Rs.13.5/- | K52: =H52-F52 -> -13.5 | L52: -2.56 | M52: =(K52+L52)/F52 -> -4.40% | N52: Unsuccessful | O52: 2021-04-12 | R52: N
A53: 15 | B53: 2021-04-09 | D53: PEL | E53: Buy | F53: 1810 | G53: 1760 | H53: 1760 | I53: 1900-1920 | J53: Loss of Rs.50/- | K53: =H53-F53 -> -50 | L53: -12.67 | M53: =(K53+L53)/F53 -> -3.46% | N53: Unsuccessful | O53: 2021-04-12 | R53: N
A54: 16 | B54: 2021-04-09 | D54: POWERGRID | E54: Buy | F54: 209.5 | G54: 204 | H54: 204 | I54: 220 | J54: Loss of Rs.5.5/- | K54: -5.5 | L54: -1.47 | M54: -3.33% | N54: Unsuccessful | O54: 2021-04-12 | R54: H
A55: 17 | B55: 2021-04-13 | D55: ASIANPAINT | E55: Buy | F55: 2595 | G55: 2520 | H55: 2658.5 | I55: 2700-2750 | J55: Profit of Rs.63.5/- | K55: 63.5 | L55: -18.17 | M55: 1.75% | N55: Successful | O55: 2021-04-16 | R55: H
A56: 18 | B56: 2021-04-15 | D56: HDFCLIFE | E56: Buy | F56: 698.5 | G56: 678 | H56: 675 | I56: 730-735 | J56: Loss of Rs.23.5/- | K56: -23.5 | L56: -4.89 | M56: -4.06% | N56: Unsuccessful | O56: 2021-04-19 | R56: H
A57: 19 | B57: 2021-04-16 | D57: GUJGASLTD | E57: Buy | F57: 535.5 | G57: 520 | H57: 548 | I57: 560-565 | J57: Profit of Rs.12.5/- | K57: =H57-F57 -> 12.5 | L57: =(F57*-0.07)/100 -> -0.37 | M57: =(K57+L57)/F57 -> 2.26% | N57: Successful | O57: 2021-04-16 | R57: N
A58: 20 | B58: 2021-04-16 | D58: LTI | E58: Buy | F58: 4100 | G58: 3945 | H58: 3945 | I58: 4300-4400 | J58: Loss of Rs.155/- | K58: -155 | L58: =(F58*-0.7)/100 -> -28.70 | M58: -4.48% | N58: Unsuccessful | O58: 2021-04-20 | R58: H
A59: 21 | B59: 2021-04-19 | D59: GLENMARK | E59: Buy | F59: 558 | G59: 538 | H59: 574 | I59: 590-600 | J59: Profit of Rs.16/- | K59: =H59-F59 -> 16 | L59: =(F59*-0.07)/100 -> -0.39 | M59: =(K59+L59)/F59 -> 2.80% | N59: Successful | O59: 2021-04-19 | R59: N
A60: 22 | B60: 2021-04-19 | D60: ESCORTS | E60: Buy | F60: 1209 | G60: 1174 | H60: 1238 | I60: 1270-1280 | J60: Profit of Rs.29/- | K60: 29 | L60: =(F60*-0.7)/100 -> -8.46 | M60: 1.70% | N60: Successful | O60: 2021-04-20 | R60: H
A61: 23 | B61: 2021-04-19 | D61: ASIANPAINT | E61: Buy | F61: 2590 | G61: 2520 | H61: 2510 | I61: 2700-2750 | J61: Loss of Rs.80/- | K61: -80 | L61: -18.13 | M61: -3.79% | N61: Unsuccessful | O61: 2021-04-22 | R61: H
A62: 24 | B62: 2021-04-19 | D62: GUJGASLTD | E62: Buy | F62: 534 | G62: 517 | H62: 550.5 | I62: 560-565 | J62: Profit of Rs.16.5/- | K62: =H62-F62 -> 16.5 | L62: =(F62*-0.7)/100 -> -3.74 | M62: =(K62+L62)/F62 -> 2.39% | N62: Successful | O62: 2021-04-20 | R62: N
A63: 25 | B63: 2021-04-20 | D63: IGL | E63: Buy | F63: 508-512 | G63: 494 | I63: 535-545 | J63: Open | R63: H
A64: 26 | B64: 2021-04-20 | D64: ESCORTS | E64: Buy | F64: 1210 | G64: 1174 | H64: 1215 | I64: 1270-1280 | J64: Profit of Rs.5/- | K64: =H64-F64 -> 5 | L64: =(F64*-0.07)/100 -> -0.85 | M64: =(K64+L64)/F64 -> 0.34% | N64: Neutral | O64: 2021-04-20 | R64: H
A65: 27 | B65: 2021-04-22 | D65: GUJGASLTD | E65: Buy | F65: 533.5 | G65: 517 | H65: 548 | I65: 560-565 | J65: Profit of Rs.14.5/- | K65: 14.5 | L65: =(F65*-0.7)/100 -> -3.73 | M65: 2.02% | N65: Successful | O65: 2021-04-23 | R65: N
A66: 28 | B66: 2021-04-22 | D66: ESCORTS | E66: Buy | F66: 1163 | G66: 1130 | H66: 1130 | I66: 1220-1240 | J66: Loss of Rs.33/- | K66: -33 | L66: -8.14 | M66: -3.54% | N66: Unsuccessful | O66: 2021-04-27 | R66: H
A67: 29 | B67: 2021-04-26 | D67: RBLBANK | E67: Sell | F67: 181.5 | G67: 187 | H67: 186.5 | I67: 172 | J67: Loss of Rs.5/- | K67: =F67-H67 -> -5 | L67: -1.27 | M67: -3.45% | N67: Unsuccessful | O67: 2021-04-27 | R67: N
A68: 30 | B68: 2021-04-26 | D68: LUPIN | E68: Buy | F68: 1059 | G68: 1020 | H68: 1080 | I68: 1120 | J68: Profit of Rs.21/- | K68: =H68-F68 -> 21 | L68: =(F68*-0.07)/100 -> -0.74 | M68: =(K68+L68)/F68 -> 1.91% | N68: Successful | O68: 2021-04-26 | R68: N
A69: 31 | B69: 2021-04-26 | D69: BIOCON | E69: Buy | F69: 397 | G69: 385 | H69: 385 | I69: 420 | J69: Loss of Rs.12/- | K69: -12 | L69: =(F69*-0.7)/100 -> -2.78 | M69: -3.72% | N69: Unsuccessful | O69: 2021-04-30 | R69: N
A70: 32 | B70: 2021-04-26 | D70: GLENMARK | E70: Buy | F70: 552 | G70: 536 | H70: 566 | I70: 590 | J70: Profit of Rs.14/- | K70: =H70-F70 -> 14 | L70: =(F70*-0.7)/100 -> -3.86 | M70: =(K70+L70)/F70 -> 1.84% | N70: Successful | O70: 2021-04-28 | R70: H
A71: 33 | B71: 2021-04-27 | D71: TATACHEM | E71: Buy | F71: 760 | G71: 735 | H71: 777 | I71: 810 | J71: Profit of Rs.17/- | K71: 17 | L71: -5.32 | M71: 1.54% | N71: Successful | O71: 2021-04-28
A72: 34 | B72: 2021-04-28 | D72: M&M | E72: Buy | F72: 788 | G72: 764 | H72: 801.5 | I72: 830 | J72: Profit of Rs.13.50/- | K72: =H72-F72 -> 13.5 | L72: =(F72*-0.07)/100 -> -0.55 | M72: =(K72+L72)/F72 -> 1.64% | N72: Successful | O72: 2021-04-28
A73: 35 | B73: 2021-04-28 | D73: DHANUKA | E73: Buy | F73: 754 | G73: 734 | H73: 772 | I73: 790-800 | J73: Profit of Rs.18/- | K73: 18 | L73: =(F73*-0.7)/100 -> -5.28 | M73: 1.69% | N73: Successful | O73: 2021-04-30
A74: 36 | B74: 2021-04-28 | D74: COLPAL | E74: Buy | F74: 1498-1502 | G74: 1450 | I74: 1600 | J74: Open
A75: 37 | B75: 2021-04-28 | D75: AXISBANK | E75: Buy | F75: 690 | G75: 669 | H75: 703 | I75: 730 | J75: Profit of Rs.13/- | K75: =H75-F75 -> 13 | L75: =(F75*-0.07)/100 -> -0.48 | M75: =(K75+L75)/F75 -> 1.81% | N75: Successful | O75: 2021-04-28
A76: 38 | B76: 2021-04-29 | D76: CROMPTON | E76: Buy | F76: 396 | G76: 383 | H76: 383 | I76: 420 | J76: Loss of Rs.13/- | K76: -13 | L76: =(F76*-0.07)/100 -> -0.28 | M76: -3.35% | N76: Unsuccessful | O76: 2021-04-29
A77: 39 | B77: 2021-04-30 | D77: GUJGASLTD | E77: Buy | F77: 532-535 | G77: 517 | I77: 560-565 | J77: Open
A85: CLBS = Closing Basis *** | H85: *
A86: Dividend adjusted <> | F86: Reinitiated $
F87: Revised stoploss #
A89: Master Trade High Risk
A90: Sr.no | B90: Date | D90: Company | E90: Rec | F90: Rec Price | G90: Stop Loss | H90: Call Closed At | I90: Target | J90: Remark | K90: Profit / Loss per share | L90: All charges | M90: Gain / Loss per Lot | N90: Lot | O90: Status | P90: Closed Date
A91: 1 | B91: 2021-04-01 | D91: PIIND APRIL FUT | E91: Buy | F91: 2250 | G91: 2198 | H91: 2295 | I91: 2350-2370 | J91: Profit of Rs.45/- | K91: =H91-F91 -> 45 | L91: =(H91*N91)*0.035% -> 200.81 | M91: =(K91*N91)-L91 -> 11049.2 | N91: 250 | O91: Successful | P91: 2021-04-06 | R91: H
A92: 2 | B92: 2021-04-01 | D92: BHARTIARTL APRIL FUT | E92: Buy | F92: 524.5 | G92: 517 | H92: 527 | I92: 535-540 | J92: Profit of Rs.2.5/- | K92: =H92-F92 -> 2.5 | L92: =(H92*N92)*0.035% -> 341.42 | M92: =(K92*N92)-L92 -> 4286.1 | N92: 1851 | O92: Successful | P92: 2021-04-05 | R92: H
A93: 3 | B93: 2021-04-07 | D93: AARTIIND APRIL FUT | E93: Buy | F93: 1352 | G93: 1320 | H93: 1383.5 | I93: 1400-1410 | J93: Profit of Rs.31.5/- | K93: =H93-F93 -> 31.5 | L93: =(H93*N93)*0.035% -> 193.69 | M93: =(K93*N93)-L93 -> 12406.3 | N93: 400 | O93: Successful | P93: 2021-04-07 | R93: N
A94: 4 | B94: 2021-04-07 | D94: TCS APRIL FUT | E94: Buy | F94: 3292.5 | G94: 3245 | H94: 3321 | I94: 3380-3390 | J94: Profit of Rs.28.5/- | K94: =H94-F94 -> 28.5 | L94: =(H94*N94)*0.035% -> 348.71 | M94: =(K94*N94)-L94 -> 8201.3 | N94: 300 | O94: Successful | P94: 2021-04-08 | R94: N
A95: 5 | B95: 2021-04-07 | D95: HEROMOTOCO APRIL FUT | E95: Buy | F95: 2943 | G95: 2870 | H95: 2870 | I95: 3100 | J95: Loss of Rs.46/- | K95: -73.00 | L95: 200.81 | M95: =(-46*300)-300.81 -> -14100.81 | N95: 300 | O95: Unsuccessful | P95: 2021-03-12 | R95: H
D96: HEROMOTOCO APR 3050 CE | E96: Sell | F96: 48.5 | H96: 21.5 | K96: =F96-H96 -> 27.00 | L96: 100.00 | R96: H
A97: 6 | B97: 2021-04-07 | D97: HCLTECH APR FUT | E97: Buy | F97: 1048 | G97: 1018 | H97: 1018 | I97: 1100 | J97: Loss of Rs.22/- | K97: =H97-F97 -> -30.00 | L97: 200.81 | M97: =(-22*700)-300.81 -> -15700.81 | N97: 700 | O97: Unsuccessful | P97: 2021-03-12 | R97: H
D98: HCLTECH APR 1090 CE | E98: Sell | F98: 21 | H98: 13 | K98: 8.00 | L98: 100.00 | R98: H
A99: 7 | B99: 2021-04-08 | D99: TECHM APR FUT | E99: Buy | F99: 1049 | G99: 1018 | H99: 1034 | I99: 1100 | J99: Loss of Rs.10/- | K99: -15.00 | L99: =(H99*N99)*0.035% -> 434.28 | M99: -12000 | N99: 1200 | O99: Unsuccessful | P99: 2021-04-08 | R99: H
D100: TECHM APR 1100 CE | E100: Sell | F100: 21 | H100: 16 | K100: 5.00 | L100: 100.00 | R100: H
A101: 8 | B101: 2021-04-16 | D101: GRANULES APR FUT | E101: Buy | F101: 327.5 | G101: 318 | H101: 333.5 | I101: 345 | J101: Profit of Rs.6/- | K101: =H101-F101 -> 6 | L101: =(H101*N101)*0.035% -> 180.92 | M101: =(K101*N101)-L101 -> 9119.1 | N101: 1550 | O101: Successful | P101: 2021-04-19 | R101: H
A102: 9 | B102: 2021-04-19 | D102: ALKEM APR FUT | E102: Buy | F102: 2765 | G102: 2695 | H102: 2805 | I102: 2880-2900 | J102: Profit of Rs.40/- | K102: =H102-F102 -> 40 | L102: =(H102*N102)*0.035% -> 196.35 | M102: =(K102*N102)-L102 -> 7803.7 | N102: 200 | O102: Successful | P102: 2021-04-22 | R102: H
A103: 10 | B103: 2021-04-19 | D103: AUROPHARMA APR FUT | E103: Buy | F103: 949 | G103: 928 | H103: 962 | I103: 990 | J103: Profit of Rs.13/- | K103: =H103-F103 -> 13 | L103: =(H103*N103)*0.035% -> 218.86 | M103: =(K103*N103)-L103 -> 8231.1 | N103: 650 | O103: Successful | P103: 2021-04-19 | R103: N
A104: 11 | B104: 2021-04-19 | D104: HCLTECH APR FUT | E104: Buy | F104: 992 | G104: 972 | H104: 972 | I104: 1030 | J104: Loss of Rs.20/- | K104: -20 | L104: 238.14 | M104: -14238.1 | N104: 700 | O104: Unsuccessful | P104: 2021-04-20 | R104: H
A105: 12 | B105: 2021-04-20 | D105: HDFCAMC APR FUT | E105: Buy | F105: 2800 | G105: 2735 | H105: 2845 | I105: 2900-2920 | J105: Profit of Rs.45/- | K105: 45 | L105: 199.15 | M105: 8800.9 | N105: 200 | O105: Successful | P105: 2021-04-22 | R105: N
A106: 13 | B106: 2021-04-22 | D106: HDFCAMC APR FUT | E106: Buy | F106: 2782.5 | G106: 2718 | H106: 2824 | I106: 2900-2920 | J106: Profit of Rs.41.5/- | K106: =H106-F106 -> 41.5 | L106: =(H106*N106)*0.035% -> 197.68 | M106: =(K106*N106)-L106 -> 8102.3 | N106: 200 | O106: Successful | P106: 2021-04-23 | R106: N
A107: 14 | B107: 2021-04-23 | D107: ALKEM APR FUT | E107: Buy | F107: 2745 | G107: 2685 | H107: 2785 | I107: 2850 | J107: Profit of Rs.40/- | K107: =H107-F107 -> 40 | L107: =(H107*N107)*0.035% -> 194.95 | M107: =(K107*N107)-L107 -> 7805.1 | N107: 200 | O107: Successful | P107: 2021-04-23 | R107: H
A108: 15 | B108: 2021-04-27 | D108: AUROPHARMA APR FUT | E108: Buy | F108: 973 | G108: 950 | H108: 975 | I108: 1000 | J108: Profit of Rs.2/- | K108: =H108-F108 -> 2 | L108: =(H108*N108)*0.035% -> 221.81 | M108: =(K108*N108)-L108 -> 1078.19 | N108: 650 | O108: Neutral | P108: 2021-04-29
A109: 16 | B109: 2021-04-28 | D109: HEROMOTOCO MAY FUT | E109: Buy | F109: 2957.5 | G109: 2915 | H109: 2915 | I109: 3040 | J109: Loss of Rs.42.5/- | K109: -42.5 | L109: 306.08 | M109: -13056.1 | N109: 300 | O109: Unsuccessful | P109: 2021-04-29
A115: Master Trade Medium Risk
A116: Sr.no | B116: Date | D116: Company | E116: Rec | F116: Rec Price | G116: Stop Loss | H116: Call Closed At | I116: Target | J116: Remark | K116: Profit/ Loss per lot | L116: All charges | M116: Gain / Loss per Lot | N116: Lot | O116: Status | P116: Closed Date
A117: 1 | B117: 2021-04-01 | D117: NIFTY 14600 PE 08-APR | E117: Buy | F117: 94 | G117: 58 | H117: 58 | I117: 150-170 | J117: Loss of Rs.36/- | K117: =H117-F117 -> -36 | L117: 100 | M117: =(K117*N117)-L117 -> -2800.0 | N117: 75 | O117: Unsuccessful | P117: 2021-04-01 | R117: H
A118: 2 | B118: 2021-04-01 | D118: BANKNIFTY 32900 PE 08-APR | E118: Buy | F118: 295 | G118: 95 | H118: 395 | I118: 600 | J118: Profit of Rs.100/- | K118: =H118-F118 -> 100 | L118: 100 | M118: =(K118*N118)-L118 -> 2400.0 | N118: 25 | O118: Successful | P118: 2021-04-05 | R118: H
A119: 3 | B119: 2021-04-05 | D119: NIFTY 14800 CE 08-APR | E119: Buy | F119: 62.5 | G119: 30 | H119: 77.5 | I119: 140 | J119: Profit of Rs.15/- | K119: =H119-F119 -> 15 | L119: 100 | M119: =(K119*N119)-L119 -> 1025.0 | N119: 75 | O119: Successful | P119: 2021-04-06 | R119: N
A120: 4 | B120: 2021-04-06 | D120: NIFTY 14600 PE 08-APR | E120: Buy | F120: 72 | G120: 30 | H120: 89 | I120: 140 | J120: Profit of Rs.17/- | K120: =H120-F120 -> 17 | L120: 100 | M120: =(K120*N120)-L120 -> 1175.0 | N120: 75 | O120: Successful | P120: 2021-04-06 | R120: N
A121: 5 | B121: 2021-04-06 | D121: BPCL 420 PE APR | E121: Buy | F121: 8.15 | G121: 5 | H121: 9.2 | I121: 14 | J121: Profit of Rs.1.05/- | K121: 1.05 | L121: 100 | M121: 1790.0 | N121: 1800 | O121: Successful | P121: 2021-04-06 | R121: N
A122: 6 | B122: 2021-04-06 | D122: NIFTY 14600 PE 08-APR | E122: Buy | F122: 65 | G122: 28 | H122: 82 | I122: 140 | J122: Profit of Rs.17/- | K122: 17 | L122: 100 | M122: 1175.0 | N122: 75 | O122: Successful | P122: 2021-04-06 | R122: N
A123: 7 | B123: 2021-04-06 | D123: NIFTY 14700 CE 08-APR | E123: Buy | F123: 85 | G123: 40 | H123: 100 | I123: 140-150 | J123: Profit of Rs.15/- | K123: 15 | L123: 100 | M123: 1025.0 | N123: 75 | O123: Successful | P123: 2021-04-06 | R123: N
A124: 8 | B124: 2021-04-07 | D124: NIFTY 14700 PE 08-APR | E124: Buy | F124: 72 | G124: 30 | H124: 30 | I124: 140-150 | J124: Loss of Rs.42/- | K124: =H124-F124 -> -42 | L124: 100 | M124: -3250.0 | N124: 75 | O124: Unsuccessful | P124: 2021-04-07 | R124: N
A125: 9 | B125: 2021-04-07 | D125: BANKNIFTY 32600 PE 08-APR | E125: Buy | F125: 330 | G125: 70 | H125: 390 | I125: 600 | J125: Profit of Rs.60/- | K125: =H125-F125 -> 60 | L125: 100 | M125: 1400.0 | N125: 25 | O125: Successful | P125: 2021-04-07 | R125: H
A126: 10 | B126: 2021-04-07 | D126: BANKNIFTY 32600 PE 08-APR | E126: Buy | F126: 330 | G126: 70 | H126: 130 | I126: 600 | J126: Loss of Rs.200/- | K126: =H126-F126 -> -200 | L126: 100 | M126: =(K126*N126)-L126 -> -5100.0 | N126: 25 | O126: Unsuccessful | P126: 2021-04-07 | R126: H
A127: 11 | B127: 2021-04-07 | D127: BPCL 420 PE APR | E127: Buy | F127: 7.15 | G127: 4 | H127: 8.15 | I127: 12 | J127: Profit of Rs.1/- | K127: =H127-F127 -> 1 | L127: 100 | M127: 1700.0 | N127: 1800 | O127: Successful | P127: 2021-04-08 | R127: N
A128: 12 | B128: 2021-04-08 | D128: NIFTY 14900 PE 08-APR | E128: Buy | F128: 28 | H128: 44 | I128: 70 | J128: Profit of Rs.16/- | K128: 16 | L128: 100 | M128: 1100.0 | N128: 75 | O128: Successful | P128: 2021-04-08 | R128: N
A129: 13 | B129: 2021-04-08 | D129: NIFTY 14900 PE 08-APR | E129: Buy | F129: 17 | H129: 33 | I129: 50 | J129: Profit of Rs.16/- | K129: 16 | L129: 100 | M129: =(K129*N129)-L129 -> 1100.0 | N129: 75 | O129: Successful | P129: 2021-04-08 | R129: N
A130: 14 | B130: 2021-04-08 | D130: ZEEL 210 CE APR | E130: Buy | F130: 7.1 | G130: 5.5 | H130: 7.85 | I130: 9.0-10 | J130: Profit of Rs.0.75/- | K130: =H130-F130 -> 0.75 | L130: 100 | M130: 2150.0 | N130: 3000 | O130: Successful | P130: 2021-04-09 | R130: H
A131: 15 | B131: 2021-04-09 | D131: ZEEL 210 CE APR | E131: Buy | F131: 7.1 | G131: 5.5 | H131: 8.05 | I131: 9.0-10 | J131: Profit of Rs.0.95/- | K131: 0.95 | L131: 100 | M131: 2750.0 | N131: 3000 | O131: Successful | P131: 2021-04-09 | R131: H
A132: 16 | B132: 2021-04-09 | D132: HDFCBANK 1460 CE APR | E132: Buy | F132: 35.5 | G132: 25.5 | H132: 20 | I132: 50-55 | J132: Loss of Rs.15.5/- | K132: =H132-F132 -> -15.5 | L132: 100 | M132: =(K132*N132)-L132 -> -8625.0 | N132: 550 | O132: Unsuccessful | P132: 2021-04-12 | R132: N
A133: 17 | B133: 2021-04-13 | D133: NIFTY 14200 PE 15-APR | E133: Buy | F133: 54 | G133: 5 | H133: 12.5 | I133: 110 | J133: Loss of Rs.41.5/- | K133: =H133-F133 -> -41.5 | L133: 100 | M133: -3212.5 | N133: 75 | O133: Unsuccessful | P133: 2021-04-15 | R133: N
A134: 18 | B134: 2021-04-13 | D134: BANKNIFTY 31000 PE 15-APR | E134: Buy | F134: 310 | G134: 90 | H134: 160 | I134: 600-700 | J134: Loss of Rs.150/- | K134: =H134-F134 -> -150 | L134: 100 | M134: =(K134*N134)-L134 -> -3850.0 | N134: 25 | O134: Unsuccessful | P134: 2021-04-13 | R134: H
A135: 19 | B135: 2021-04-13 | D135: INFY 1420 CE APR | E135: Buy | F135: 30 | G135: 22 | H135: 34.5 | I135: 40-45 | J135: Profit of Rs.4.5/- | K135: =H135-F135 -> 4.5 | L135: 100 | M135: 2600.0 | N135: 600 | O135: Successful | P135: 2021-04-13 | R135: H
A136: 20 | B136: 2021-04-13 | D136: INFY 1420 CE APR | E136: Buy | F136: 29.5 | G136: 22 | H136: 34.5 | I136: 40-45 | J136: Profit of Rs.5/- | K136: =H136-F136 -> 5 | L136: 100 | M136: =(K136*N136)-L136 -> 2900.0 | N136: 600 | O136: Successful | P136: 2021-04-13 | R136: H
A137: 21 | B137: 2021-04-13 | D137: HEROMOTOCO 2950 CE APR | E137: Buy | F137: 34 | G137: 20 | H137: 41 | I137: 60 | J137: Profit of Rs.7/- | K137: =H137-F137 -> 7 | L137: 100 | M137: =(K137*N137)-L137 -> 2000.0 | N137: 300 | O137: Successful | P137: 2021-04-13 | R137: N
A138: 22 | B138: 2021-04-15 | D138: HEROMOTOCO 2950 CE APR | E138: Buy | F138: 39 | G138: 25 | H138: 46 | I138: 60 | J138: Profit of Rs.7/- | K138: =H138-F138 -> 7 | L138: 100 | M138: =(K138*N138)-L138 -> 2000.0 | N138: 300 | O138: Successful | P138: 2021-04-16 | R138: N
A139: 23 | B139: 2021-04-15 | D139: HDFCBANK 1460 CE APR | E139: Buy | F139: 17.5 | G139: 9 | H139: 21 | I139: 35-40 | J139: Profit of Rs.3.5/- | K139: =H139-F139 -> 3.5 | L139: 100 | M139: =(K139*N139)-L139 -> 1825.0 | N139: 550 | O139: Successful | P139: 2021-04-15 | R139: H
A140: 24 | B140: 2021-04-15 | D140: NIFTY 14400 PE 15-APR | E140: Buy | F140: 27 | H140: 0 | I140: 70 | J140: Loss of Rs.27/- | K140: =H140-F140 -> -27 | L140: 100 | M140: -2125.0 | N140: 75 | O140: Unsuccessful | P140: 2021-04-15 | R140: N
A141: 25 | B141: 2021-04-16 | D141: HDFCBANK 1460 CE APR | E141: Buy | F141: 25 | G141: 14 | H141: 30 | I141: 45-50 | J141: Profit of Rs.5/- | K141: =H141-F141 -> 5 | L141: 100 | M141: =(K141*N141)-L141 -> 2650.0 | N141: 550 | O141: Successful | P141: 2021-04-16 | R141: H
A142: 26 | B142: 2021-04-16 | D142: BAJAJ-AUTO 3700 CE APR | E142: Buy | F142: 61 | G142: 40 | H142: 72 | I142: 100 | J142: Profit of Rs.11/- | K142: =H142-F142 -> 11 | L142: 100 | M142: =(K142*N142)-L142 -> 2650.0 | N142: 250 | O142: Successful | P142: 2021-04-16 | R142: N
A143: 27 | B143: 2021-04-16 | D143: BHARTIARTL 550 CE APR | E143: Buy | F143: 6.75 | G143: 4.5 | H143: 4.5 | I143: 12 | J143: Loss of Rs.2.25/- | K143: -2.25 | L143: 100 | M143: -4262.5 | N143: 1850 | O143: Unsuccessful | P143: 2021-04-19 | R143: N
A144: 28 | B144: 2021-04-16 | D144: HDFCBANK 1480 CE APR | E144: Buy | F144: 20.5 | G144: 13 | H144: 11 | I144: 30-35 | J144: Loss of Rs.9.5/- | K144: =H144-F144 -> -9.5 | L144: 100 | M144: =(K144*N144)-L144 -> -5325.0 | N144: 550 | O144: Unsuccessful | P144: 2021-04-19 | R144: H
A145: 29 | B145: 2021-04-16 | D145: LUPIN 1110 CE APR | E145: Buy | F145: 16.5 | G145: 10 | H145: 18.5 | I145: 25 | J145: Profit of Rs.2/- | K145: 2 | L145: 100 | M145: 1600.0 | N145: 850 | O145: Successful | P145: 2021-04-19 | R145: N
A146: 30 | B146: 2021-04-19 | D146: HCLTECH 1040 CE APR | E146: Buy | F146: 12.5 | G146: 5 | H146: 16 | I146: 22-25 | J146: Profit of Rs.3.5/- | K146: =H146-F146 -> 3.5 | L146: 100 | M146: =(K146*N146)-L146 -> 2350.0 | N146: 700 | O146: Successful | P146: 2021-04-19 | R146: H
A147: 31 | B147: 2021-04-19 | D147: NIFTY 14200 PE 22-APR | E147: Buy | F147: 92.5 | G147: 52 | H147: 112 | I147: 200 | J147: Profit of Rs.19.5/- | K147: =H147-F147 -> 19.5 | L147: 100 | M147: =(K147*N147)-L147 -> 1362.5 | N147: 75 | O147: Successful | P147: 2021-04-19 | R147: N
A148: 32 | B148: 2021-04-19 | D148: HCLTECH 1040 CE APR | E148: Buy | F148: 13.5 | G148: 5 | H148: 17 | I148: 22-25 | J148: Profit of Rs.3.5/- | K148: =H148-F148 -> 3.5 | L148: 100 | M148: =(K148*N148)-L148 -> 2350.0 | N148: 700 | O148: Successful | P148: 2021-04-19 | R148: H
A149: 33 | B149: 2021-04-19 | D149: NIFTY 14200 PE 22-APR | E149: Buy | F149: 90 | G149: 52 | H149: 37.5 | I149: 170 | J149: Loss of Rs.52.5/- | K149: =H149-F149 -> -52.5 | L149: 100 | M149: -4037.5 | N149: 75 | O149: Unsuccessful | P149: 2021-04-20 | R149: N
A150: 34 | B150: 2021-04-20 | D150: BHARTIARTL 540 CE APR | E150: Buy | F150: 5 | G150: 2.2 | H150: 6 | I150: 10 | J150: Profit of Rs.1/- | K150: =H150-F150 -> 1 | L150: 100 | M150: 1750.0 | N150: 1850 | O150: Successful | P150: 2021-04-20 | R150: N
A151: 35 | B151: 2021-04-20 | D151: LUPIN 1110 CE APR | E151: Buy | F151: 16 | G151: 10 | H151: 20 | I151: 25 | J151: Profit of Rs.4/- | K151: =H151-F151 -> 4 | L151: 100 | M151: =(K151*N151)-L151 -> 3300.0 | N151: 850 | O151: Successful | P151: 2021-04-20 | R151: N
A152: 36 | B152: 2021-04-20 | D152: BPCL 415 CE APR | E152: Buy | F152: 6.5 | G152: 3.6 | H152: 8 | I152: 12 | J152: Profit of Rs.1.5/- | K152: 1.5 | L152: 100 | M152: 12.5 | N152: 75 | O152: Successful | P152: 2021-04-22 | R152: N
A153: 37 | B153: 2021-04-20 | D153: NIFTY 14000 PE 22-APR | E153: Buy | F153: 31.5 | H153: 39 | I153: 70-80 | J153: Profit of Rs.7.5/- | K153: =H153-F153 -> 7.5 | L153: 100 | M153: =(K153*N153)-L153 -> 462.5 | N153: 75 | O153: Successful | P153: 2021-04-22 | R153: H
A154: 38 | B154: 2021-04-22 | D154: HDFCIFE 690 CE APR | E154: Buy | F154: 8.25 | G154: 3.75 | H154: 10 | I154: 14-16 | J154: Profit of Rs.1.75/- | K154: =H154-F154 -> 1.75 | L154: 100 | M154: =(K154*N154)-L154 -> 1825.0 | N154: 1100 | O154: Successful | P154: 2021-04-22 | R154: H
A155: 39 | B155: 2021-04-22 | D155: ESCORTS 1200 CE APR | E155: Buy | F155: 19.5 | G155: 10 | H155: 11.5 | I155: 40 | J155: Loss of Rs.8/- | K155: -8 | L155: 100 | M155: -4500.0 | N155: 550 | O155: Unsuccessful | P155: 2021-04-23 | R155: N
A156: 40 | B156: 2021-04-22 | D156: NIFTY 14200 PE 22-APR | E156: Buy | F156: 42 | G156: 0 | H156: 0 | I156: 100-120 | J156: Loss of Rs.42/- | K156: =H156-F156 -> -42 | L156: 100 | M156: =(K156*N156)-L156 -> -3250.0 | N156: 75 | O156: Unsuccessful | P156: 2021-04-22 | R156: N
A157: 41 | B157: 2021-04-22 | D157: BHARTIARTL 540 CE APR | E157: Buy | F157: 4 | G157: 1.1 | H157: 1.1 | I157: 10 | J157: Loss of Rs.2.90/- | K157: =H157-F157 -> -2.9 | L157: 100 | M157: -5465.0 | N157: 1850 | O157: Unsuccessful | P157: 2021-04-26 | R157: N
A158: 42 | B158: 2021-04-22 | D158: BANKNIFTY 31600 CE 22-APR | E158: Sell | F158: 57.5 | G158: 101 | H158: 85 | I158: 1 | J158: Loss of Rs.27.5/- | K158: =H158-F158 -> 27.5 | L158: 100 | M158: =(K158*N158)-L158 -> 587.5 | N158: 25 | O158: Unsuccessful | P158: 2021-04-22 | R158: H
A159: 43 | B159: 2021-04-22 | D159: ASIANPAINT 2520 CE APR | E159: Buy | F159: 39 | G159: 19 | H159: 47 | I159: 70-80 | J159: Profit of Rs.8/- | K159: =H159-F159 -> 8 | L159: 100 | M159: 2300.0 | N159: 300 | O159: Successful | P159: 2021-04-22 | R159: H
A160: 44 | B160: 2021-04-22 | D160: EXIDEIND 175 CE APR | E160: Buy | F160: 2.1 | G160: 0.95 | H160: 0.95 | I160: 4-5.0 | J160: Loss of Rs.1.15/- | K160: -1.15 | L160: 100 | M160: -4240.0 | N160: 3600 | O160: Unsuccessful | P160: 2021-04-26 | R160: H
A161: 45 | B161: 2021-04-22 | D161: HDFCIFE 690 CE APR | E161: Buy | F161: 8.2 | G161: 3.75 | H161: 10 | I161: 14-16 | J161: Profit of Rs.1.8/- | K161: =H161-F161 -> 1.8 | L161: 100 | M161: =(K161*N161)-L161 -> 1880.0 | N161: 1100 | O161: Successful | P161: 2021-04-23 | R161: H
A162: 46 | B162: 2021-04-22 | D162: LUPIN 1110 CE APR | E162: Buy | F162: 15.5 | G162: 9 | H162: 9 | I162: 25 | J162: Loss of Rs.6.5/- | K162: =H162-F162 -> -6.5 | L162: 100 | M162: =(K162*N162)-L162 -> -5625.0 | N162: 850 | O162: Unsuccessful | P162: 2021-04-23 | R162: N
A163: 47 | B163: 2021-04-23 | D163: ICICIBANK 590 CE APR | E163: Buy | F163: 8 | G163: 3.8 | H163: 10 | I163: 16 | J163: Profit of Rs.2/- | K163: 2 | L163: 100 | M163: 2650.0 | N163: 1375 | O163: Successful | P163: 2021-04-23 | R163: H
A164: 48 | B164: 2021-04-23 | D164: ICICIBANK 590 CE APR | E164: Buy | F164: 8 | G164: 3.8 | H164: 14 | I164: 16 | J164: Profit of Rs.6/- | K164: =H164-F164 -> 6 | L164: 100 | M164: =(K164*N164)-L164 -> 8150.0 | N164: 1375 | O164: Successful | P164: 2021-04-26 | R164: H
A165: 49 | B165: 2021-04-23 | D165: HDFCLIFE 690 CE APR | E165: Buy | F165: 9.5 | G165: 4.75 | H165: 11.75 | I165: 16-18 | J165: Profit of Rs.2.25/- | K165: =H165-F165 -> 2.25 | L165: 100 | M165: =(K165*N165)-L165 -> 2375.0 | N165: 1100 | O165: Successful | P165: 2021-04-23 | R165: H
A166: 50 | B166: 2021-04-23 | D166: ASIANPAINT 2520 CE APR | E166: Buy | F166: 31 | G166: 13 | H166: 37.5 | I166: 60 | J166: Profit of Rs.6.5/- | K166: =H166-F166 -> 6.5 | L166: 100 | M166: =(K166*N166)-L166 -> 1850.0 | N166: 300 | O166: Successful | P166: 2021-04-23 | R166: N
A167: 51 | B167: 2021-04-26 | D167: NIFTY 14400 PE APR | E167: Buy | F167: 100 | G167: 60 | H167: 115.5 | I167: 180 | J167: Profit of Rs.15.5/- | K167: =H167-F167 -> 15.5 | L167: 100 | M167: =(K167*N167)-L167 -> 1062.5 | N167: 75 | O167: Successful | P167: 2021-04-26 | R167: N
A168: 52 | B168: 2021-04-27 | D168: NIFTY 14400 PE APR | E168: Buy | F168: 71 | G168: 30 | H168: 32 | I168: 140 | J168: Loss of Rs.39/- | K168: -39 | L168: 100 | M168: -3025.0 | N168: 75 | O168: Unsuccessful | P168: 2021-04-27
A169: 53 | B169: 2021-04-27 | D169: ASIANPAINT 2560 CE APR | E169: Buy | F169: 23 | G169: 9 | H169: 29 | I169: 40-45 | J169: Profit of Rs.6/- | K169: =H169-F169 -> 6 | L169: 100 | M169: =(K169*N169)-L169 -> 1700.0 | N169: 300 | O169: Successful | P169: 2021-04-27
A170: 54 | B170: 2021-04-28 | D170: NIFTY 14700 PE APR | E170: Buy | F170: 51.5 | G170: 18 | H170: 28 | I170: 110 | J170: Loss of Rs.23.50/- | K170: -23.5 | L170: 100 | M170: -1862.5 | N170: 75 | O170: Unsuccessful | P170: 2021-04-28
A171: 55 | B171: 2021-04-29 | D171: NIFTY 14900 PE APR | E171: Buy | F171: 21 | H171: 36 | I171: 50-60 | J171: Profit of Rs.15/- | K171: =H171-F171 -> 15 | L171: 100 | M171: =(K171*N171)-L171 -> 1025.0 | N171: 75 | O171: Successful | P171: 2021-04-29
A172: 59 | B172: 2021-04-29 | D172: HINDUNILVR 2460 CE MAY | E172: Buy | F172: 60 | G172: 44 | H172: 69 | I172: 85-90 | J172: Profit of Rs.9/- | K172: =H172-F172 -> 9 | L172: 100 | M172: =(K172*N172)-L172 -> 2600.0 | N172: 300 | O172: Successful | P172: 2021-04-30
A173: 60 | B173: 2021-04-30 | D173: HINDUNILVR 2460 CE MAY | E173: Buy | F173: 50 | G173: 34 | H173: 34 | I173: 75 | J173: Loss of Rs.16/- | K173: -16 | L173: 100 | M173: -4900.0 | N173: 300 | O173: Unsuccessful | P173: 2021-04-30
A175: Techno -Funda (positional)
A176: Sr.no | B176: Date | D176: Company | E176: Rec | F176: Rec Price | G176: Stop Loss*** | H176: Call Closed At | I176: Target | J176: Remark | K176: Profit / Loss per Share/Lot | L176: All charges | M176: Net Gain / Loss % | N176: Status | O176: Closed Date
A177: 1 | B177: 2021-01-07 | D177: SIS | E177: Buy<> | F177: 422 | G177: 385 | H177: 422 | I177: 500-520 | J177: No profit no loss | K177: =H177-F177 -> 0 | L177: =(F177*-0.8)/100 -> -3.38 | M177: =(K177+L177)/F177 -> -0.80% | N177: Neutral | O177: 2021-04-12 | R177: H
A178: 2 | B178: 2021-02-11 | D178: MCX | E178: Buy | F178: 1515 | G178: 1390 | H178: 1595 | I178: 1800-1850 | J178: Part profit of Rs.80/- | K178: =H178-F178 -> 80 | L178: =(F178*-0.8)/100 -> -12.12 | M178: =(K178+L178)/F178 -> 4.48% | N178: Successful | O178: 2021-03-16 | R178: H
A179: 3 | B179: 2021-03-19 | D179: GMMPFAUDLR | E179: Buy | F179: 4070 | G179: 3750 | H179: 4530 | I179: 4800 | J179: Profit of Rs.460/- | K179: =H179-F179 -> 460 | L179: =(F179*-0.8)/100 -> -32.56 | M179: =(K179+L179)/F179 -> 10.50% | N179: Successful | O179: 2021-04-01 | R179: H
A182: CLBS = Closing Basis *** | F182: Reinitiated $
A183: Dividend adjusted <> | F183: Revised stoploss #
B185: Intrday Call
A186: Sr.no | B186: Date | D186: Company | E186: Rec | F186: Rec Price | G186: Stop Loss | H186: Call Closed At | I186: Target | J186: Remark | K186: Profit / Loss per Share/Lot | L186: Gain / Loss per Lot | M186: Lot | N186: All charges | O186: Net Gain / Loss % | P186: Status | Q186: Closed Date
B199: Investment Idea
A200: Sr.no | B200: Date | D200: Company | E200: Rec | F200: Rec Price | G200: Point of Review | H200: Close Rate | I200: Target | J200: Remark | K200: Profit / Loss per Share | L200: Gain / Loss % | M200: Status | N200: Closed Date
A201: 1 | B201: 2013-11-01 | D201: L&T Finance Holding | E201: Accu | F201: 82.00 | G201: - | H201: 100 | I201: 100.00 | J201: Target Achieved | K201: =H201-F201 -> 18.00 | L201: =K201/F201 -> 21.95% | M201: Successful | N201: 2016-10-14
A202: 2 | B202: 2014-06-04 | D202: Finolex Inds | E202: Buy | F202: 257.00 | G202: - | H202: 300 | I202: 300.00 | J202: Target Achieved | K202: 43.00 | L202: 16.73% | M202: Successful | N202: 2014-07-02
A203: 3 | B203: 2014-07-08 | D203: JK Cement | E203: Buy | F203: 393.00 | G203: - | H203: 468 | I203: 468.00 | J203: Target Achieved | K203: 75.00 | L203: 19.08% | M203: Successful | N203: 2014-08-12
A204: 4 | B204: 2014-08-06 | D204: Finolex Cables | E204: Buy | F204: 205.00 | G204: - | H204: 275 | I204: 250.00 | J204: Target Achieved | K204: 70.00 | L204: 34.15% | M204: Successful | N204: 2014-11-19
A205: 5 | B205: 2014-09-04 | D205: Exide Inds | E205: Buy | F205: 162.00 | G205: - | H205: 190 | I205: 190.00 | J205: Target Achieved | K205: 28.00 | L205: 17.28% | M205: Successful | N205: 2015-01-02
A206: 6 | B206: 2014-09-04 | D206: Deepak Nitrite | E206: Buy | F206: 75.00 | G206: - | H206: 91.5 | I206: 95-100 | J206: Profit of Rs.16.50/- | K206: 16.50 | L206: 22.00% | M206: Successful | N206: 2014-11-11
A207: 7 | B207: 2014-10-01 | D207: Mercks | E207: Buy | F207: 850.00 | G207: - | H207: 982.5 | I207: 1050.00 | J207: Profit of Rs.132.50/- | K207: 132.50 | L207: 15.59% | M207: Successful | N207: 2015-02-04
A208: 8 | B208: 2014-10-01 | D208: Grindwell Norton | E208: Buy | F208: 475.00 | G208: - | H208: 515 | I208: 600.00 | J208: Profit of Rs.40/- | K208: 40.00 | L208: 8.42% | M208: Successful | N208: 2014-10-27
A209: 9 | B209: 2014-10-01 | D209: Snowman Logistics | E209: Buy | F209: 86.00 | G209: - | H209: 99 | I209: 140.00 | J209: Profit of Rs.13.00/- | K209: 13.00 | L209: 15.12% | M209: Successful | N209: 2014-10-27
A210: 10 | B210: 2014-10-14 | D210: Birla Corp | E210: Buy | F210: 496.60 | G210: - | H210: 621 | I210: 580.00 | J210: Target Achieved | K210: 124.40 | L210: 25.05% | M210: Successful | N210: 2016-08-23
A211: 11 | B211: 2014-10-14 | D211: Ultratech Cem | E211: Buy | F211: 2481.90 | G211: - | H211: 2840 | I211: 2870.00 | J211: Profit of Rs.358.10/- | K211: 358.10 | L211: 14.43% | M211: Successful | N211: 2015-01-13
A212: 12 | B212: 2014-10-16 | D212: Sintex Inds | E212: Buy | F212: 84.50 | G212: - | H212: 93 | I212: 110.00 | J212: Profit of Rs.8.50/- | K212: 8.50 | L212: 10.06% | M212: Successful | N212: 2014-10-27
A213: 13 | B213: 2014-10-16 | D213: HSIL | E213: Buy | F213: 401.00 | G213: - | H213: 428 | I213: 450.00 | J213: Profit of Rs.27.00/- | K213: 27.00 | L213: 6.73% | M213: Successful | N213: 2015-01-16
A214: 14 | B214: 2014-10-16 | D214: Eveready Inds | E214: Buy | F214: 101.00 | G214: - | H214: 112 | I214: 120.00 | J214: Profit of Rs.11.00/- | K214: 11.00 | L214: 10.89% | M214: Successful | N214: 2014-10-27
A215: 15 | B215: 2014-11-11 | D215: Pennar Inds | E215: Buy | F215: 59.00 | G215: - | H215: 76 | I215: 76.00 | J215: Target Achieved | K215: 17.00 | L215: 28.81% | M215: Successful | N215: 2017-10-24
A216: 16 | B216: 2014-11-11 | D216: Snowman Logistics | E216: Buy | F216: 99.00 | G216: - | H216: 120 | I216: 120.00 | J216: Profit of Rs.21/- | K216: 21.00 | L216: 21.21% | M216: Successful | N216: 2014-11-17
A217: 17 | B217: 2014-11-13 | D217: Dharamsi Morarji Chem | E217: Buy | F217: 22.00 | G217: - | H217: 33.55 | I217: 32.00 | J217: Profit of Rs 11.55/- | K217: 11.55 | L217: 52.50% | M217: Successful | N217: 2015-07-03
A218: 18 | B218: 2014-12-03 | D218: Tatachem | E218: Buy | F218: 440.00 | G218: - | H218: 520 | I218: 520.00 | J218: Profit of Rs 80.00/- | K218: 80.00 | L218: 18.18% | M218: Successful | N218: 2015-07-23
A219: 19 | B219: 2014-12-03 | D219: Advanta | E219: Buy | F219: 360.00 | G219: - | H219: 427 | I219: 425.00 | J219: Profit of Rs.67.00/- | K219: 67.00 | L219: 18.61% | M219: Successful | N219: 2015-02-23
A220: 20 | B220: 2015-01-08 | D220: GDL | E220: Buy | F220: 360.00 | G220: - | H220: 455 | I220: 420.00 | J220: Profit of Rs.95.00/- | K220: 95.00 | L220: 26.39% | M220: Successful | N220: 2015-01-20
A221: 21 | B221: 2015-01-08 | D221: NRB Bearing | E221: Buy | F221: 130.00 | H221: 175.5 | I221: 165.00 | J221: Profit of Rs 45.50/- | K221: 45.50 | L221: 35.00% | M221: Successful | N221: 2017-12-19
A222: 22 | B222: 2015-02-05 | D222: GSFC | E222: Accu | F222: 98.00 | H222: 120 | I222: 120.00 | J222: Target Achieved | K222: 22.00 | L222: 22.45% | M222: Successful | N222: 2017-01-18
A223: 23 | B223: 2015-02-05 | D223: Sundrmfast | E223: Accu | F223: 196.00 | H223: 262 | I223: 255.00 | J223: Target Achieved | K223: 66.00 | L223: 33.67% | M223: Successful | N223: 2016-08-17
A224: 24 | B224: 2015-03-04 | D224: GPPL | E224: Accu | F224: 235 | H224: 77.00 | I224: 280-285 | J224: Loss of Rs.158/- | K224: -158.00 | L224: -67.23% | M224: Unsuccessful | N224: 2019-02-26
A225: 25 | B225: 2015-03-04 | D225: ORIENTCEM | E225: Accu | F225: 185.00 | H225: 224 | I225: 220-225 | J225: Target Achieved | K225: 39.00 | L225: 21.08% | M225: Successful | N225: 2016-10-04
A226: 26 | B226: 2015-03-27 | D226: PFS | E226: Accu | F226: 49.5 | H226: 15.85 | I226: 67.00 | J226: Loss of Rs.33.65/- | K226: -33.65 | L226: -68% | M226: Unsuccessful | N226: 2019-06-11
A227: 27 | B227: 2015-03-30 | D227: Walchandnagar Ind Ltd | E227: Accu | F227: 183.50 | H227: 219 | I227: 218.00 | J227: Profit of Rs.35.50/- | K227: 35.50 | L227: 19.35% | M227: Successful | N227: 2015-04-09
A228: 28 | B228: 2015-04-20 | D228: Kalpataru Power Transmission Ltd | E228: Accu | F228: =(227+237)/2 -> 232.00 | H228: 298 | I228: 298.00 | J228: Target Achieved | K228: 66.00 | L228: 28.45% | M228: Successful | N228: 2017-03-29
A229: 29 | B229: 2015-05-04 | D229: Mastek Ltd | E229: Buy | F229: 385.00 | H229: =212.5+331 -> 543.5 | I229: 510.00 | J229: Profit of Rs 158.50/- | K229: 158.50 | L229: 41.17% | M229: Successful | N229: 2015-08-19
A230: 30 | B230: 2015-05-04 | D230: Suprajit Eng | E230: Buy | F230: 115.50 | H230: 146 | I230: 142.00 | J230: Profit of Rs 30.50/- | K230: 30.50 | L230: 26.41% | M230: Successful | N230: 2015-07-17
A231: 31 | B231: 2015-05-27 | D231: TCI | E231: Buy | F231: 237.50 | H231: 279.5 | I231: 278.00 | J231: Target Achieved | K231: 42.00 | L231: 17.68% | M231: Successful | N231: 2015-08-06
A232: 32 | B232: 2015-06-19 | D232: HSIL | E232: Accu | F232: 340.00 | H232: 448 | I232: 448.00 | J232: Target Achieved | K232: 108.00 | L232: 31.76% | M232: Successful | N232: 2017-10-10
A233: 33 | B233: 2015-07-06 | D233: Capital First | E233: Accu | F233: 390.00 | H233: 460 | I233: 460.00 | J233: Target Achieved | K233: =H233-F233 -> 70.00 | L233: =K233/F233 -> 17.95% | M233: Successful | N233: 2016-04-18
A234: 34 | B234: 2015-07-10 | D234: Dolphin OffShore | E234: Accu | F234: 122.5 | H234: 61.00 | I234: 172.00 | J234: Loss of Rs.61.50/- | K234: -61.50 | L234: -50.20% | M234: Unsuccessful | N234: 2018-08-21
A235: 35 | B235: 2015-08-03 | D235: Allcargo logistics | E235: Accu | F235: 297.50 | H235: 350 | I235: 360.00 | J235: Profit of Rs 52.50/- | K235: 52.50 | L235: 17.65% | M235: Successful | N235: 2015-08-16
A236: 36 | B236: 2015-08-03 | D236: Camline Fine | E236: Accu | F236: 115.50 | H236: 149 | I236: 140.00 | J236: Profit of Rs 33.50/- | K236: 33.50 | L236: 29.00% | M236: Successful | N236: 2017-01-05
A237: 37 | B237: 2015-09-04 | D237: TCI | E237: Accu | F237: 226.00 | H237: 292 | I237: 292.00 | J237: Target Achieved | K237: 66.00 | L237: 29.20% | M237: Successful | N237: 2015-10-09
A238: 38 | B238: 2015-09-07 | D238: Kalpataru Power Transmission Ltd | E238: Accu | F238: 232.50 | H238: 312.5 | I238: 310.00 | J238: Target Achieved | K238: 80.00 | L238: 34.41% | M238: Successful | N238: 2017-03-29
A239: 39 | B239: 2015-09-21 | D239: LLOYD ELECTRIC & ENG LTD | E239: Accu | F239: 196.50 | H239: 238 | I239: 238.00 | J239: Target Achieved | K239: 41.50 | L239: 21.12% | M239: Successful | N239: 2015-10-14
... 127 more rows
